Workbook

Sheet Main
B10: 2023-12-11
B12: Sheet No. | C12: Template Name | D12: Summary
B13: 1 | C13: Future Intra | D13: For Intraday trading in F&O segment
B14: 2 | C14: Cash Intra | D14: For Intraday trading in cash market segment
B15: 3 | C15: Mid-cap Intra | D15: For Intraday trading in Mid-cap stocks
B16: 4 | C16: Bulk Deals | D16: Reveals Bulk Deals carried on NSE & BSE
B17: 5 | C17: Call Tracker
K27: `

Sheet Future Intra
M5: Back to Main Page
A6: FOR INTRA DAY TRADING | L6: =Main!B10 -> 2023-12-11
A9: Sr.no | B9: Sector | C9: Scrip | D9: Expiry Date | E9: CLOSE RATE | F9: Pivot Point | G9: Supports | J9: Resistances
E10: Point | F10: Point | G10: S1 | H10: S2 | I10: S3 | J10: R1 | K10: R2 | L10: R3 | M10: HIGH | N10: LOW | O10: OI | P10: % Change in OI
A11: 1 | B11: Index | C11: NIFTY | D11: 2023-12-28 | E11: 21075.00 | F11: 21043.82 | G11: 20980.18 | H11: 20885.37 | I11: 20821.73 | J11: 21138.63 | K11: 21202.27 | L11: 21297.08 | M11: 21107.45 | N11: 20949 | O11: 13297950 | P11: -2.28%
A12: 2 | B12: Index | C12: BANKNIFTY | D12: 2023-12-28 | E12: 47499.80 | F12: 47353.37 | G12: 47107.73 | H12: 46715.67 | I12: 46470.03 | J12: 47745.43 | K12: 47991.07 | L12: 48383.13 | M12: 47599 | N12: 46961.3 | O12: 2385795 | P12: 6.80%
A13: 3 | B13: Index | C13: FINNIFTY | D13: 2023-12-26 | E13: 21308.20 | F13: 21246.40 | G13: 21161.85 | H13: 21015.50 | I13: 20930.95 | J13: 21392.75 | K13: 21477.30 | L13: 21623.65 | M13: 21330.95 | N13: 21100.05 | O13: 67560 | P13: 12.68%
A14: 4 | B14: Index | C14: MIDCPNIFTY | D14: 2023-12-22 | E14: 10002.75 | F14: 9991.77 | G14: 9923.53 | H14: 9844.32 | I14: 9776.08 | J14: 10070.98 | K14: 10139.22 | L14: 10218.43 | M14: 10060 | N14: 9912.55 | O14: 497475 | P14: 0.97%
A15: 5 | B15: Chemical | C15: AARTIIND | D15: 2023-12-28 | E15: 572.00 | F15: 572.32 | G15: 561.63 | H15: 551.27 | I15: 540.58 | J15: 582.68 | K15: 593.37 | L15: 603.73 | M15: 583 | N15: 561.95 | O15: 12499000 | P15: -0.74%
A16: 6 | B16: Capital_Goods | C16: ABB | D16: 2023-12-28 | E16: 4758.45 | F16: 4773.65 | G16: 4687.30 | H16: 4616.15 | I16: 4529.80 | J16: 4844.80 | K16: 4931.15 | L16: 5002.30 | M16: 4860 | N16: 4702.5 | O16: 1103000 | P16: 0.43%
A17: 7 | B17: Pharma | C17: ABBOTINDIA | D17: 2023-12-28 | E17: 22976.90 | F17: 23018.93 | G17: 22772.87 | H17: 22568.83 | I17: 22322.77 | J17: 23222.97 | K17: 23469.03 | L17: 23673.07 | M17: 23265 | N17: 22814.9 | O17: 109640 | P17: -0.07%
A18: 8 | B18: Others | C18: ABCAPITAL | D18: 2023-12-28 | E18: 164.20 | F18: 165.05 | G18: 161.55 | H18: 158.90 | I18: 155.40 | J18: 167.70 | K18: 171.20 | L18: 173.85 | M18: 168.55 | N18: 162.4 | O18: 73639800 | P18: 4.83%
A19: 9 | B19: Textile | C19: ABFRL | D19: 2023-12-28 | E19: 234.90 | F19: 236.13 | G19: 230.22 | H19: 225.53 | I19: 219.62 | J19: 240.82 | K19: 246.73 | L19: 251.42 | M19: 242.05 | N19: 231.45 | O19: 30427800 | P19: -1.14%
A20: 10 | B20: Cement | C20: ACC | D20: 2023-12-28 | E20: 2144.40 | F20: 2139.83 | G20: 2109.07 | H20: 2073.73 | I20: 2042.97 | J20: 2175.17 | K20: 2205.93 | L20: 2241.27 | M20: 2170.6 | N20: 2104.5 | O20: 4630800 | P20: -0.64%
A21: 11 | B21: Others | C21: ADANIENT | D21: 2023-12-28 | E21: 2841.05 | F21: 2853.63 | G21: 2760.67 | H21: 2680.28 | I21: 2587.32 | J21: 2934.02 | K21: 3026.98 | L21: 3107.37 | M21: 2946.6 | N21: 2773.25 | O21: 11743200 | P21: 3.26%
A22: 12 | B22: Others | C22: ADANIPORTS | D22: 2023-12-28 | E22: 1028.10 | F22: 1027.57 | G22: 996.13 | H22: 964.17 | I22: 932.73 | J22: 1059.53 | K22: 1090.97 | L22: 1122.93 | M22: 1059 | N22: 995.6 | O22: 49630400 | P22: -2.14%
A23: 13 | B23: Pharma | C23: ALKEM | D23: 2023-12-28 | E23: 4768.65 | F23: 4793.23 | G23: 4705.47 | H23: 4642.28 | I23: 4554.52 | J23: 4856.42 | K23: 4944.18 | L23: 5007.37 | M23: 4881 | N23: 4730.05 | O23: 606200 | P23: -3.04%
A24: 14 | B24: Cement | C24: AMBUJACEM | D24: 2023-12-28 | E24: 497.55 | F24: 497.92 | G24: 483.83 | H24: 470.12 | I24: 456.03 | J24: 511.63 | K24: 525.72 | L24: 539.43 | M24: 512 | N24: 484.2 | O24: 54568800 | P24: 0.47%
A25: 15 | B25: Others | C25: APOLLOHOSP | D25: 2023-12-28 | E25: 5570.85 | F25: 5537.70 | G25: 5488.40 | H25: 5405.95 | I25: 5356.65 | J25: 5620.15 | K25: 5669.45 | L25: 5751.90 | M25: 5587 | N25: 5455.25 | O25: 1681125 | P25: -3.36%
A26: 16 | B26: Automobile | C26: APOLLOTYRE | D26: 2023-12-28 | E26: 460.65 | F26: 460.55 | G26: 454.60 | H26: 448.55 | I26: 442.60 | J26: 466.60 | K26: 472.55 | L26: 478.60 | M26: 466.5 | N26: 454.5 | O26: 13588100 | P26: 5.01%
A27: 17 | B27: Automobile | C27: ASHOKLEY | D27: 2023-12-28 | E27: 175.75 | F27: 176.53 | G27: 173.92 | H27: 172.08 | I27: 169.47 | J27: 178.37 | K27: 180.98 | L27: 182.82 | M27: 179.15 | N27: 174.7 | O27: 99465000 | P27: 1.97%
A28: 18 | B28: FMCG | C28: ASIANPAINT | D28: 2023-12-28 | E28: 3250.25 | F28: 3259.03 | G28: 3233.97 | H28: 3217.68 | I28: 3192.62 | J28: 3275.32 | K28: 3300.38 | L28: 3316.67 | M28: 3284.1 | N28: 3242.75 | O28: 5670000 | P28: 0.60%
A29: 19 | B29: Others | C29: ASTRAL | D29: 2023-12-28 | E29: 1934.25 | F29: 1949.28 | G29: 1905.67 | H29: 1877.08 | I29: 1833.47 | J29: 1977.87 | K29: 2021.48 | L29: 2050.07 | M29: 1992.9 | N29: 1920.7 | O29: 3008666 | P29: -2.43%
A30: 20 | B30: Others | C30: ATUL | D30: 2023-12-28 | E30: 6788.30 | F30: 6822.73 | G30: 6677.57 | H30: 6566.83 | I30: 6421.67 | J30: 6933.47 | K30: 7078.63 | L30: 7189.37 | M30: 6967.9 | N30: 6712 | O30: 222900 | P30: -2.65%
A31: 21 | B31: Banking | C31: AUBANK | D31: 2023-12-28 | E31: 742.90 | F31: 742.38 | G31: 735.27 | H31: 727.63 | I31: 720.52 | J31: 750.02 | K31: 757.13 | L31: 764.77 | M31: 749.5 | N31: 734.75 | O31: 13342000 | P31: 0.25%
A32: 22 | B32: Pharma | C32: AUROPHARMA | D32: 2023-12-28 | E32: 1022.35 | F32: 1022.45 | G32: 1007.45 | H32: 992.55 | I32: 977.55 | J32: 1037.35 | K32: 1052.35 | L32: 1067.25 | M32: 1037.45 | N32: 1007.55 | O32: 20736100 | P32: -0.65%
A33: 23 | B33: Banking | C33: AXISBANK | D33: 2023-12-28 | E33: 1137.95 | F33: 1132.03 | G33: 1123.22 | H33: 1108.48 | I33: 1099.67 | J33: 1146.77 | K33: 1155.58 | L33: 1170.32 | M33: 1140.85 | N33: 1117.3 | O33: 42941875 | P33: -1.81%
A34: 24 | B34: Automobile | C34: BAJAJ-AUTO | D34: 2023-12-28 | E34: 6096.00 | F34: 6103.85 | G34: 6052.30 | H34: 6008.60 | I34: 5957.05 | J34: 6147.55 | K34: 6199.10 | L34: 6242.80 | M34: 6155.4 | N34: 6060.15 | O34: 2318500 | P34: -1.98%
A35: 25 | B35: Finance | C35: BAJAJFINSV | D35: 2023-12-28 | E35: 1716.80 | F35: 1712.82 | G35: 1702.63 | H35: 1688.47 | I35: 1678.28 | J35: 1726.98 | K35: 1737.17 | L35: 1751.33 | M35: 1723 | N35: 1698.65 | O35: 8817000 | P35: 2.88%
A36: 26 | B36: Finance | C36: BAJFINANCE | D36: 2023-12-28 | E36: 7351.15 | F36: 7363.12 | G36: 7300.18 | H36: 7249.22 | I36: 7186.28 | J36: 7414.08 | K36: 7477.02 | L36: 7527.98 | M36: 7426.05 | N36: 7312.15 | O36: 7017625 | P36: 5.97%
A37: 27 | B37: Automobile | C37: BALKRISIND | D37: 2023-12-28 | E37: 2613.25 | F37: 2614.65 | G37: 2571.10 | H37: 2528.95 | I37: 2485.40 | J37: 2656.80 | K37: 2700.35 | L37: 2742.50 | M37: 2658.2 | N37: 2572.5 | O37: 1675800 | P37: -0.05%
A38: 28 | B38: Others | C38: BALRAMCHIN | D38: 2023-12-28 | E38: 393.70 | F38: 396.50 | G38: 380.60 | H38: 367.50 | I38: 351.60 | J38: 409.60 | K38: 425.50 | L38: 438.60 | M38: 412.4 | N38: 383.4 | O38: 13579200 | P38: -15.06%
A39: 29 | B39: Banking | C39: BANDHANBNK | D39: 2023-12-28 | E39: 238.50 | F39: 237.77 | G39: 234.93 | H39: 231.37 | I39: 228.53 | J39: 241.33 | K39: 244.17 | L39: 247.73 | M39: 240.6 | N39: 234.2 | O39: 71080000 | P39: -1.52%
A40: 30 | B40: Banking | C40: BANKBARODA | D40: 2023-12-28 | E40: 213.40 | F40: 213.22 | G40: 209.43 | H40: 205.47 | I40: 201.68 | J40: 217.18 | K40: 220.97 | L40: 224.93 | M40: 217 | N40: 209.25 | O40: 131329575 | P40: 6.14%
A41: 31 | B41: FMCG | C41: BATAINDIA | D41: 2023-12-28 | E41: 1657.90 | F41: 1657.80 | G41: 1631.10 | H41: 1604.30 | I41: 1577.60 | J41: 1684.60 | K41: 1711.30 | L41: 1738.10 | M41: 1684.5 | N41: 1631 | O41: 1790250 | P41: -0.29%
A42: 32 | B42: Capital_Goods | C42: BEL | D42: 2023-12-28 | E42: 159.45 | F42: 159.98 | G42: 157.22 | H42: 154.98 | I42: 152.22 | J42: 162.22 | K42: 164.98 | L42: 167.22 | M42: 162.75 | N42: 157.75 | O42: 68713500 | P42: -2.11%
A43: 33 | B43: FMCG | C43: BERGEPAINT | D43: 2023-12-28 | E43: 579.15 | F43: 581.70 | G43: 572.90 | H43: 566.65 | I43: 557.85 | J43: 587.95 | K43: 596.75 | L43: 603.00 | M43: 590.5 | N43: 575.45 | O43: 9439320 | P43: 0.66%
A44: 34 | B44: Automobile | C44: BHARATFORG | D44: 2023-12-28 | E44: 1180.40 | F44: 1176.98 | G44: 1170.02 | H44: 1159.63 | I44: 1152.67 | J44: 1187.37 | K44: 1194.33 | L44: 1204.72 | M44: 1183.95 | N44: 1166.6 | O44: 6514500 | P44: -2.51%
A45: 35 | B45: Telecom | C45: BHARTIARTL | D45: 2023-12-28 | E45: 1004.50 | F45: 1002.53 | G45: 998.32 | H45: 992.13 | I45: 987.92 | J45: 1008.72 | K45: 1012.93 | L45: 1019.12 | M45: 1006.75 | N45: 996.35 | O45: 34497350 | P45: 1.85%
A46: 36 | B46: Capital_Goods | C46: BHEL | D46: 2023-12-28 | E46: 177.80 | F46: 178.78 | G46: 172.72 | H46: 167.63 | I46: 161.57 | J46: 183.87 | K46: 189.93 | L46: 195.02 | M46: 184.85 | N46: 173.7 | O46: 96027750 | P46: -1.10%
A47: 37 | B47: Pharma | C47: BIOCON | D47: 2023-12-28 | E47: 240.40 | F47: 241.08 | G47: 237.12 | H47: 233.83 | I47: 229.87 | J47: 244.37 | K47: 248.33 | L47: 251.62 | M47: 245.05 | N47: 237.8 | O47: 36852500 | P47: 2.06%
A48: 38 | B48: Automobile | C48: BOSCHLTD | D48: 2023-12-28 | E48: 21690.45 | F48: 21675.03 | G48: 21505.42 | H48: 21320.38 | I48: 21150.77 | J48: 21860.07 | K48: 22029.68 | L48: 22214.72 | M48: 21844.65 | N48: 21490 | O48: 143400 | P48: -2.65%
A49: 39 | B49: Oil_Gas | C49: BPCL | D49: 2023-12-28 | E49: 471.90 | F49: 472.58 | G49: 466.32 | H49: 460.73 | I49: 454.47 | J49: 478.17 | K49: 484.43 | L49: 490.02 | M49: 478.85 | N49: 467 | O49: 33559200 | P49: 5.17%
A50: 40 | B50: FMCG | C50: BRITANNIA | D50: 2023-12-28 | E50: 4961.90 | F50: 4994.63 | G50: 4917.87 | H50: 4873.83 | I50: 4797.07 | J50: 5038.67 | K50: 5115.43 | L50: 5159.47 | M50: 5071.4 | N50: 4950.6 | O50: 1768000 | P50: -2.11%
A51: 41 | B51: Technology | C51: BSOFT | D51: 2023-12-28 | E51: 661.40 | F51: 660.37 | G51: 651.03 | H51: 640.67 | I51: 631.33 | J51: 670.73 | K51: 680.07 | L51: 690.43 | M51: 669.7 | N51: 650 | O51: 6055000 | P51: -1.59%
A52: 42 | B52: Banking | C52: CANBK | D52: 2023-12-28 | E52: 440.60 | F52: 438.38 | G52: 433.47 | H52: 426.33 | I52: 421.42 | J52: 445.52 | K52: 450.43 | L52: 457.57 | M52: 443.3 | N52: 431.25 | O52: 52847100 | P52: 0.52%
A53: 43 | B53: Finance | C53: CANFINHOME | D53: 2023-12-28 | E53: 795.15 | F53: 795.37 | G53: 783.28 | H53: 771.42 | I53: 759.33 | J53: 807.23 | K53: 819.32 | L53: 831.18 | M53: 807.45 | N53: 783.5 | O53: 5031975 | P53: 1.34%
A54: 44 | B54: Others | C54: CHAMBLFERT | D54: 2023-12-28 | E54: 343.65 | F54: 345.62 | G54: 338.03 | H54: 332.42 | I54: 324.83 | J54: 351.23 | K54: 358.82 | L54: 364.43 | M54: 353.2 | N54: 340 | O54: 13756000 | P54: -1.36%
A55: 45 | B55: Finance | C55: CHOLAFIN | D55: 2023-12-28 | E55: 1170.85 | F55: 1159.93 | G55: 1142.77 | H55: 1114.68 | I55: 1097.52 | J55: 1188.02 | K55: 1205.18 | L55: 1233.27 | M55: 1177.1 | N55: 1131.85 | O55: 12161250 | P55: -3.06%
A56: 46 | B56: Pharma | C56: CIPLA | D56: 2023-12-28 | E56: 1222.35 | F56: 1222.85 | G56: 1209.75 | H56: 1197.15 | I56: 1184.05 | J56: 1235.45 | K56: 1248.55 | L56: 1261.15 | M56: 1235.95 | N56: 1210.25 | O56: 10465650 | P56: -0.46%
A57: 47 | B57: Others | C57: COALINDIA | D57: 2023-12-28 | E57: 352.95 | F57: 353.85 | G57: 347.35 | H57: 341.75 | I57: 335.25 | J57: 359.45 | K57: 365.95 | L57: 371.55 | M57: 360.35 | N57: 348.25 | O57: 56767200 | P57: -1.12%
A58: 48 | B58: Technology | C58: COFORGE | D58: 2023-12-28 | E58: 5803.40 | F58: 5827.13 | G58: 5699.27 | H58: 5595.13 | I58: 5467.27 | J58: 5931.27 | K58: 6059.13 | L58: 6163.27 | M58: 5955 | N58: 5723 | O58: 1229850 | P58: 10.10%
A59: 49 | B59: FMCG | C59: COLPAL | D59: 2023-12-28 | E59: 2299.00 | F59: 2297.67 | G59: 2281.03 | H59: 2263.07 | I59: 2246.43 | J59: 2315.63 | K59: 2332.27 | L59: 2350.23 | M59: 2314.3 | N59: 2279.7 | O59: 4215750 | P59: -1.61%
A60: 50 | B60: Others | C60: CONCOR | D60: 2023-12-28 | E60: 844.60 | F60: 845.92 | G60: 830.83 | H60: 817.07 | I60: 801.98 | J60: 859.68 | K60: 874.77 | L60: 888.53 | M60: 861 | N60: 832.15 | O60: 6709000 | P60: -4.42%
A61: 51 | B61: Others | C61: COROMANDEL | D61: 2023-12-28 | E61: 1223.80 | F61: 1226.20 | G61: 1211.00 | H61: 1198.20 | I61: 1183.00 | J61: 1239.00 | K61: 1254.20 | L61: 1267.00 | M61: 1241.4 | N61: 1213.4 | O61: 1439900 | P61: -1.15%
A62: 52 | B62: Capital_Goods | C62: CROMPTON | D62: 2023-12-28 | E62: 300.25 | F62: 302.15 | G62: 296.70 | H62: 293.15 | I62: 287.70 | J62: 305.70 | K62: 311.15 | L62: 314.70 | M62: 307.6 | N62: 298.6 | O62: 12016800 | P62: -2.07%
A63: 53 | B63: Banking | C63: CUB | D63: 2023-12-28 | E63: 156.45 | F63: 155.73 | G63: 154.42 | H63: 152.38 | I63: 151.07 | J63: 157.77 | K63: 159.08 | L63: 161.12 | M63: 157.05 | N63: 153.7 | O63: 30505000 | P63: -0.59%
A64: 54 | B64: Capital_Goods | C64: CUMMINSIND | D64: 2023-12-28 | E64: 1953.50 | F64: 1955.00 | G64: 1932.50 | H64: 1911.50 | I64: 1889.00 | J64: 1976.00 | K64: 1998.50 | L64: 2019.50 | M64: 1977.5 | N64: 1934 | O64: 3531300 | P64: 0.16%
A65: 55 | B65: FMCG | C65: DABUR | D65: 2023-12-28 | E65: 549.45 | F65: 551.45 | G65: 545.15 | H65: 540.85 | I65: 534.55 | J65: 555.75 | K65: 562.05 | L65: 566.35 | M65: 557.75 | N65: 547.15 | O65: 18128750 | P65: -2.87%
A66: 56 | B66: Cement | C66: DALBHARAT | D66: 2023-12-28 | E66: 2343.60 | F66: 2346.47 | G66: 2302.93 | H66: 2262.27 | I66: 2218.73 | J66: 2387.13 | K66: 2430.67 | L66: 2471.33 | M66: 2390 | N66: 2305.8 | O66: 2569250 | P66: 1.15%
A67: 57 | B67: Chemical | C67: DEEPAKNTR | D67: 2023-12-28 | E67: 2223.40 | F67: 2233.13 | G67: 2177.27 | H67: 2131.13 | I67: 2075.27 | J67: 2279.27 | K67: 2335.13 | L67: 2381.27 | M67: 2289 | N67: 2187 | O67: 2584200 | P67: 0.95%
A68: 58 | B68: Others | C68: DELTACORP | D68: 2023-12-28 | E68: 137.75 | F68: 138.73 | G68: 135.57 | H68: 133.38 | I68: 130.22 | J68: 140.92 | K68: 144.08 | L68: 146.27 | M68: 141.9 | N68: 136.55 | O68: 17311000 | P68: -5.42%
A69: 59 | B69: Pharma | C69: DIVISLAB | D69: 2023-12-28 | E69: 3703.55 | F69: 3717.80 | G69: 3665.75 | H69: 3627.95 | I69: 3575.90 | J69: 3755.60 | K69: 3807.65 | L69: 3845.45 | M69: 3769.85 | N69: 3680 | O69: 2806600 | P69: 0.57%
A70: 60 | B70: Others | C70: DIXON | D70: 2023-12-28 | E70: 5998.40 | F70: 5996.95 | G70: 5914.95 | H70: 5831.50 | I70: 5749.50 | J70: 6080.40 | K70: 6162.40 | L70: 6245.85 | M70: 6078.95 | N70: 5913.5 | O70: 1168400 | P70: -2.92%
A71: 61 | B71: Realty | C71: DLF | D71: 2023-12-28 | E71: 651.85 | F71: 653.70 | G71: 641.40 | H71: 630.95 | I71: 618.65 | J71: 664.15 | K71: 676.45 | L71: 686.90 | M71: 666 | N71: 643.25 | O71: 42256500 | P71: -0.08%
A72: 62 | B72: Pharma | C72: DRREDDY | D72: 2023-12-28 | E72: 5780.85 | F72: 5774.63 | G72: 5734.87 | H72: 5688.88 | I72: 5649.12 | J72: 5820.62 | K72: 5860.38 | L72: 5906.37 | M72: 5814.4 | N72: 5728.65 | O72: 2757875 | P72: 0.10%
A73: 63 | B73: Automobile | C73: EICHERMOT | D73: 2023-12-28 | E73: 4078.65 | F73: 4083.78 | G73: 4039.87 | H73: 4001.08 | I73: 3957.17 | J73: 4122.57 | K73: 4166.48 | L73: 4205.27 | M73: 4127.7 | N73: 4045 | O73: 3334975 | P73: -1.05%
A74: 64 | B74: Automobile | C74: ESCORTS | D74: 2023-12-28 | E74: 3158.20 | F74: 3185.80 | G74: 3092.65 | H74: 3027.10 | I74: 2933.95 | J74: 3251.35 | K74: 3344.50 | L74: 3410.05 | M74: 3278.95 | N74: 3120.25 | O74: 2622125 | P74: 3.17%
A75: 65 | B75: Automobile | C75: EXIDEIND | D75: 2023-12-28 | E75: 291.40 | F75: 293.47 | G75: 286.38 | H75: 281.37 | I75: 274.28 | J75: 298.48 | K75: 305.57 | L75: 310.58 | M75: 300.55 | N75: 288.45 | O75: 19962000 | P75: 0.51%
A76: 66 | B76: Banking | C76: FEDERALBNK | D76: 2023-12-28 | E76: 155.45 | F76: 155.07 | G76: 153.93 | H76: 152.42 | I76: 151.28 | J76: 156.58 | K76: 157.72 | L76: 159.23 | M76: 156.2 | N76: 153.55 | O76: 95425000 | P76: -0.84%
A77: 67 | B77: Oil_Gas | C77: GAIL | D77: 2023-12-28 | E77: 140.85 | F77: 141.32 | G77: 137.13 | H77: 133.42 | I77: 129.23 | J77: 145.03 | K77: 149.22 | L77: 152.93 | M77: 145.5 | N77: 137.6 | O77: 163409850 | P77: -2.01%
A78: 68 | B78: Pharma | C78: GLENMARK | D78: 2023-12-28 | E78: 800.85 | F78: 806.32 | G78: 783.68 | H78: 766.52 | I78: 743.88 | J78: 823.48 | K78: 846.12 | L78: 863.28 | M78: 828.95 | N78: 789.15 | O78: 12599775 | P78: 3.00%
A79: 69 | B79: Infrastructure | C79: GMRINFRA | D79: 2023-12-28 | E79: 69.40 | F79: 66.40 | G79: 62.15 | H79: 54.90 | I79: 50.65 | J79: 73.65 | K79: 77.90 | L79: 85.15 | M79: 70.65 | N79: 59.15 | O79: 223256250 | P79: 53.53%
A80: 70 | B80: Others | C80: GNFC | D80: 2023-12-28 | E80: 722.35 | F80: 727.23 | G80: 707.52 | H80: 692.68 | I80: 672.97 | J80: 742.07 | K80: 761.78 | L80: 776.62 | M80: 746.95 | N80: 712.4 | O80: 8044400 | P80: -1.54%
A81: 71 | B81: FMCG | C81: GODREJCP | D81: 2023-12-28 | E81: 1027.40 | F81: 1026.92 | G81: 1020.83 | H81: 1014.27 | I81: 1008.18 | J81: 1033.48 | K81: 1039.57 | L81: 1046.13 | M81: 1033 | N81: 1020.35 | O81: 8750000 | P81: 0.86%
A82: 72 | B82: Realty | C82: GODREJPROP | D82: 2023-12-28 | E82: 1935.00 | F82: 1935.30 | G82: 1907.25 | H82: 1879.50 | I82: 1851.45 | J82: 1963.05 | K82: 1991.10 | L82: 2018.85 | M82: 1963.35 | N82: 1907.55 | O82: 3560600 | P82: -0.23%
A83: 73 | B83: Pharma | C83: GRANULES | D83: 2023-12-28 | E83: 390.25 | F83: 392.52 | G83: 383.78 | H83: 377.32 | I83: 368.58 | J83: 398.98 | K83: 407.72 | L83: 414.18 | M83: 401.25 | N83: 386.05 | O83: 10874000 | P83: -1.52%
A84: 74 | B84: Cement | C84: GRASIM | D84: 2023-12-28 | E84: 2075.80 | F84: 2079.03 | G84: 2051.77 | H84: 2027.73 | I84: 2000.47 | J84: 2103.07 | K84: 2130.33 | L84: 2154.37 | M84: 2106.3 | N84: 2055 | O84: 9556050 | P84: -0.93%
A85: 75 | B85: Oil_Gas | C85: GUJGASLTD | D85: 2023-12-28 | E85: 443.05 | F85: 444.30 | G85: 439.25 | H85: 435.45 | I85: 430.40 | J85: 448.10 | K85: 453.15 | L85: 456.95 | M85: 449.35 | N85: 440.5 | O85: 7486250 | P85: 2.64%
A86: 76 | B86: Others | C86: HAL | D86: 2023-12-28 | E86: 2744.25 | F86: 2744.50 | G86: 2695.00 | H86: 2645.75 | I86: 2596.25 | J86: 2793.75 | K86: 2843.25 | L86: 2892.50 | M86: 2794 | N86: 2695.25 | O86: 6980100 | P86: -1.76%
A87: 77 | B87: Capital_Goods | C87: HAVELLS | D87: 2023-12-28 | E87: 1348.60 | F87: 1348.25 | G87: 1334.60 | H87: 1320.60 | I87: 1306.95 | J87: 1362.25 | K87: 1375.90 | L87: 1389.90 | M87: 1361.9 | N87: 1334.25 | O87: 6044000 | P87: -1.67%
A88: 78 | B88: Technology | C88: HCLTECH | D88: 2023-12-28 | E88: 1372.60 | F88: 1361.42 | G88: 1345.23 | H88: 1317.87 | I88: 1301.68 | J88: 1388.78 | K88: 1404.97 | L88: 1432.33 | M88: 1377.6 | N88: 1334.05 | O88: 13313300 | P88: 2.87%
A89: 79 | B89: Finance | C89: HDFCAMC | D89: 2023-12-28 | E89: 2997.35 | F89: 2999.88 | G89: 2974.77 | H89: 2952.18 | I89: 2927.07 | J89: 3022.47 | K89: 3047.58 | L89: 3070.17 | M89: 3025 | N89: 2977.3 | O89: 2801700 | P89: 2.23%
A90: 80 | B90: Banking | C90: HDFCBANK | D90: 2023-12-28 | E90: 1661.05 | F90: 1654.28 | G90: 1644.77 | H90: 1628.48 | I90: 1618.97 | J90: 1670.57 | K90: 1680.08 | L90: 1696.37 | M90: 1663.8 | N90: 1638 | O90: 124683900 | P90: -1.41%
A91: 81 | B91: Finance | C91: HDFCLIFE | D91: 2023-12-28 | E91: 673.30 | F91: 676.82 | G91: 666.13 | H91: 658.97 | I91: 648.28 | J91: 683.98 | K91: 694.67 | L91: 701.83 | M91: 687.5 | N91: 669.65 | O91: 16596800 | P91: 0.42%
A92: 82 | B92: Automobile | C92: HEROMOTOCO | D92: 2023-12-28 | E92: 3736.35 | F92: 3753.18 | G92: 3688.62 | H92: 3640.88 | I92: 3576.32 | J92: 3800.92 | K92: 3865.48 | L92: 3913.22 | M92: 3817.75 | N92: 3705.45 | O92: 3813300 | P92: -1.33%
A93: 83 | B93: Metals | C93: HINDALCO | D93: 2023-12-28 | E93: 522.75 | F93: 521.98 | G93: 516.47 | H93: 510.18 | I93: 504.67 | J93: 528.27 | K93: 533.78 | L93: 540.07 | M93: 527.5 | N93: 515.7 | O93: 39667600 | P93: 0.70%
A94: 84 | B94: Metals | C94: HINDCOPPER | D94: 2023-12-28 | E94: 187.10 | F94: 187.98 | G94: 183.07 | H94: 179.03 | I94: 174.12 | J94: 192.02 | K94: 196.93 | L94: 200.97 | M94: 192.9 | N94: 183.95 | O94: 48134600 | P94: 21.55%
A95: 85 | B95: Oil_Gas | C95: HINDPETRO | D95: 2023-12-28 | E95: 379.60 | F95: 380.82 | G95: 373.28 | H95: 366.97 | I95: 359.43 | J95: 387.13 | K95: 394.67 | L95: 400.98 | M95: 388.35 | N95: 374.5 | O95: 38342700 | P95: -1.52%
A96: 86 | B96: FMCG | C96: HINDUNILVR | D96: 2023-12-28 | E96: 2533.65 | F96: 2533.93 | G96: 2521.37 | H96: 2509.08 | I96: 2496.52 | J96: 2546.22 | K96: 2558.78 | L96: 2571.07 | M96: 2546.5 | N96: 2521.65 | O96: 10560000 | P96: 0.41%
A97: 87 | B97: Finance | C97: IBULHSGFIN | D97: 2023-12-28 | E97: 202.25 | F97: 202.50 | G97: 196.45 | H97: 190.65 | I97: 184.60 | J97: 208.30 | K97: 214.35 | L97: 220.15 | M97: 208.55 | N97: 196.7 | O97: 58675500 | P97: -2.73%
A98: 88 | B98: Banking | C98: ICICIBANK | D98: 2023-12-28 | E98: 1015.90 | F98: 1010.65 | G98: 1003.35 | H98: 990.80 | I98: 983.50 | J98: 1023.20 | K98: 1030.50 | L98: 1043.05 | M98: 1017.95 | N98: 998.1 | O98: 80557400 | P98: -2.51%
A99: 89 | B99: Finance | C99: ICICIGI | D99: 2023-12-28 | E99: 1455.15 | F99: 1453.10 | G99: 1446.05 | H99: 1436.95 | I99: 1429.90 | J99: 1462.20 | K99: 1469.25 | L99: 1478.35 | M99: 1460.15 | N99: 1444 | O99: 2780000 | P99: -1.09%
A100: 90 | B100: Finance | C100: ICICIPRULI | D100: 2023-12-28 | E100: 545.75 | F100: 545.82 | G100: 540.53 | H100: 535.32 | I100: 530.03 | J100: 551.03 | K100: 556.32 | L100: 561.53 | M100: 551.1 | N100: 540.6 | O100: 11637000 | P100: 0.81%
A101: 91 | B101: Telecom | C101: IDEA | D101: 2023-12-28 | E101: 12.95 | F101: 13.02 | G101: 12.63 | H101: 12.32 | I101: 11.93 | J101: 13.33 | K101: 13.72 | L101: 14.03 | M101: 13.4 | N101: 12.7 | O101: 1805120000 | P101: 0.53%
A102: 92 | B102: Finance | C102: IDFC | D102: 2023-12-28 | E102: 123.05 | F102: 123.02 | G102: 121.08 | H102: 119.12 | I102: 117.18 | J102: 124.98 | K102: 126.92 | L102: 128.88 | M102: 124.95 | N102: 121.05 | O102: 75370000 | P102: 0.37%
A103: 93 | B103: Banking | C103: IDFCFIRSTB | D103: 2023-12-28 | E103: 88.40 | F103: 88.25 | G103: 86.70 | H103: 85.00 | I103: 83.45 | J103: 89.95 | K103: 91.50 | L103: 93.20 | M103: 89.8 | N103: 86.55 | O103: 301695000 | P103: 0.38%
A104: 94 | B104: Others | C104: IEX | D104: 2023-12-28 | E104: 153.35 | F104: 154.98 | G104: 149.12 | H104: 144.88 | I104: 139.02 | J104: 159.22 | K104: 165.08 | L104: 169.32 | M104: 160.85 | N104: 150.75 | O104: 66551250 | P104: -0.71%
A105: 95 | B105: Oil_Gas | C105: IGL | D105: 2023-12-28 | E105: 403.45 | F105: 405.20 | G105: 397.50 | H105: 391.55 | I105: 383.85 | J105: 411.15 | K105: 418.85 | L105: 424.80 | M105: 412.9 | N105: 399.25 | O105: 18180250 | P105: 3.96%
A106: 96 | B106: Infrastructure | C106: INDHOTEL | D106: 2023-12-28 | E106: 436.60 | F106: 437.82 | G106: 432.08 | H106: 427.57 | I106: 421.83 | J106: 442.33 | K106: 448.07 | L106: 452.58 | M106: 443.55 | N106: 433.3 | O106: 18688000 | P106: -2.81%
A107: 97 | B107: Cement | C107: INDIACEM | D107: 2023-12-28 | E107: 272.25 | F107: 267.72 | G107: 260.48 | H107: 248.72 | I107: 241.48 | J107: 279.48 | K107: 286.72 | L107: 298.48 | M107: 274.95 | N107: 255.95 | O107: 22240100 | P107: -9.39%
A108: 98 | B108: Others | C108: INDIAMART | D108: 2023-12-28 | E108: 2684.95 | F108: 2694.15 | G108: 2646.05 | H108: 2607.15 | I108: 2559.05 | J108: 2733.05 | K108: 2781.15 | L108: 2820.05 | M108: 2742.25 | N108: 2655.25 | O108: 1478400 | P108: 0.92%
A109: 99 | B109: Others | C109: INDIGO | D109: 2023-12-28 | E109: 2908.75 | F109: 2912.68 | G109: 2877.37 | H109: 2845.98 | I109: 2810.67 | J109: 2944.07 | K109: 2979.38 | L109: 3010.77 | M109: 2948 | N109: 2881.3 | O109: 6052200 | P109: -3.91%
A110: 100 | B110: Banking | C110: INDUSINDBK | D110: 2023-12-28 | E110: 1517.40 | F110: 1515.73 | G110: 1502.57 | H110: 1487.73 | I110: 1474.57 | J110: 1530.57 | K110: 1543.73 | L110: 1558.57 | M110: 1528.9 | N110: 1500.9 | O110: 19802500 | P110: -3.38%
A111: 101 | B111: Telecom | C111: INDUSTOWER | D111: 2023-12-28 | E111: 191.55 | F111: 192.08 | G111: 187.82 | H111: 184.08 | I111: 179.82 | J111: 195.82 | K111: 200.08 | L111: 203.82 | M111: 196.35 | N111: 188.35 | O111: 74140400 | P111: 0.93%
A112: 102 | B112: Technology | C112: INFY | D112: 2023-12-28 | E112: 1499.55 | F112: 1492.20 | G112: 1482.35 | H112: 1465.15 | I112: 1455.30 | J112: 1509.40 | K112: 1519.25 | L112: 1536.45 | M112: 1502.05 | N112: 1475 | O112: 27023600 | P112: 0.05%
A113: 103 | B113: Oil_Gas | C113: IOC | D113: 2023-12-28 | E113: 119.50 | F113: 120.05 | G113: 117.30 | H113: 115.10 | I113: 112.35 | J113: 122.25 | K113: 125.00 | L113: 127.20 | M113: 122.8 | N113: 117.85 | O113: 141872250 | P113: -0.10%
A114: 104 | B114: Pharma | C114: IPCALAB | D114: 2023-12-28 | E114: 1121.60 | F114: 1124.78 | G114: 1105.82 | H114: 1090.03 | I114: 1071.07 | J114: 1140.57 | K114: 1159.53 | L114: 1175.32 | M114: 1143.75 | N114: 1109 | O114: 1963650 | P114: -0.69%
A115: 105 | B115: Others | C115: IRCTC | D115: 2023-12-28 | E115: 752.85 | F115: 756.08 | G115: 738.37 | H115: 723.88 | I115: 706.17 | J115: 770.57 | K115: 788.28 | L115: 802.77 | M115: 773.8 | N115: 741.6 | O115: 16517375 | P115: -1.25%
A116: 106 | B116: FMCG | C116: ITC | D116: 2023-12-28 | E116: 451.80 | F116: 455.47 | G116: 447.43 | H116: 443.07 | I116: 435.03 | J116: 459.83 | K116: 467.87 | L116: 472.23 | M116: 463.5 | N116: 451.1 | O116: 76264000 | P116: 7.09%
A117: 107 | B117: Metals | C117: JINDALSTEL | D117: 2023-12-28 | E117: 690.25 | F117: 690.48 | G117: 679.42 | H117: 668.58 | I117: 657.52 | J117: 701.32 | K117: 712.38 | L117: 723.22 | M117: 701.55 | N117: 679.65 | O117: 25858750 | P117: 0.29%
A118: 108 | B118: Cement | C118: JKCEMENT | D118: 2023-12-28 | E118: 3808.55 | F118: 3791.05 | G118: 3759.80 | H118: 3711.05 | I118: 3679.80 | J118: 3839.80 | K118: 3871.05 | L118: 3919.80 | M118: 3822.3 | N118: 3742.3 | O118: 553250 | P118: 0.36%
A119: 109 | B119: Metals | C119: JSWSTEEL | D119: 2023-12-28 | E119: 844.10 | F119: 842.90 | G119: 828.20 | H119: 812.30 | I119: 797.60 | J119: 858.80 | K119: 873.50 | L119: 889.40 | M119: 857.6 | N119: 827 | O119: 14783175 | P119: 3.11%
A120: 110 | B120: Others | C120: JUBLFOOD | D120: 2023-12-28 | E120: 557.20 | F120: 558.13 | G120: 551.72 | H120: 546.23 | I120: 539.82 | J120: 563.62 | K120: 570.03 | L120: 575.52 | M120: 564.55 | N120: 552.65 | O120: 23095000 | P120: -1.67%
A121: 111 | B121: Banking | C121: KOTAKBANK | D121: 2023-12-28 | E121: 1846.50 | F121: 1841.83 | G121: 1829.67 | H121: 1812.83 | I121: 1800.67 | J121: 1858.67 | K121: 1870.83 | L121: 1887.67 | M121: 1854 | N121: 1825 | O121: 26956800 | P121: -3.25%
A122: 112 | B122: Finance | C122: L&TFH | D122: 2023-12-28 | E122: 154.60 | F122: 154.63 | G122: 152.02 | H122: 149.43 | I122: 146.82 | J122: 157.22 | K122: 159.83 | L122: 162.42 | M122: 157.25 | N122: 152.05 | O122: 54949530 | P122: 0.74%
A123: 113 | B123: Others | C123: LALPATHLAB | D123: 2023-12-28 | E123: 2650.15 | F123: 2663.40 | G123: 2605.10 | H123: 2560.05 | I123: 2501.75 | J123: 2708.45 | K123: 2766.75 | L123: 2811.80 | M123: 2721.7 | N123: 2618.35 | O123: 1010400 | P123: -2.18%
A124: 114 | B124: Pharma | C124: LAURUSLABS | D124: 2023-12-28 | E124: 385.40 | F124: 388.55 | G124: 379.30 | H124: 373.20 | I124: 363.95 | J124: 394.65 | K124: 403.90 | L124: 410.00 | M124: 397.8 | N124: 382.45 | O124: 12661600 | P124: -0.60%
A125: 115 | B125: Finance | C125: LICHSGFIN | D125: 2023-12-28 | E125: 535.05 | F125: 534.07 | G125: 522.43 | H125: 509.82 | I125: 498.18 | J125: 546.68 | K125: 558.32 | L125: 570.93 | M125: 545.7 | N125: 521.45 | O125: 21480000 | P125: -1.80%
A126: 116 | B126: Capital_Goods | C126: LT | D126: 2023-12-28 | E126: 3397.15 | F126: 3409.23 | G126: 3370.97 | H126: 3344.78 | I126: 3306.52 | J126: 3435.42 | K126: 3473.68 | L126: 3499.87 | M126: 3447.5 | N126: 3383.05 | O126: 9490200 | P126: 1.51%
A127: 117 | B127: Technology | C127: LTIM | D127: 2023-12-28 | E127: 5726.90 | F127: 5706.35 | G127: 5631.70 | H127: 5536.50 | I127: 5461.85 | J127: 5801.55 | K127: 5876.20 | L127: 5971.40 | M127: 5781 | N127: 5611.15 | O127: 1570050 | P127: -0.69%
A128: 118 | B128: Technology | C128: LTTS | D128: 2023-12-28 | E128: 4948.90 | F128: 4944.12 | G128: 4890.23 | H128: 4831.57 | I128: 4777.68 | J128: 5002.78 | K128: 5056.67 | L128: 5115.33 | M128: 4998 | N128: 4885.45 | O128: 633200 | P128: -7.05%
A129: 119 | B129: Pharma | C129: LUPIN | D129: 2023-12-28 | E129: 1245.55 | F129: 1248.43 | G129: 1234.07 | H129: 1222.58 | I129: 1208.22 | J129: 1259.92 | K129: 1274.28 | L129: 1285.77 | M129: 1262.8 | N129: 1236.95 | O129: 10114150 | P129: -0.27%
A130: 120 | B130: Automobile | C130: M&M | D130: 2023-12-28 | E130: 1675.55 | F130: 1685.97 | G130: 1658.48 | H130: 1641.42 | I130: 1613.93 | J130: 1703.03 | K130: 1730.52 | L130: 1747.58 | M130: 1713.45 | N130: 1668.9 | O130: 14962500 | P130: -0.25%
A131: 121 | B131: Finance | C131: M&MFIN | D131: 2023-12-28 | E131: 271.85 | F131: 272.10 | G131: 267.10 | H131: 262.35 | I131: 257.35 | J131: 276.85 | K131: 281.85 | L131: 286.60 | M131: 277.1 | N131: 267.35 | O131: 33132000 | P131: 3.69%
A132: 122 | B132: Finance | C132: MANAPPURAM | D132: 2023-12-28 | E132: 164.60 | F132: 165.63 | G132: 161.52 | H132: 158.43 | I132: 154.32 | J132: 168.72 | K132: 172.83 | L132: 175.92 | M132: 169.75 | N132: 162.55 | O132: 69420000 | P132: -0.39%
A133: 123 | B133: FMCG | C133: MARICO | D133: 2023-12-28 | E133: 533.15 | F133: 534.13 | G133: 529.12 | H133: 525.08 | I133: 520.07 | J133: 538.17 | K133: 543.18 | L133: 547.22 | M133: 539.15 | N133: 530.1 | O133: 11437200 | P133: 1.61%
A134: 124 | B134: Automobile | C134: MARUTI | D134: 2023-12-28 | E134: 10655.85 | F134: 10680.43 | G134: 10560.87 | H134: 10465.88 | I134: 10346.32 | J134: 10775.42 | K134: 10894.98 | L134: 10989.97 | M134: 10800 | N134: 10585.45 | O134: 2640250 | P134: 1.37%
A135: 125 | B135: FMCG | C135: MCDOWELL-N | D135: 2023-12-28 | E135: 1048.55 | F135: 1054.27 | G135: 1029.28 | H135: 1010.02 | I135: 985.03 | J135: 1073.53 | K135: 1098.52 | L135: 1117.78 | M135: 1079.25 | N135: 1035 | O135: 9692900 | P135: 0.25%
A136: 126 | B136: Others | C136: MCX | D136: 2023-12-28 | E136: 3200.80 | F136: 3250.15 | G136: 3140.30 | H136: 3079.80 | I136: 2969.95 | J136: 3310.65 | K136: 3420.50 | L136: 3481.00 | M136: 3360 | N136: 3189.65 | O136: 2728800 | P136: 4.30%
A137: 127 | B137: Pharma | C137: METROPOLIS | D137: 2023-12-28 | E137: 1663.25 | F137: 1667.55 | G137: 1646.70 | H137: 1630.15 | I137: 1609.30 | J137: 1684.10 | K137: 1704.95 | L137: 1721.50 | M137: 1688.4 | N137: 1651 | O137: 1064000 | P137: -0.75%
A138: 128 | B138: Finance | C138: MFSL | D138: 2023-12-28 | E138: 1040.60 | F138: 1039.18 | G138: 1031.92 | H138: 1023.23 | I138: 1015.97 | J138: 1047.87 | K138: 1055.13 | L138: 1063.82 | M138: 1046.45 | N138: 1030.5 | O138: 6275200 | P138: -0.51%
A139: 129 | B139: Oil_Gas | C139: MGL | D139: 2023-12-28 | E139: 1159.55 | F139: 1161.27 | G139: 1140.68 | H139: 1121.82 | I139: 1101.23 | J139: 1180.13 | K139: 1200.72 | L139: 1219.58 | M139: 1181.85 | N139: 1142.4 | O139: 2226400 | P139: -2.45%
A140: 130 | B140: Automobile | C140: MOTHERSON | D140: 2023-12-28 | E140: 95.50 | F140: 94.92 | G140: 93.88 | H140: 92.27 | I140: 91.23 | J140: 96.53 | K140: 97.57 | L140: 99.18 | M140: 95.95 | N140: 93.3 | O140: 92626600 | P140: -0.54%
A141: 131 | B141: Technology | C141: MPHASIS | D141: 2023-12-28 | E141: 2440.00 | F141: 2438.23 | G141: 2410.47 | H141: 2380.93 | I141: 2353.17 | J141: 2467.77 | K141: 2495.53 | L141: 2525.07 | M141: 2466 | N141: 2408.7 | O141: 2455750 | P141: -1.04%
A142: 132 | B142: Automobile | C142: MRF | D142: 2023-12-28 | E142: 118253.45 | F142: 118074.25 | G142: 117538.20 | H142: 116822.95 | I142: 116286.90 | J142: 118789.50 | K142: 119325.55 | L142: 120040.80 | M142: 118610.3 | N142: 117359 | O142: 37070 | P142: -2.10%
A143: 133 | B143: Finance | C143: MUTHOOTFIN | D143: 2023-12-28 | E143: 1443.65 | F143: 1444.98 | G143: 1422.82 | H143: 1401.98 | I143: 1379.82 | J143: 1465.82 | K143: 1487.98 | L143: 1508.82 | M143: 1467.15 | N143: 1424.15 | O143: 6788100 | P143: -0.80%
A144: 134 | B144: Metals | C144: NATIONALUM | D144: 2023-12-28 | E144: 97.75 | F144: 97.77 | G144: 95.13 | H144: 92.52 | I144: 89.88 | J144: 100.38 | K144: 103.02 | L144: 105.63 | M144: 100.4 | N144: 95.15 | O144: 87990000 | P144: -6.89%
A145: 135 | B145: Others | C145: NAUKRI | D145: 2023-12-28 | E145: 4759.00 | F145: 4771.93 | G145: 4681.67 | H145: 4604.33 | I145: 4514.07 | J145: 4849.27 | K145: 4939.53 | L145: 5016.87 | M145: 4862.2 | N145: 4694.6 | O145: 1431750 | P145: -1.56%
A146: 136 | B146: Chemical | C146: NAVINFLUOR | D146: 2023-12-28 | E146: 3813.80 | F146: 3807.37 | G146: 3774.78 | H146: 3735.77 | I146: 3703.18 | J146: 3846.38 | K146: 3878.97 | L146: 3917.98 | M146: 3839.95 | N146: 3768.35 | O146: 800100 | P146: -3.82%
A147: 137 | B147: FMCG | C147: NESTLEIND | D147: 2023-12-28 | E147: 24935.70 | F147: 25038.93 | G147: 24807.87 | H147: 24680.03 | I147: 24448.97 | J147: 25166.77 | K147: 25397.83 | L147: 25525.67 | M147: 25270 | N147: 24911.1 | O147: 374920 | P147: 2.95%
A148: 138 | B148: Metals | C148: NMDC | D148: 2023-12-28 | E148: 184.65 | F148: 185.40 | G148: 180.90 | H148: 177.15 | I148: 172.65 | J148: 189.15 | K148: 193.65 | L148: 197.40 | M148: 189.9 | N148: 181.65 | O148: 85729500 | P148: 3.37%
A149: 139 | B149: Power | C149: NTPC | D149: 2023-12-28 | E149: 286.35 | F149: 286.98 | G149: 281.07 | H149: 275.78 | I149: 269.87 | J149: 292.27 | K149: 298.18 | L149: 303.47 | M149: 292.9 | N149: 281.7 | O149: 105984000 | P149: 0.12%
A150: 140 | B150: Realty | C150: OBEROIRLTY | D150: 2023-12-28 | E150: 1452.40 | F150: 1459.47 | G150: 1433.93 | H150: 1415.47 | I150: 1389.93 | J150: 1477.93 | K150: 1503.47 | L150: 1521.93 | M150: 1485 | N150: 1441 | O150: 8458100 | P150: -3.49%
A151: 141 | B151: Technology | C151: OFSS | D151: 2023-12-28 | E151: 4154.65 | F151: 4164.20 | G151: 4120.60 | H151: 4086.55 | I151: 4042.95 | J151: 4198.25 | K151: 4241.85 | L151: 4275.90 | M151: 4207.8 | N151: 4130.15 | O151: 659400 | P151: 3.71%
A152: 142 | B152: Oil_Gas | C152: ONGC | D152: 2023-12-28 | E152: 196.90 | F152: 197.67 | G152: 194.13 | H152: 191.37 | I152: 187.83 | J152: 200.43 | K152: 203.97 | L152: 206.73 | M152: 201.2 | N152: 194.9 | O152: 55416900 | P152: 3.02%
A153: 143 | B153: Textile | C153: PAGEIND | D153: 2023-12-28 | E153: 37498.10 | F153: 37595.03 | G153: 37183.07 | H153: 36868.03 | I153: 36456.07 | J153: 37910.07 | K153: 38322.03 | L153: 38637.07 | M153: 38007 | N153: 37280 | O153: 177615 | P153: -0.26%
A154: 144 | B154: Pharma | C154: PEL | D154: 2023-12-28 | E154: 922.80 | F154: 923.80 | G154: 912.60 | H154: 902.40 | I154: 891.20 | J154: 934.00 | K154: 945.20 | L154: 955.40 | M154: 935 | N154: 913.6 | O154: 12046500 | P154: 1.08%
A155: 145 | B155: Technology | C155: PERSISTENT | D155: 2023-12-28 | E155: 6465.10 | F155: 6431.78 | G155: 6341.62 | H155: 6218.13 | I155: 6127.97 | J155: 6555.27 | K155: 6645.43 | L155: 6768.92 | M155: 6521.95 | N155: 6308.3 | O155: 2300450 | P155: -3.05%
A156: 146 | B156: Oil_Gas | C156: PETRONET | D156: 2023-12-28 | E156: 210.60 | F156: 210.93 | G156: 206.87 | H156: 203.13 | I156: 199.07 | J156: 214.67 | K156: 218.73 | L156: 222.47 | M156: 215 | N156: 207.2 | O156: 46245000 | P156: -2.04%
A157: 147 | B157: Finance | C157: PFC | D157: 2023-12-28 | E157: 387.35 | F157: 386.78 | G157: 380.62 | H157: 373.88 | I157: 367.72 | J157: 393.52 | K157: 399.68 | L157: 406.42 | M157: 392.95 | N157: 380.05 | O157: 55951125 | P157: 0.35%
A158: 148 | B158: FMCG | C158: PIDILITIND | D158: 2023-12-28 | E158: 2575.70 | F158: 2586.17 | G158: 2543.18 | H158: 2510.67 | I158: 2467.68 | J158: 2618.68 | K158: 2661.67 | L158: 2694.18 | M158: 2629.15 | N158: 2553.65 | O158: 2500500 | P158: 1.02%
A159: 149 | B159: Chemical | C159: PIIND | D159: 2023-12-28 | E159: 3854.30 | F159: 3859.62 | G159: 3807.23 | H159: 3760.17 | I159: 3707.78 | J159: 3906.68 | K159: 3959.07 | L159: 4006.13 | M159: 3912 | N159: 3812.55 | O159: 1597250 | P159: -2.19%
A160: 150 | B160: Banking | C160: PNB | D160: 2023-12-28 | E160: 86.95 | F160: 86.75 | G160: 85.00 | H160: 83.05 | I160: 81.30 | J160: 88.70 | K160: 90.45 | L160: 92.40 | M160: 88.5 | N160: 84.8 | O160: 260560000 | P160: 1.12%
A161: 151 | B161: Others | C161: POLYCAB | D161: 2023-12-28 | E161: 5461.70 | F161: 5473.22 | G161: 5390.13 | H161: 5318.57 | I161: 5235.48 | J161: 5544.78 | K161: 5627.87 | L161: 5699.43 | M161: 5556.3 | N161: 5401.65 | O161: 2136200 | P161: -1.48%
A162: 152 | B162: Power | C162: POWERGRID | D162: 2023-12-28 | E162: 229.75 | F162: 230.58 | G162: 226.17 | H162: 222.58 | I162: 218.17 | J162: 234.17 | K162: 238.58 | L162: 242.17 | M162: 235 | N162: 227 | O162: 86410800 | P162: -1.68%
A163: 153 | B163: Media | C163: PVRINOX | D163: 2023-12-28 | E163: 1752.50 | F163: 1752.88 | G163: 1737.92 | H163: 1723.33 | I163: 1708.37 | J163: 1767.47 | K163: 1782.43 | L163: 1797.02 | M163: 1767.85 | N163: 1738.3 | O163: 5532758 | P163: -0.20%
A164: 154 | B164: Cement | C164: RAMCOCEM | D164: 2023-12-28 | E164: 1024.85 | F164: 1024.00 | G164: 1009.05 | H164: 993.25 | I164: 978.30 | J164: 1039.80 | K164: 1054.75 | L164: 1070.55 | M164: 1038.95 | N164: 1008.2 | O164: 3133100 | P164: -2.85%
A165: 155 | B165: Banking | C165: RBLBANK | D165: 2023-12-28 | E165: 269.30 | F165: 268.88 | G165: 259.47 | H165: 249.63 | I165: 240.22 | J165: 278.72 | K165: 288.13 | L165: 297.97 | M165: 278.3 | N165: 259.05 | O165: 63620000 | P165: 5.31%
A166: 156 | B166: Power | C166: RECLTD | D166: 2023-12-28 | E166: 407.80 | F166: 405.25 | G166: 399.55 | H166: 391.30 | I166: 385.60 | J166: 413.50 | K166: 419.20 | L166: 427.45 | M166: 410.95 | N166: 397 | O166: 40850000 | P166: 1.39%
A167: 157 | B167: Oil_Gas | C167: RELIANCE | D167: 2023-12-28 | E167: 2465.05 | F167: 2467.35 | G167: 2448.40 | H167: 2431.75 | I167: 2412.80 | J167: 2484.00 | K167: 2502.95 | L167: 2519.60 | M167: 2486.3 | N167: 2450.7 | O167: 45678750 | P167: -0.44%
A168: 158 | B168: Metals | C168: SAIL | D168: 2023-12-28 | E168: 98.35 | F168: 98.48 | G168: 96.42 | H168: 94.48 | I168: 92.42 | J168: 100.42 | K168: 102.48 | L168: 104.42 | M168: 100.55 | N168: 96.55 | O168: 170488000 | P168: -4.58%
A169: 159 | B169: Banking | C169: SBICARD | D169: 2023-12-28 | E169: 764.05 | F169: 767.92 | G169: 751.43 | H169: 738.82 | I169: 722.33 | J169: 780.53 | K169: 797.02 | L169: 809.63 | M169: 784.4 | N169: 755.3 | O169: 16512000 | P169: 0.97%
A170: 160 | B170: Finance | C170: SBILIFE | D170: 2023-12-28 | E170: 1470.10 | F170: 1466.08 | G170: 1459.17 | H170: 1448.23 | I170: 1441.32 | J170: 1477.02 | K170: 1483.93 | L170: 1494.87 | M170: 1473 | N170: 1455.15 | O170: 6123750 | P170: -2.27%
A171: 161 | B171: Banking | C171: SBIN | D171: 2023-12-28 | E171: 616.75 | F171: 614.47 | G171: 609.43 | H171: 602.12 | I171: 597.08 | J171: 621.78 | K171: 626.82 | L171: 634.13 | M171: 619.5 | N171: 607.15 | O171: 95637000 | P171: -0.87%
A172: 162 | B172: Cement | C172: SHREECEM | D172: 2023-12-28 | E172: 27831.75 | F172: 27906.45 | G172: 27498.25 | H172: 27164.75 | I172: 26756.55 | J172: 28239.95 | K172: 28648.15 | L172: 28981.65 | M172: 28314.65 | N172: 27572.95 | O172: 162750 | P172: -0.69%
A173: 163 | B173: Capital_Goods | C173: SIEMENS | D173: 2023-12-28 | E173: 3841.95 | F173: 3847.73 | G173: 3795.47 | H173: 3748.98 | I173: 3696.72 | J173: 3894.22 | K173: 3946.48 | L173: 3992.97 | M173: 3900 | N173: 3801.25 | O173: 2255350 | P173: -1.67%
A174: 164 | B174: Textile | C174: SRF | D174: 2023-12-28 | E174: 2435.35 | F174: 2436.35 | G174: 2404.50 | H174: 2373.65 | I174: 2341.80 | J174: 2467.20 | K174: 2499.05 | L174: 2529.90 | M174: 2468.2 | N174: 2405.5 | O174: 4335000 | P174: -2.08%
A175: 165 | B175: Finance | C175: SHRIRAMFIN | D175: 2023-12-28 | E175: 2044.00 | F175: 2045.18 | G175: 2022.87 | H175: 2001.73 | I175: 1979.42 | J175: 2066.32 | K175: 2088.63 | L175: 2109.77 | M175: 2067.5 | N175: 2024.05 | O175: 6737700 | P175: 1.34%
A176: 166 | B176: Pharma | C176: SUNPHARMA | D176: 2023-12-28 | E176: 1239.55 | F176: 1242.85 | G176: 1232.10 | H176: 1224.65 | I176: 1213.90 | J176: 1250.30 | K176: 1261.05 | L176: 1268.50 | M176: 1253.6 | N176: 1235.4 | O176: 16339400 | P176: -1.15%
A177: 167 | B177: Media | C177: SUNTV | D177: 2023-12-28 | E177: 675.15 | F177: 683.18 | G177: 660.32 | H177: 645.48 | I177: 622.62 | J177: 698.02 | K177: 720.88 | L177: 735.72 | M177: 706.05 | N177: 668.35 | O177: 8094000 | P177: 1.95%
A178: 168 | B178: Pharma | C178: SYNGENE | D178: 2023-12-28 | E178: 725.95 | F178: 728.98 | G178: 715.97 | H178: 705.98 | I178: 692.97 | J178: 738.97 | K178: 751.98 | L178: 761.97 | M178: 742 | N178: 719 | O178: 5620000 | P178: 0.88%
A179: 169 | B179: Chemical | C179: TATACHEM | D179: 2023-12-28 | E179: 998.70 | F179: 1003.38 | G179: 980.77 | H179: 962.83 | I179: 940.22 | J179: 1021.32 | K179: 1043.93 | L179: 1061.87 | M179: 1026 | N179: 985.45 | O179: 11861300 | P179: 2.18%
A180: 170 | B180: Telecom | C180: TATACOMM | D180: 2023-12-28 | E180: 1701.70 | F180: 1703.02 | G180: 1679.68 | H180: 1657.67 | I180: 1634.33 | J180: 1725.03 | K180: 1748.37 | L180: 1770.38 | M180: 1726.35 | N180: 1681 | O180: 7297500 | P180: -2.20%
A181: 171 | B181: FMCG | C181: TATACONSUM | D181: 2023-12-28 | E181: 952.65 | F181: 955.68 | G181: 944.77 | H181: 936.88 | I181: 925.97 | J181: 963.57 | K181: 974.48 | L181: 982.37 | M181: 966.6 | N181: 947.8 | O181: 8772300 | P181: -1.32%
A182: 172 | B182: Automobile | C182: TATAMOTORS | D182: 2023-12-28 | E182: 718.75 | F182: 719.88 | G182: 708.97 | H182: 699.18 | I182: 688.27 | J182: 729.67 | K182: 740.58 | L182: 750.37 | M182: 730.8 | N182: 710.1 | O182: 62677200 | P182: 0.18%
A183: 173 | B183: Power | C183: TATAPOWER | D183: 2023-12-28 | E183: 325.60 | F183: 327.32 | G183: 317.78 | H183: 309.97 | I183: 300.43 | J183: 335.13 | K183: 344.67 | L183: 352.48 | M183: 336.85 | N183: 319.5 | O183: 110133000 | P183: -3.41%
A184: 174 | B184: Metals | C184: TATASTEEL | D184: 2023-12-28 | E184: 130.00 | F184: 130.23 | G184: 128.32 | H184: 126.63 | I184: 124.72 | J184: 131.92 | K184: 133.83 | L184: 135.52 | M184: 132.15 | N184: 128.55 | O184: 202444000 | P184: 5.51%
A185: 175 | B185: Technology | C185: TCS | D185: 2023-12-28 | E185: 3644.45 | F185: 3642.75 | G185: 3623.45 | H185: 3602.45 | I185: 3583.15 | J185: 3663.75 | K185: 3683.05 | L185: 3704.05 | M185: 3662.05 | N185: 3621.75 | O185: 11580975 | P185: -0.51%
A186: 176 | B186: Technology | C186: TECHM | D186: 2023-12-28 | E186: 1232.15 | F186: 1232.97 | G186: 1220.93 | H186: 1209.72 | I186: 1197.68 | J186: 1244.18 | K186: 1256.22 | L186: 1267.43 | M186: 1245 | N186: 1221.75 | O186: 15810000 | P186: 0.13%
A187: 177 | B187: FMCG | C187: TITAN | D187: 2023-12-28 | E187: 3645.20 | F187: 3631.23 | G187: 3608.27 | H187: 3571.33 | I187: 3548.37 | J187: 3668.17 | K187: 3691.13 | L187: 3728.07 | M187: 3654.2 | N187: 3594.3 | O187: 4737275 | P187: -0.77%
A188: 178 | B188: Pharma | C188: TORNTPHARM | D188: 2023-12-28 | E188: 2065.80 | F188: 2078.63 | G188: 2042.17 | H188: 2018.53 | I188: 1982.07 | J188: 2102.27 | K188: 2138.73 | L188: 2162.37 | M188: 2115.1 | N188: 2055 | O188: 1645000 | P188: 0.89%
A189: 179 | B189: Others | C189: TRENT | D189: 2023-12-28 | E189: 2851.25 | F189: 2854.45 | G189: 2810.70 | H189: 2770.15 | I189: 2726.40 | J189: 2895.00 | K189: 2938.75 | L189: 2979.30 | M189: 2898.2 | N189: 2813.9 | O189: 3256000 | P189: -2.90%
A190: 180 | B190: Automobile | C190: TVSMOTOR | D190: 2023-12-28 | E190: 1904.90 | F190: 1908.52 | G190: 1884.23 | H190: 1863.57 | I190: 1839.28 | J190: 1929.18 | K190: 1953.47 | L190: 1974.13 | M190: 1932.8 | N190: 1887.85 | O190: 7213150 | P190: -1.65%
A191: 181 | B191: FMCG | C191: UBL | D191: 2023-12-28 | E191: 1730.05 | F191: 1733.47 | G191: 1713.93 | H191: 1697.82 | I191: 1678.28 | J191: 1749.58 | K191: 1769.12 | L191: 1785.23 | M191: 1753 | N191: 1717.35 | O191: 2995600 | P191: -1.46%
A192: 182 | B192: Cement | C192: ULTRACEMCO | D192: 2023-12-28 | E192: 9422.70 | F192: 9406.03 | G192: 9364.82 | H192: 9306.93 | I192: 9265.72 | J192: 9463.92 | K192: 9505.13 | L192: 9563.02 | M192: 9447.25 | N192: 9348.15 | O192: 1455600 | P192: 9.89%
A193: 183 | B193: Chemical | C193: UPL | D193: 2023-12-28 | E193: 587.10 | F193: 588.78 | G193: 579.82 | H193: 572.53 | I193: 563.57 | J193: 596.07 | K193: 605.03 | L193: 612.32 | M193: 597.75 | N193: 581.5 | O193: 30778800 | P193: -1.36%
A194: 184 | B194: Metals | C194: VEDL | D194: 2023-12-28 | E194: 246.30 | F194: 248.13 | G194: 240.67 | H194: 235.03 | I194: 227.57 | J194: 253.77 | K194: 261.23 | L194: 266.87 | M194: 255.6 | N194: 242.5 | O194: 86153400 | P194: 4.30%
A195: 185 | B195: Capital_Goods | C195: VOLTAS | D195: 2023-12-28 | E195: 857.95 | F195: 862.12 | G195: 842.83 | H195: 827.72 | I195: 808.43 | J195: 877.23 | K195: 896.52 | L195: 911.63 | M195: 881.4 | N195: 847 | O195: 10134000 | P195: 0.89%
A196: 186 | B196: Technology | C196: WIPRO | D196: 2023-12-28 | E196: 425.00 | F196: 422.82 | G196: 418.73 | H196: 412.47 | I196: 408.38 | J196: 429.08 | K196: 433.17 | L196: 439.43 | M196: 426.9 | N196: 416.55 | O196: 53194500 | P196: 0.48%
A197: 187 | B197: Media | C197: ZEEL | D197: 2023-12-28 | E197: 279.90 | F197: 279.10 | G197: 273.70 | H197: 267.50 | I197: 262.10 | J197: 285.30 | K197: 290.70 | L197: 296.90 | M197: 284.5 | N197: 272.9 | O197: 105831000 | P197: -6.91%
A198: 188 | B198: Pharma | C198: ZYDUSLIFE | D198: 2023-12-28 | E198: 640.65 | F198: 646.95 | G198: 626.70 | H198: 612.75 | I198: 592.50 | J198: 660.90 | K198: 681.15 | L198: 695.10 | M198: 667.2 | N198: 633 | O198: 6867900 | P198: 2.37%
A221: Pivot Point: This is trigger point for intra day buy/sell based on the price range of the previous day
A222: As per the tool,the trader should take BUY position just above Pivot and keep the stop loss of pivot point and the first target would be Resistance 1(R1)
A223: If R1 is crossed then R2 becomes the next target with stop loss of at R1
A224: Similarly if price goes below pivot point then the trader should sell and keep a stop loss of pivot point and the first target would be S1
A225: If S1 is crossed then S2 becomes the next target with stop loss of at S1
A227: Disclaimer:
A228: This document has been prepared by the Retail Research Desk of Asit C Mehta
A229: Investment Intermediates Ltd. and is meant for use of the recipient only
... 7 more rows

Sheet Cash Intra
M5: Back to Main Page
A6: FOR INTRA DAY TRADING | K6: =Main!B10 -> 2023-12-11
A8: Sr.no | C8: CLOSE RATE | D8: Pivot Point | E8: Supports | H8: Resistances
E9: S1 | F9: S2 | G9: S3 | H9: R1 | I9: R2 | J9: R3 | K9: HIGH | L9: LOW | M9: Total Trade Quanity in Lakhs
A10: 1 | B10: Nifty 50 | C10: 20969.40 | D10: 20946.07 | E10: 20886.03 | F10: 20802.67 | G10: 20742.63 | H10: 21029.43 | I10: 21089.47 | J10: 21172.83 | K10: 21006.10 | L10: 20862.70
A11: 2 | B11: Nifty Bank | C11: 47262.00 | D11: 47119.85 | E11: 46936.05 | F11: 46610.10 | G11: 46426.30 | H11: 47445.80 | I11: 47629.60 | J11: 47955.55 | K11: 47303.65 | L11: 46793.90
A12: 3 | B12: Nifty CPSE | C12: 4507.75 | D12: 4520.37 | E12: 4447.28 | F12: 4386.82 | G12: 4313.73 | H12: 4580.83 | I12: 4653.92 | J12: 4714.38 | K12: 4593.45 | L12: 4459.90
A13: 4 | B13: Nifty Infra | C13: 6951.25 | D13: 6950.40 | E13: 6902.60 | F13: 6853.95 | G13: 6806.15 | H13: 6999.05 | I13: 7046.85 | J13: 7095.50 | K13: 6998.20 | L13: 6901.75
A14: 5 | B14: Nifty IT | C14: 33392.90 | D14: 33286.00 | E14: 33119.60 | F14: 32846.30 | G14: 32679.90 | H14: 33559.30 | I14: 33725.70 | J14: 33999.00 | K14: 33452.40 | L14: 33012.70
A15: 6 | B15: Nifty PSE | C15: 7329.55 | D15: 7339.35 | E15: 7235.40 | F15: 7141.25 | G15: 7037.30 | H15: 7433.50 | I15: 7537.45 | J15: 7631.60 | K15: 7443.30 | L15: 7245.20
A16: 7 | B16: Nifty Midcap 50 | C16: 12624.20 | D16: 12616.13 | E16: 12520.42 | F16: 12416.63 | G16: 12320.92 | H16: 12719.92 | I16: 12815.63 | J16: 12919.42 | K16: 12711.85 | L16: 12512.35
A17: 8 | B17: ABB | C17: 4746.8 | D17: 4758.20 | E17: 4673.05 | F17: 4599.30 | G17: 4514.15 | H17: 4831.95 | I17: 4917.10 | J17: 4990.85 | K17: 4843.35 | L17: 4684.45 | M17: 2.31897
A18: 9 | B18: ABBOTINDIA | C18: 22858 | D18: 22912.22 | E18: 22674.43 | F18: 22490.87 | G18: 22253.08 | H18: 23095.78 | I18: 23333.57 | J18: 23517.13 | K18: 23150 | L18: 22728.65 | M18: 0.08428
A19: 10 | B19: ABCAPITAL | C19: 163.2 | D19: 164.52 | E19: 160.63 | F19: 158.07 | G19: 154.18 | H19: 167.08 | I19: 170.97 | J19: 173.53 | K19: 168.4 | L19: 161.95 | M19: 95.98951
A20: 11 | B20: ABFRL | C20: 233.95 | D20: 235.53 | E20: 229.62 | F20: 225.28 | G20: 219.37 | H20: 239.87 | I20: 245.78 | J20: 250.12 | K20: 241.45 | L20: 231.2 | M20: 20.51559
A21: 12 | B21: ACC | C21: 2137.8 | D21: 2132.08 | E21: 2106.02 | F21: 2074.23 | G21: 2048.17 | H21: 2163.87 | I21: 2189.93 | J21: 2221.72 | K21: 2158.15 | L21: 2100.3 | M21: 5.24686
A22: 13 | B22: ADANIENT | C22: 2822.15 | D22: 2836.38 | E22: 2745.77 | F22: 2669.38 | G22: 2578.77 | H22: 2912.77 | I22: 3003.38 | J22: 3079.77 | K22: 2927 | L22: 2760 | M22: 69.59428
A23: 14 | B23: ADANIGREEN | C23: 1550.3 | D23: 1571.37 | E23: 1473.93 | F23: 1397.57 | G23: 1300.13 | H23: 1647.73 | I23: 1745.17 | J23: 1821.53 | K23: 1668.8 | L23: 1495 | M23: 54.10307
A24: 15 | B24: ADANIPORTS | C24: 1022.95 | D24: 1023.42 | E24: 991.83 | F24: 960.72 | G24: 929.13 | H24: 1054.53 | I24: 1086.12 | J24: 1117.23 | K24: 1055 | L24: 992.3 | M24: 122.02462
A25: 16 | B25: ADANIPOWER | C25: 533.8 | D25: 540.43 | E25: 510.87 | F25: 487.93 | G25: 458.37 | H25: 563.37 | I25: 592.93 | J25: 615.87 | K25: 570 | L25: 517.5 | M25: 165.00676
A26: 17 | B26: ALKEM | C26: 4796.05 | D26: 4814.82 | E26: 4731.83 | F26: 4667.62 | G26: 4584.63 | H26: 4879.03 | I26: 4962.02 | J26: 5026.23 | K26: 4897.8 | L26: 4750.6 | M26: 3.05427
A27: 18 | B27: AMBUJACEM | C27: 494.35 | D27: 495.43 | E27: 481.27 | F27: 468.18 | G27: 454.02 | H27: 508.52 | I27: 522.68 | J27: 535.77 | K27: 509.6 | L27: 482.35 | M27: 40.8572
A28: 19 | B28: APOLLOHOSP | C28: 5555.35 | D28: 5522.32 | E28: 5472.08 | F28: 5388.82 | G28: 5338.58 | H28: 5605.58 | I28: 5655.82 | J28: 5739.08 | K28: 5572.55 | L28: 5439.05 | M28: 4.56382
A29: 20 | B29: APOLLOTYRE | C29: 458.55 | D29: 459.27 | E29: 452.68 | F29: 446.82 | G29: 440.23 | H29: 465.13 | I29: 471.72 | J29: 477.58 | K29: 465.85 | L29: 453.4 | M29: 27.68845
A30: 21 | B30: ASHOKLEY | C30: 174.9 | D30: 175.65 | E30: 173.10 | F30: 171.30 | G30: 168.75 | H30: 177.45 | I30: 180.00 | J30: 181.80 | K30: 178.2 | L30: 173.85 | M30: 130.4626
A31: 22 | B31: ASIANPAINT | C31: 3232 | D31: 3243.20 | E31: 3216.60 | F31: 3201.20 | G31: 3174.60 | H31: 3258.60 | I31: 3285.20 | J31: 3300.60 | K31: 3269.8 | L31: 3227.8 | M31: 8.95852
A32: 23 | B32: ASTRAL | C32: 1928.75 | D32: 1942.12 | E32: 1904.88 | F32: 1881.02 | G32: 1843.78 | H32: 1965.98 | I32: 2003.22 | J32: 2027.08 | K32: 1979.35 | L32: 1918.25 | M32: 2.53175
A33: 24 | B33: ATGL | C33: 1156.8 | D33: 1172.07 | E33: 1084.73 | F33: 1012.67 | G33: 925.33 | H33: 1244.13 | I33: 1331.47 | J33: 1403.53 | K33: 1259.4 | L33: 1100 | M33: 175.53553
A34: 25 | B34: AUBANK | C34: 740.5 | D34: 742.82 | E34: 731.93 | F34: 723.37 | G34: 712.48 | H34: 751.38 | I34: 762.27 | J34: 770.83 | K34: 753.7 | L34: 734.25 | M34: 12.67997
A35: 26 | B35: AUROPHARMA | C35: 1017.4 | D35: 1018.57 | E35: 1003.38 | F35: 989.37 | G35: 974.18 | H35: 1032.58 | I35: 1047.77 | J35: 1061.78 | K35: 1033.75 | L35: 1004.55 | M35: 9.79442
A36: 27 | B36: AWL | C36: 377.9 | D36: 382.98 | E36: 366.97 | F36: 356.03 | G36: 340.02 | H36: 393.92 | I36: 409.93 | J36: 420.87 | K36: 399 | L36: 372.05 | M36: 68.5014
A37: 28 | B37: AXISBANK | C37: 1131.2 | D37: 1125.68 | E37: 1117.02 | F37: 1102.83 | G37: 1094.17 | H37: 1139.87 | I37: 1148.53 | J37: 1162.72 | K37: 1134.35 | L37: 1111.5 | M37: 73.00989
A38: 29 | B38: BAJAJ-AUTO | C38: 6075.7 | D38: 6081.25 | E38: 6042.50 | F38: 6009.30 | G38: 5970.55 | H38: 6114.45 | I38: 6153.20 | J38: 6186.40 | K38: 6120 | L38: 6048.05 | M38: 2.33266
A39: 30 | B39: BAJAJFINSV | C39: 1710.15 | D39: 1705.73 | E39: 1696.92 | F39: 1683.68 | G39: 1674.87 | H39: 1718.97 | I39: 1727.78 | J39: 1741.02 | K39: 1714.55 | L39: 1692.5 | M39: 13.7605
A40: 31 | B40: BAJAJHLDNG | C40: 7984.25 | D40: 7994.88 | E40: 7909.37 | F40: 7834.48 | G40: 7748.97 | H40: 8069.77 | I40: 8155.28 | J40: 8230.17 | K40: 8080.4 | L40: 7920 | M40: 0.27621
A41: 32 | B41: BAJFINANCE | C41: 7307.6 | D41: 7326.57 | E41: 7255.03 | F41: 7202.47 | G41: 7130.93 | H41: 7379.13 | I41: 7450.67 | J41: 7503.23 | K41: 7398.1 | L41: 7274 | M41: 11.44388
A42: 33 | B42: BALKRISIND | C42: 2605.65 | D42: 2603.28 | E42: 2562.57 | F42: 2519.48 | G42: 2478.77 | H42: 2646.37 | I42: 2687.08 | J42: 2730.17 | K42: 2644 | L42: 2560.2 | M42: 2.44484
A43: 34 | B43: BANDHANBNK | C43: 237.05 | D43: 236.93 | E43: 233.87 | F43: 230.68 | G43: 227.62 | H43: 240.12 | I43: 243.18 | J43: 246.37 | K43: 240 | L43: 233.75 | M43: 67.536
A44: 35 | B44: BANKBARODA | C44: 212 | D44: 212.07 | E44: 208.43 | F44: 204.87 | G44: 201.23 | H44: 215.63 | I44: 219.27 | J44: 222.83 | K44: 215.7 | L44: 208.5 | M44: 295.05509
A45: 36 | B45: BANKINDIA | C45: 114.3 | D45: 114.27 | E45: 112.43 | F45: 110.57 | G45: 108.73 | H45: 116.13 | I45: 117.97 | J45: 119.83 | K45: 116.1 | L45: 112.4 | M45: 179.84221
A46: 37 | B46: BATAINDIA | C46: 1663.35 | D46: 1654.60 | E46: 1637.20 | F46: 1611.05 | G46: 1593.65 | H46: 1680.75 | I46: 1698.15 | J46: 1724.30 | K46: 1672 | L46: 1628.45 | M46: 2.53597
A47: 38 | B47: BEL | C47: 158.75 | D47: 159.47 | E47: 156.58 | F47: 154.42 | G47: 151.53 | H47: 161.63 | I47: 164.52 | J47: 166.68 | K47: 162.35 | L47: 157.3 | M47: 228.69782
A48: 39 | B48: BERGEPAINT | C48: 578.95 | D48: 581.80 | E48: 572.75 | F48: 566.55 | G48: 557.50 | H48: 588.00 | I48: 597.05 | J48: 603.25 | K48: 590.85 | L48: 575.6 | M48: 7.86988
A49: 40 | B49: BHARATFORG | C49: 1177.15 | D49: 1173.87 | E49: 1167.48 | F49: 1157.82 | G49: 1151.43 | H49: 1183.53 | I49: 1189.92 | J49: 1199.58 | K49: 1180.25 | L49: 1164.2 | M49: 7.56528
A50: 41 | B50: BHARTIARTL | C50: 1000.25 | D50: 998.52 | E50: 993.03 | F50: 985.82 | G50: 980.33 | H50: 1005.73 | I50: 1011.22 | J50: 1018.43 | K50: 1004 | L50: 991.3 | M50: 66.30766
A51: 42 | B51: BHEL | C51: 176.7 | D51: 177.92 | E51: 171.98 | F51: 167.27 | G51: 161.33 | H51: 182.63 | I51: 188.57 | J51: 193.28 | K51: 183.85 | L51: 173.2 | M51: 364.2256
A52: 43 | B52: BIOCON | C52: 239 | D52: 239.90 | E52: 236.00 | F52: 233.00 | G52: 229.10 | H52: 242.90 | I52: 246.80 | J52: 249.80 | K52: 243.8 | L52: 236.9 | M52: 23.5001
A53: 44 | B53: BOSCHLTD | C53: 21626.25 | D53: 21610.97 | E53: 21475.23 | F53: 21324.22 | G53: 21188.48 | H53: 21761.98 | I53: 21897.72 | J53: 22048.73 | K53: 21746.7 | L53: 21459.95 | M53: 0.14151
A54: 45 | B54: BPCL | C54: 470.45 | D54: 471.23 | E54: 465.02 | F54: 459.58 | G54: 453.37 | H54: 476.67 | I54: 482.88 | J54: 488.32 | K54: 477.45 | L54: 465.8 | M54: 94.70239
A55: 46 | B55: BRITANNIA | C55: 4942.2 | D55: 4977.73 | E55: 4895.47 | F55: 4848.73 | G55: 4766.47 | H55: 5024.47 | I55: 5106.73 | J55: 5153.47 | K55: 5060 | L55: 4931 | M55: 2.82713
A56: 47 | B56: CANBK | C56: 438.55 | D56: 436.60 | E56: 432.20 | F56: 425.85 | G56: 421.45 | H56: 442.95 | I56: 447.35 | J56: 453.70 | K56: 441 | L56: 430.25 | M56: 80.15793
A57: 48 | B57: CGPOWER | C57: 454.85 | D57: 453.93 | E57: 447.42 | F57: 439.98 | G57: 433.47 | H57: 461.37 | I57: 467.88 | J57: 475.32 | K57: 460.45 | L57: 446.5 | M57: 31.63081
A58: 49 | B58: CHOLAFIN | C58: 1166.65 | D58: 1156.62 | E58: 1138.28 | F58: 1109.92 | G58: 1091.58 | H58: 1184.98 | I58: 1203.32 | J58: 1231.68 | K58: 1174.95 | L58: 1128.25 | M58: 28.02274
A59: 50 | B59: CIPLA | C59: 1219.1 | D59: 1218.10 | E59: 1205.00 | F59: 1190.90 | G59: 1177.80 | H59: 1232.20 | I59: 1245.30 | J59: 1259.40 | K59: 1231.2 | L59: 1204 | M59: 14.53955
A60: 51 | B60: COALINDIA | C60: 351 | D60: 352.10 | E60: 345.80 | F60: 340.60 | G60: 334.30 | H60: 357.30 | I60: 363.60 | J60: 368.80 | K60: 358.4 | L60: 346.9 | M60: 134.44251
A61: 52 | B61: COFORGE | C61: 5783 | D61: 5797.67 | E61: 5675.38 | F61: 5567.77 | G61: 5445.48 | H61: 5905.28 | I61: 6027.57 | J61: 6135.18 | K61: 5919.95 | L61: 5690.05 | M61: 8.2691
A62: 53 | B62: COLPAL | C62: 2293.8 | D62: 2296.32 | E62: 2272.68 | F62: 2251.57 | G62: 2227.93 | H62: 2317.43 | I62: 2341.07 | J62: 2362.18 | K62: 2319.95 | L62: 2275.2 | M62: 2.68098
A63: 54 | B63: CONCOR | C63: 843.2 | D63: 844.68 | E63: 828.62 | F63: 814.03 | G63: 797.97 | H63: 859.27 | I63: 875.33 | J63: 889.92 | K63: 860.75 | L63: 830.1 | M63: 16.96687
A64: 55 | B64: COROMANDEL | C64: 1224.75 | D64: 1232.42 | E64: 1211.88 | F64: 1199.02 | G64: 1178.48 | H64: 1245.28 | I64: 1265.82 | J64: 1278.68 | K64: 1252.95 | L64: 1219.55 | M64: 2.03115
A65: 56 | B65: CROMPTON | C65: 299.45 | D65: 300.80 | E65: 295.70 | F65: 291.95 | G65: 286.85 | H65: 304.55 | I65: 309.65 | J65: 313.40 | K65: 305.9 | L65: 297.05 | M65: 22.32304
A66: 57 | B66: CUMMINSIND | C66: 1949.35 | D66: 1947.87 | E66: 1928.53 | F66: 1907.72 | G66: 1888.38 | H66: 1968.68 | I66: 1988.02 | J66: 2008.83 | K66: 1967.2 | L66: 1927.05 | M66: 2.53118
A67: 58 | B67: DABUR | C67: 547.5 | D67: 549.85 | E67: 543.45 | F67: 539.40 | G67: 533.00 | H67: 553.90 | I67: 560.30 | J67: 564.35 | K67: 556.25 | L67: 545.8 | M67: 24.53675
A68: 59 | B68: DALBHARAT | C68: 2331.2 | D68: 2333.28 | E68: 2291.57 | F68: 2251.93 | G68: 2210.22 | H68: 2372.92 | I68: 2414.63 | J68: 2454.27 | K68: 2375 | L68: 2293.65 | M68: 3.29996
A69: 60 | B69: DEEPAKNTR | C69: 2215.25 | D69: 2224.43 | E69: 2172.92 | F69: 2130.58 | G69: 2079.07 | H69: 2266.77 | I69: 2318.28 | J69: 2360.62 | K69: 2275.95 | L69: 2182.1 | M69: 3.06753
A70: 61 | B70: DELHIVERY | C70: 384.85 | D70: 386.65 | E70: 381.30 | F70: 377.75 | G70: 372.40 | H70: 390.20 | I70: 395.55 | J70: 399.10 | K70: 392 | L70: 383.1 | M70: 28.19267
A71: 62 | B71: DEVYANI | C71: 186.75 | D71: 187.52 | E71: 184.73 | F71: 182.72 | G71: 179.93 | H71: 189.53 | I71: 192.32 | J71: 194.33 | K71: 190.3 | L71: 185.5 | M71: 30.32367
A72: 63 | B72: DIVISLAB | C72: 3681.75 | D72: 3697.20 | E72: 3646.95 | F72: 3612.15 | G72: 3561.90 | H72: 3732.00 | I72: 3782.25 | J72: 3817.05 | K72: 3747.45 | L72: 3662.4 | M72: 4.55037
A73: 64 | B73: DIXON | C73: 5964.9 | D73: 5968.82 | E73: 5889.48 | F73: 5814.07 | G73: 5734.73 | H73: 6044.23 | I73: 6123.57 | J73: 6198.98 | K73: 6048.15 | L73: 5893.4 | M73: 1.93098
A74: 65 | B74: DLF | C74: 649.9 | D74: 651.75 | E74: 639.60 | F74: 629.30 | G74: 617.15 | H74: 662.05 | I74: 674.20 | J74: 684.50 | K74: 663.9 | L74: 641.45 | M74: 39.37417
A75: 66 | B75: DMART | C75: 4070.65 | D75: 4089.43 | E75: 4008.87 | F75: 3947.08 | G75: 3866.52 | H75: 4151.22 | I75: 4231.78 | J75: 4293.57 | K75: 4170 | L75: 4027.65 | M75: 4.95575
A76: 67 | B76: DRREDDY | C76: 5763.9 | D76: 5753.58 | E76: 5722.32 | F76: 5680.73 | G76: 5649.47 | H76: 5795.17 | I76: 5826.43 | J76: 5868.02 | K76: 5784.85 | L76: 5712 | M76: 2.28505
A77: 68 | B77: EICHERMOT | C77: 4055 | D77: 4065.40 | E77: 4018.40 | F77: 3981.80 | G77: 3934.80 | H77: 4102.00 | I77: 4149.00 | J77: 4185.60 | K77: 4112.4 | L77: 4028.8 | M77: 3.34252
A78: 69 | B78: ESCORTS | C78: 3145.3 | D78: 3173.28 | E78: 3082.67 | F78: 3020.03 | G78: 2929.42 | H78: 3235.92 | I78: 3326.53 | J78: 3389.17 | K78: 3263.9 | L78: 3110.65 | M78: 4.13007
A79: 70 | B79: FEDERALBNK | C79: 154.5 | D79: 154.48 | E79: 153.27 | F79: 152.03 | G79: 150.82 | H79: 155.72 | I79: 156.93 | J79: 158.17 | K79: 155.7 | L79: 153.25 | M79: 69.69212
A80: 71 | B80: FLUOROCHEM | C80: 2843.25 | D80: 2843.67 | E80: 2812.33 | F80: 2781.42 | G80: 2750.08 | H80: 2874.58 | I80: 2905.92 | J80: 2936.83 | K80: 2875 | L80: 2812.75 | M80: 0.91414
A81: 72 | B81: FORTIS | C81: 382.05 | D81: 382.18 | E81: 379.87 | F81: 377.68 | G81: 375.37 | H81: 384.37 | I81: 386.68 | J81: 388.87 | K81: 384.5 | L81: 380 | M81: 16.82641
A82: 73 | B82: GAIL | C82: 140.35 | D82: 140.83 | E82: 136.87 | F82: 133.38 | G82: 129.42 | H82: 144.32 | I82: 148.28 | J82: 151.77 | K82: 144.8 | L82: 137.35 | M82: 189.95777
A83: 74 | B83: GLAND | C83: 1777.75 | D83: 1774.42 | E83: 1755.43 | F83: 1733.12 | G83: 1714.13 | H83: 1796.73 | I83: 1815.72 | J83: 1838.03 | K83: 1793.4 | L83: 1752.1 | M83: 3.0013
A84: 75 | B84: GODREJCP | C84: 1021.55 | D84: 1021.40 | E84: 1015.85 | F84: 1010.15 | G84: 1004.60 | H84: 1027.10 | I84: 1032.65 | J84: 1038.35 | K84: 1026.95 | L84: 1015.7 | M84: 5.63822
A85: 76 | B85: GODREJPROP | C85: 1930.15 | D85: 1929.52 | E85: 1904.03 | F85: 1877.92 | G85: 1852.43 | H85: 1955.63 | I85: 1981.12 | J85: 2007.23 | K85: 1955 | L85: 1903.4 | M85: 4.30579
A86: 77 | B86: GRASIM | C86: 2070.05 | D86: 2070.67 | E86: 2042.03 | F86: 2014.02 | G86: 1985.38 | H86: 2098.68 | I86: 2127.32 | J86: 2155.33 | K86: 2099.3 | L86: 2042.65 | M86: 5.92431
A87: 78 | B87: GUJGASLTD | C87: 440.3 | D87: 442.00 | E87: 437.75 | F87: 435.20 | G87: 430.95 | H87: 444.55 | I87: 448.80 | J87: 451.35 | K87: 446.25 | L87: 439.45 | M87: 20.98749
A88: 79 | B88: HAL | C88: 2733.65 | D88: 2735.63 | E88: 2688.07 | F88: 2642.48 | G88: 2594.92 | H88: 2781.22 | I88: 2828.78 | J88: 2874.37 | K88: 2783.2 | L88: 2690.05 | M88: 28.33575
A89: 80 | B89: HAVELLS | C89: 1343 | D89: 1344.00 | E89: 1331.00 | F89: 1319.00 | G89: 1306.00 | H89: 1356.00 | I89: 1369.00 | J89: 1381.00 | K89: 1357 | L89: 1332 | M89: 5.14463
A90: 81 | B90: HCLTECH | C90: 1364.1 | D90: 1354.35 | E90: 1338.75 | F90: 1313.40 | G90: 1297.80 | H90: 1379.70 | I90: 1395.30 | J90: 1420.65 | K90: 1369.95 | L90: 1329 | M90: 45.09751
A91: 82 | B91: HDFCAMC | C91: 2987.05 | D91: 2990.88 | E91: 2969.07 | F91: 2951.08 | G91: 2929.27 | H91: 3008.87 | I91: 3030.68 | J91: 3048.67 | K91: 3012.7 | L91: 2972.9 | M91: 4.87269
A92: 83 | B92: HDFCBANK | C92: 1653.2 | D92: 1646.22 | E92: 1637.43 | F92: 1621.67 | G92: 1612.88 | H92: 1661.98 | I92: 1670.77 | J92: 1686.53 | K92: 1655 | L92: 1630.45 | M92: 168.64019
A93: 84 | B93: HDFCLIFE | C93: 671.25 | D93: 674.08 | E93: 664.17 | F93: 657.08 | G93: 647.17 | H93: 681.17 | I93: 691.08 | J93: 698.17 | K93: 684 | L93: 667 | M93: 27.13075
A94: 85 | B94: HEROMOTOCO | C94: 3715.75 | D94: 3736.75 | E94: 3671.40 | F94: 3627.05 | G94: 3561.70 | H94: 3781.10 | I94: 3846.45 | J94: 3890.80 | K94: 3802.1 | L94: 3692.4 | M94: 7.79332
A95: 86 | B95: HINDALCO | C95: 520.35 | D95: 519.80 | E95: 514.55 | F95: 508.75 | G95: 503.50 | H95: 525.60 | I95: 530.85 | J95: 536.65 | K95: 525.05 | L95: 514 | M95: 37.33998
A96: 87 | B96: HINDPETRO | C96: 377.5 | D96: 379.13 | E96: 371.47 | F96: 365.43 | G96: 357.77 | H96: 385.17 | I96: 392.83 | J96: 398.87 | K96: 386.8 | L96: 373.1 | M96: 56.42579
A97: 88 | B97: HINDUNILVR | C97: 2522.3 | D97: 2521.52 | E97: 2509.08 | F97: 2495.87 | G97: 2483.43 | H97: 2534.73 | I97: 2547.17 | J97: 2560.38 | K97: 2533.95 | L97: 2508.3 | M97: 16.05805
A98: 89 | B98: HINDZINC | C98: 322.65 | D98: 322.92 | E98: 319.93 | F98: 317.22 | G98: 314.23 | H98: 325.63 | I98: 328.62 | J98: 331.33 | K98: 325.9 | L98: 320.2 | M98: 6.76456
A99: 90 | B99: HONAUT | C99: 36266.9 | D99: 36335.30 | E99: 35921.60 | F99: 35576.30 | G99: 35162.60 | H99: 36680.60 | I99: 37094.30 | J99: 37439.60 | K99: 36749 | L99: 35990 | M99: 0.04412
A100: 91 | B100: ICICIBANK | C100: 1010.85 | D100: 1005.65 | E100: 998.45 | F100: 986.05 | G100: 978.85 | H100: 1018.05 | I100: 1025.25 | J100: 1037.65 | K100: 1012.85 | L100: 993.25 | M100: 161.16363
A101: 92 | B101: ICICIGI | C101: 1449.4 | D101: 1448.18 | E101: 1441.27 | F101: 1433.13 | G101: 1426.22 | H101: 1456.32 | I101: 1463.23 | J101: 1471.37 | K101: 1455.1 | L101: 1440.05 | M101: 2.87248
A102: 93 | B102: ICICIPRULI | C102: 543.55 | D102: 544.17 | E102: 539.03 | F102: 534.52 | G102: 529.38 | H102: 548.68 | I102: 553.82 | J102: 558.33 | K102: 549.3 | L102: 539.65 | M102: 7.11798
A103: 94 | B103: IDEA | C103: 12.9 | D103: 12.97 | E103: 12.58 | F103: 12.27 | G103: 11.88 | H103: 13.28 | I103: 13.67 | J103: 13.98 | K103: 13.35 | L103: 12.65 | M103: 2378.0659
A104: 95 | B104: IDFCFIRSTB | C104: 88.05 | D104: 87.85 | E104: 86.20 | F104: 84.35 | G104: 82.70 | H104: 89.70 | I104: 91.35 | J104: 93.20 | K104: 89.5 | L104: 86 | M104: 459.9502
A105: 96 | B105: IGL | C105: 401.1 | D105: 403.87 | E105: 395.53 | F105: 389.97 | G105: 381.63 | H105: 409.43 | I105: 417.77 | J105: 423.33 | K105: 412.2 | L105: 398.3 | M105: 25.6342
A106: 97 | B106: INDHOTEL | C106: 435.5 | D106: 436.53 | E106: 431.32 | F106: 427.13 | G106: 421.92 | H106: 440.72 | I106: 445.93 | J106: 450.12 | K106: 441.75 | L106: 432.35 | M106: 16.06867
A107: 98 | B107: INDIANB | C107: 428.25 | D107: 429.02 | E107: 422.63 | F107: 417.02 | G107: 410.63 | H107: 434.63 | I107: 441.02 | J107: 446.63 | K107: 435.4 | L107: 423.4 | M107: 15.74266
A108: 99 | B108: INDIGO | C108: 2897.95 | D108: 2903.47 | E108: 2868.13 | F108: 2838.32 | G108: 2802.98 | H108: 2933.28 | I108: 2968.62 | J108: 2998.43 | K108: 2938.8 | L108: 2873.65 | M108: 8.1864
A109: 100 | B109: INDUSINDBK | C109: 1508.95 | D109: 1507.98 | E109: 1495.02 | F109: 1481.08 | G109: 1468.12 | H109: 1521.92 | I109: 1534.88 | J109: 1548.82 | K109: 1520.95 | L109: 1494.05 | M109: 25.68088
A110: 101 | B110: INDUSTOWER | C110: 190.45 | D110: 191.10 | E110: 186.85 | F110: 183.25 | G110: 179.00 | H110: 194.70 | I110: 198.95 | J110: 202.55 | K110: 195.35 | L110: 187.5 | M110: 55.55744
A111: 102 | B111: INFY | C111: 1491.15 | D111: 1484.03 | E111: 1473.37 | F111: 1455.58 | G111: 1444.92 | H111: 1501.82 | I111: 1512.48 | J111: 1530.27 | K111: 1494.7 | L111: 1466.25 | M111: 63.23433
A112: 103 | B112: IOC | C112: 118.8 | D112: 119.53 | E112: 116.62 | F112: 114.43 | G112: 111.52 | H112: 121.72 | I112: 124.63 | J112: 126.82 | K112: 122.45 | L112: 117.35 | M112: 226.10433
A113: 104 | B113: IPCALAB | C113: 1119.3 | D113: 1122.07 | E113: 1105.43 | F113: 1091.57 | G113: 1074.93 | H113: 1135.93 | I113: 1152.57 | J113: 1166.43 | K113: 1138.7 | L113: 1108.2 | M113: 2.42631
A114: 105 | B114: IRCTC | C114: 749.55 | D114: 752.87 | E114: 735.88 | F114: 722.22 | G114: 705.23 | H114: 766.53 | I114: 783.52 | J114: 797.18 | K114: 769.85 | L114: 739.2 | M114: 48.42223
A115: 106 | B115: IRFC | C115: 76.6 | D115: 76.62 | E115: 75.58 | F115: 74.57 | G115: 73.53 | H115: 77.63 | I115: 78.67 | J115: 79.68 | K115: 77.65 | L115: 75.6 | M115: 473.22739
A116: 107 | B116: ITC | C116: 449.15 | D116: 453.08 | E116: 444.57 | F116: 439.98 | G116: 431.47 | H116: 457.67 | I116: 466.18 | J116: 470.77 | K116: 461.6 | L116: 448.5 | M116: 186.67895
A117: 108 | B117: JINDALSTEL | C117: 686.25 | D117: 686.70 | E117: 675.95 | F117: 665.65 | G117: 654.90 | H117: 697.00 | I117: 707.75 | J117: 718.05 | K117: 697.45 | L117: 676.4 | M117: 21.31802
A118: 109 | B118: JSWENERGY | C118: 451.8 | D118: 458.48 | E118: 439.97 | F118: 428.13 | G118: 409.62 | H118: 470.32 | I118: 488.83 | J118: 500.67 | K118: 477 | L118: 446.65 | M118: 85.66641
A119: 110 | B119: JSWSTEEL | C119: 839.35 | D119: 838.30 | E119: 823.15 | F119: 806.95 | G119: 791.80 | H119: 854.50 | I119: 869.65 | J119: 885.85 | K119: 853.45 | L119: 822.1 | M119: 71.42037
A120: 111 | B120: JUBLFOOD | C120: 559.75 | D120: 560.25 | E120: 555.50 | F120: 551.25 | G120: 546.50 | H120: 564.50 | I120: 569.25 | J120: 573.50 | K120: 565 | L120: 556 | M120: 14.59271
A121: 112 | B121: KOTAKBANK | C121: 1838.45 | D121: 1834.05 | E121: 1825.10 | F121: 1811.75 | G121: 1802.80 | H121: 1847.40 | I121: 1856.35 | J121: 1869.70 | K121: 1843 | L121: 1820.7 | M121: 29.85466
A122: 113 | B122: L&TFH | C122: 153.8 | D122: 153.95 | E122: 151.45 | F122: 149.10 | G122: 146.60 | H122: 156.30 | I122: 158.80 | J122: 161.15 | K122: 156.45 | L122: 151.6 | M122: 46.34746
A123: 114 | B123: LALPATHLAB | C123: 2638.55 | D123: 2651.72 | E123: 2593.88 | F123: 2549.22 | G123: 2491.38 | H123: 2696.38 | I123: 2754.22 | J123: 2798.88 | K123: 2709.55 | L123: 2607.05 | M123: 1.92252
A124: 115 | B124: LAURUSLABS | C124: 383.65 | D124: 387.15 | E124: 378.00 | F124: 372.35 | G124: 363.20 | H124: 392.80 | I124: 401.95 | J124: 407.60 | K124: 396.3 | L124: 381.5 | M124: 33.22977
A125: 116 | B125: LICHSGFIN | C125: 532.3 | D125: 531.40 | E125: 518.90 | F125: 505.50 | G125: 493.00 | H125: 544.80 | I125: 557.30 | J125: 570.70 | K125: 543.9 | L125: 518 | M125: 73.88696
A126: 117 | B126: LICI | C126: 772.45 | D126: 781.95 | E126: 760.50 | F126: 748.55 | G126: 727.10 | H126: 793.90 | I126: 815.35 | J126: 827.30 | K126: 803.4 | L126: 770 | M126: 69.27164
A127: 118 | B127: LT | C127: 3378.45 | D127: 3391.48 | E127: 3352.97 | F127: 3327.48 | G127: 3288.97 | H127: 3416.97 | I127: 3455.48 | J127: 3480.97 | K127: 3430 | L127: 3366 | M127: 24.28891
A128: 119 | B128: LTIM | C128: 5708.7 | D128: 5682.57 | E128: 5611.13 | F128: 5513.57 | G128: 5442.13 | H128: 5780.13 | I128: 5851.57 | J128: 5949.13 | K128: 5754 | L128: 5585 | M128: 7.80096
A129: 120 | B129: LTTS | C129: 4939.05 | D129: 4939.57 | E129: 4890.48 | F129: 4841.92 | G129: 4792.83 | H129: 4988.13 | I129: 5037.22 | J129: 5085.78 | K129: 4988.65 | L129: 4891 | M129: 2.14082
A130: 121 | B130: LUPIN | C130: 1239.35 | D130: 1241.98 | E130: 1227.97 | F130: 1216.58 | G130: 1202.57 | H130: 1253.37 | I130: 1267.38 | J130: 1278.77 | K130: 1256 | L130: 1230.6 | M130: 5.60463
A131: 122 | B131: M&M | C131: 1668.55 | D131: 1679.75 | E131: 1651.35 | F131: 1634.15 | G131: 1605.75 | H131: 1696.95 | I131: 1725.35 | J131: 1742.55 | K131: 1708.15 | L131: 1662.55 | M131: 19.42667
A132: 123 | B132: M&MFIN | C132: 273.25 | D132: 273.48 | E132: 270.32 | F132: 267.38 | G132: 264.22 | H132: 276.42 | I132: 279.58 | J132: 282.52 | K132: 276.65 | L132: 270.55 | M132: 33.13929
A133: 124 | B133: MANKIND | C133: 1952.85 | D133: 1971.30 | E133: 1926.55 | F133: 1900.25 | G133: 1855.50 | H133: 1997.60 | I133: 2042.35 | J133: 2068.65 | K133: 2016.05 | L133: 1945 | M133: 1.00528
A134: 125 | B134: MARICO | C134: 530.5 | D134: 531.73 | E134: 526.27 | F134: 522.03 | G134: 516.57 | H134: 535.97 | I134: 541.43 | J134: 545.67 | K134: 537.2 | L134: 527.5 | M134: 17.6196
A135: 126 | B135: MARUTI | C135: 10618.55 | D135: 10639.18 | E135: 10530.37 | F135: 10442.18 | G135: 10333.37 | H135: 10727.37 | I135: 10836.18 | J135: 10924.37 | K135: 10748 | L135: 10551 | M135: 5.48373
A136: 127 | B136: MAXHEALTH | C136: 678.2 | D136: 675.28 | E136: 668.37 | F136: 658.53 | G136: 651.62 | H136: 685.12 | I136: 692.03 | J136: 701.87 | K136: 682.2 | L136: 665.45 | M136: 15.94882
A137: 128 | B137: MCDOWELL-N | C137: 1045.25 | D137: 1050.33 | E137: 1027.67 | F137: 1010.08 | G137: 987.42 | H137: 1067.92 | I137: 1090.58 | J137: 1108.17 | K137: 1073 | L137: 1032.75 | M137: 9.08224
A138: 129 | B138: MFSL | C138: 1035.8 | D138: 1033.93 | E138: 1027.92 | F138: 1020.03 | G138: 1014.02 | H138: 1041.82 | I138: 1047.83 | J138: 1055.72 | K138: 1039.95 | L138: 1026.05 | M138: 3.89168
A139: 130 | B139: MOTHERSON | C139: 95 | D139: 94.52 | E139: 93.58 | F139: 92.17 | G139: 91.23 | H139: 95.93 | I139: 96.87 | J139: 98.28 | K139: 95.45 | L139: 93.1 | M139: 143.19194
A140: 131 | B140: MPHASIS | C140: 2427.05 | D140: 2428.02 | E140: 2401.03 | F140: 2375.02 | G140: 2348.03 | H140: 2454.03 | I140: 2481.02 | J140: 2507.03 | K140: 2455 | L140: 2402 | M140: 5.29468
A141: 132 | B141: MRF | C141: 117949.4 | D141: 117690.15 | E141: 117280.50 | F141: 116611.60 | G141: 116201.95 | H141: 118359.05 | I141: 118768.70 | J141: 119437.60 | K141: 118099.8 | L141: 117021.25 | M141: 0.07684
A142: 133 | B142: MSUMI | C142: 61.9 | D142: 61.60 | E142: 61.05 | F142: 60.20 | G142: 59.65 | H142: 62.45 | I142: 63.00 | J142: 63.85 | K142: 62.15 | L142: 60.75 | M142: 66.19525
A143: 134 | B143: MUTHOOTFIN | C143: 1440.65 | D143: 1441.67 | E143: 1421.33 | F143: 1402.02 | G143: 1381.68 | H143: 1460.98 | I143: 1481.32 | J143: 1500.63 | K143: 1462 | L143: 1422.35 | M143: 2.74606
A144: 135 | B144: NAUKRI | C144: 4745.65 | D144: 4756.47 | E144: 4670.68 | F144: 4595.72 | G144: 4509.93 | H144: 4831.43 | I144: 4917.22 | J144: 4992.18 | K144: 4842.25 | L144: 4681.5 | M144: 2.69968
A145: 136 | B145: NAVINFLUOR | C145: 3802.9 | D145: 3795.27 | E145: 3762.63 | F145: 3722.37 | G145: 3689.73 | H145: 3835.53 | I145: 3868.17 | J145: 3908.43 | K145: 3827.9 | L145: 3755 | M145: 1.30517
A146: 137 | B146: NESTLEIND | C146: 24789.6 | D146: 24907.22 | E146: 24638.73 | F146: 24487.87 | G146: 24219.38 | H146: 25058.08 | I146: 25326.57 | J146: 25477.43 | K146: 25175.7 | L146: 24756.35 | M146: 0.70076
A147: 138 | B147: NHPC | C147: 63.2 | D147: 63.53 | E147: 61.37 | F147: 59.53 | G147: 57.37 | H147: 65.37 | I147: 67.53 | J147: 69.37 | K147: 65.7 | L147: 61.7 | M147: 413.23843
A148: 139 | B148: NMDC | C148: 183.6 | D148: 184.50 | E148: 180.00 | F148: 176.40 | G148: 171.90 | H148: 188.10 | I148: 192.60 | J148: 196.20 | K148: 189 | L148: 180.9 | M148: 122.71442
A149: 140 | B149: NTPC | C149: 285.05 | D149: 285.98 | E149: 280.07 | F149: 275.08 | G149: 269.17 | H149: 290.97 | I149: 296.88 | J149: 301.87 | K149: 291.9 | L149: 281 | M149: 208.15064
A150: 141 | B150: NYKAA | C150: 170.6 | D150: 171.27 | E150: 167.53 | F150: 164.47 | G150: 160.73 | H150: 174.33 | I150: 178.07 | J150: 181.13 | K150: 175 | L150: 168.2 | M150: 31.89419
A151: 142 | B151: OBEROIRLTY | C151: 1447.35 | D151: 1455.00 | E151: 1430.00 | F151: 1412.65 | G151: 1387.65 | H151: 1472.35 | I151: 1497.35 | J151: 1514.70 | K151: 1480 | L151: 1437.65 | M151: 4.04905
A152: 143 | B152: OFSS | C152: 4131.35 | D152: 4140.45 | E152: 4100.90 | F152: 4070.45 | G152: 4030.90 | H152: 4170.90 | I152: 4210.45 | J152: 4240.90 | K152: 4180 | L152: 4110 | M152: 1.02079
A153: 144 | B153: OIL | C153: 319.9 | D153: 320.20 | E153: 315.60 | F153: 311.30 | G153: 306.70 | H153: 324.50 | I153: 329.10 | J153: 333.40 | K153: 324.8 | L153: 315.9 | M153: 22.27079
A154: 145 | B154: ONGC | C154: 195.95 | D154: 196.78 | E154: 193.27 | F154: 190.58 | G154: 187.07 | H154: 199.47 | I154: 202.98 | J154: 205.67 | K154: 200.3 | L154: 194.1 | M154: 104.14387
A155: 146 | B155: PAGEIND | C155: 37335.5 | D155: 37407.15 | E155: 37039.35 | F155: 36743.20 | G155: 36375.40 | H155: 37703.30 | I155: 38071.10 | J155: 38367.25 | K155: 37774.95 | L155: 37111 | M155: 0.69746
A156: 147 | B156: PATANJALI | C156: 1602.95 | D156: 1602.28 | E156: 1582.67 | F156: 1562.38 | G156: 1542.77 | H156: 1622.57 | I156: 1642.18 | J156: 1662.47 | K156: 1621.9 | L156: 1582 | M156: 15.11912
A157: 148 | B157: PAYTM | C157: 651.25 | D157: 656.03 | E157: 632.22 | F157: 613.18 | G157: 589.37 | H157: 675.07 | I157: 698.88 | J157: 717.92 | K157: 679.85 | L157: 637 | M157: 152.79182
A158: 149 | B158: PEL | C158: 918.9 | D158: 920.63 | E158: 909.77 | F158: 900.63 | G158: 889.77 | H158: 929.77 | I158: 940.63 | J158: 949.77 | K158: 931.5 | L158: 911.5 | M158: 8.02166
A159: 150 | B159: PERSISTENT | C159: 6464.5 | D159: 6438.28 | E159: 6340.57 | F159: 6216.63 | G159: 6118.92 | H159: 6562.22 | I159: 6659.93 | J159: 6783.87 | K159: 6536 | L159: 6314.35 | M159: 5.11246
A160: 151 | B160: PETRONET | C160: 210 | D160: 210.28 | E160: 206.62 | F160: 203.23 | G160: 199.57 | H160: 213.67 | I160: 217.33 | J160: 220.72 | K160: 213.95 | L160: 206.9 | M160: 61.25811
A161: 152 | B161: PFC | C161: 384.6 | D161: 384.47 | E161: 378.23 | F161: 371.87 | G161: 365.63 | H161: 390.83 | I161: 397.07 | J161: 403.43 | K161: 390.7 | L161: 378.1 | M161: 222.41955
A162: 153 | B162: PGHH | C162: 17162.1 | D162: 17265.02 | E162: 16997.08 | F162: 16832.07 | G162: 16564.13 | H162: 17430.03 | I162: 17697.97 | J162: 17862.98 | K162: 17532.95 | L162: 17100 | M162: 0.03827
A163: 154 | B163: PIDILITIND | C163: 2561.65 | D163: 2571.22 | E163: 2535.43 | F163: 2509.22 | G163: 2473.43 | H163: 2597.43 | I163: 2633.22 | J163: 2659.43 | K163: 2607 | L163: 2545 | M163: 2.1593
A164: 155 | B164: PIIND | C164: 3843.5 | D164: 3845.35 | E164: 3802.80 | F164: 3762.10 | G164: 3719.55 | H164: 3886.05 | I164: 3928.60 | J164: 3969.30 | K164: 3887.9 | L164: 3804.65 | M164: 4.74651
A165: 156 | B165: PNB | C165: 86.55 | D165: 86.42 | E165: 84.73 | F165: 82.92 | G165: 81.23 | H165: 88.23 | I165: 89.92 | J165: 91.73 | K165: 88.1 | L165: 84.6 | M165: 642.05639
A166: 157 | B166: POLICYBZR | C166: 818.9 | D166: 827.77 | E166: 802.93 | F166: 786.97 | G166: 762.13 | H166: 843.73 | I166: 868.57 | J166: 884.53 | K166: 852.6 | L166: 811.8 | M166: 27.14442
A167: 158 | B167: POLYCAB | C167: 5446.65 | D167: 5453.32 | E167: 5385.83 | F167: 5325.02 | G167: 5257.53 | H167: 5514.13 | I167: 5581.62 | J167: 5642.43 | K167: 5520.8 | L167: 5392.5 | M167: 4.19779
A168: 159 | B168: POONAWALLA | C168: 418.45 | D168: 419.77 | E168: 414.28 | F168: 410.12 | G168: 404.63 | H168: 423.93 | I168: 429.42 | J168: 433.58 | K168: 425.25 | L168: 415.6 | M168: 22.81411
A169: 160 | B169: POWERGRID | C169: 228.6 | D169: 229.48 | E169: 225.57 | F169: 222.53 | G169: 218.62 | H169: 232.52 | I169: 236.43 | J169: 239.47 | K169: 233.4 | L169: 226.45 | M169: 222.0632
A170: 161 | B170: PRESTIGE | C170: 1186.45 | D170: 1169.65 | E170: 1146.80 | F170: 1107.15 | G170: 1084.30 | H170: 1209.30 | I170: 1232.15 | J170: 1271.80 | K170: 1192.5 | L170: 1130 | M170: 29.46858
A171: 162 | B171: RAMCOCEM | C171: 1019 | D171: 1018.40 | E171: 1003.80 | F171: 988.60 | G171: 974.00 | H171: 1033.60 | I171: 1048.20 | J171: 1063.40 | K171: 1033 | L171: 1003.2 | M171: 4.41145
A172: 163 | B172: RECLTD | C172: 405.45 | D172: 403.25 | E172: 397.30 | F172: 389.15 | G172: 383.20 | H172: 411.40 | I172: 417.35 | J172: 425.50 | K172: 409.2 | L172: 395.1 | M172: 157.81777
A173: 164 | B173: RELIANCE | C173: 2455.75 | D173: 2459.15 | E173: 2441.60 | F173: 2427.45 | G173: 2409.90 | H173: 2473.30 | I173: 2490.85 | J173: 2505.00 | K173: 2476.7 | L173: 2445 | M173: 51.02447
A174: 165 | B174: SAIL | C174: 98.1 | D174: 98.25 | E174: 96.15 | F174: 94.20 | G174: 92.10 | H174: 100.20 | I174: 102.30 | J174: 104.25 | K174: 100.35 | L174: 96.3 | M174: 250.14086
A175: 166 | B175: SBICARD | C175: 759.95 | D175: 764.15 | E175: 748.35 | F175: 736.75 | G175: 720.95 | H175: 775.75 | I175: 791.55 | J175: 803.15 | K175: 779.95 | L175: 752.55 | M175: 26.68741
A176: 167 | B176: SBILIFE | C176: 1465.2 | D176: 1462.10 | E176: 1454.65 | F176: 1444.10 | G176: 1436.65 | H176: 1472.65 | I176: 1480.10 | J176: 1490.65 | K176: 1469.55 | L176: 1451.55 | M176: 16.54799
A177: 168 | B177: SBIN | C177: 614.15 | D177: 612.10 | E177: 607.40 | F177: 600.65 | G177: 595.95 | H177: 618.85 | I177: 623.55 | J177: 630.30 | K177: 616.8 | L177: 605.35 | M177: 177.22136
A178: 169 | B178: SHREECEM | C178: 27670.25 | D178: 27785.77 | E178: 27420.53 | F178: 27170.82 | G178: 26805.58 | H178: 28035.48 | I178: 28400.72 | J178: 28650.43 | K178: 28151 | L178: 27536.05 | M178: 0.21927
A179: 170 | B179: SHRIRAMFIN | C179: 2031.6 | D179: 2034.60 | E179: 2011.70 | F179: 1991.80 | G179: 1968.90 | H179: 2054.50 | I179: 2077.40 | J179: 2097.30 | K179: 2057.5 | L179: 2014.7 | M179: 8.43673
A180: 171 | B180: SIEMENS | C180: 3827.2 | D180: 3831.57 | E180: 3780.68 | F180: 3734.17 | G180: 3683.28 | H180: 3878.08 | I180: 3928.97 | J180: 3975.48 | K180: 3882.45 | L180: 3785.05 | M180: 1.58838
A181: 172 | B181: SONACOMS | C181: 571.8 | D181: 575.13 | E181: 566.97 | F181: 562.13 | G181: 553.97 | H181: 579.97 | I181: 588.13 | J181: 592.97 | K181: 583.3 | L181: 570.3 | M181: 7.06183
A182: 173 | B182: SRF | C182: 2423.1 | D182: 2427.18 | E182: 2392.17 | F182: 2361.23 | G182: 2326.22 | H182: 2458.12 | I182: 2493.13 | J182: 2524.07 | K182: 2462.2 | L182: 2396.25 | M182: 3.16577
A183: 174 | B183: SUNPHARMA | C183: 1235.8 | D183: 1238.02 | E183: 1228.43 | F183: 1221.07 | G183: 1211.48 | H183: 1245.38 | I183: 1254.97 | J183: 1262.33 | K183: 1247.6 | L183: 1230.65 | M183: 16.12113
A184: 175 | B184: SUNTV | C184: 671.6 | D184: 680.83 | E184: 657.67 | F184: 643.73 | G184: 620.57 | H184: 694.77 | I184: 717.93 | J184: 731.87 | K184: 704 | L184: 666.9 | M184: 21.2733
A185: 176 | B185: SYNGENE | C185: 723.1 | D185: 725.72 | E185: 714.08 | F185: 705.07 | G185: 693.43 | H185: 734.73 | I185: 746.37 | J185: 755.38 | K185: 737.35 | L185: 716.7 | M185: 9.42614
A186: 177 | B186: TATACHEM | C186: 996.85 | D186: 1004.70 | E186: 982.15 | F186: 967.45 | G186: 944.90 | H186: 1019.40 | I186: 1041.95 | J186: 1056.65 | K186: 1027.25 | L186: 990 | M186: 11.79751
A187: 178 | B187: TATACOMM | C187: 1694.85 | D187: 1697.28 | E187: 1674.57 | F187: 1654.28 | G187: 1631.57 | H187: 1717.57 | I187: 1740.28 | J187: 1760.57 | K187: 1720 | L187: 1677 | M187: 8.4323
A188: 179 | B188: TATACONSUM | C188: 946.6 | D188: 950.75 | E188: 939.65 | F188: 932.70 | G188: 921.60 | H188: 957.70 | I188: 968.80 | J188: 975.75 | K188: 961.85 | L188: 943.8 | M188: 6.4909
A189: 180 | B189: TATAELXSI | C189: 8365.85 | D189: 8358.53 | E189: 8307.32 | F189: 8248.78 | G189: 8197.57 | H189: 8417.07 | I189: 8468.28 | J189: 8526.82 | K189: 8409.75 | L189: 8300 | M189: 0.81159
A190: 181 | B190: TATAMOTORS | C190: 714.55 | D190: 716.55 | E190: 705.50 | F190: 696.45 | G190: 685.40 | H190: 725.60 | I190: 736.65 | J190: 745.70 | K190: 727.6 | L190: 707.5 | M190: 85.57203
A191: 182 | B191: TATAPOWER | C191: 323.55 | D191: 325.87 | E191: 315.78 | F191: 308.02 | G191: 297.93 | H191: 333.63 | I191: 343.72 | J191: 351.48 | K191: 335.95 | L191: 318.1 | M191: 749.92149
A192: 183 | B192: TATASTEEL | C192: 129.2 | D192: 129.52 | E192: 127.63 | F192: 126.07 | G192: 124.18 | H192: 131.08 | I192: 132.97 | J192: 134.53 | K192: 131.4 | L192: 127.95 | M192: 343.93711
A193: 184 | B193: TCS | C193: 3626.7 | D193: 3624.58 | E193: 3604.17 | F193: 3581.63 | G193: 3561.22 | H193: 3647.12 | I193: 3667.53 | J193: 3690.07 | K193: 3645 | L193: 3602.05 | M193: 16.41155
A194: 185 | B194: TECHM | C194: 1225.3 | D194: 1226.83 | E194: 1215.72 | F194: 1206.13 | G194: 1195.02 | H194: 1236.42 | I194: 1247.53 | J194: 1257.12 | K194: 1237.95 | L194: 1217.25 | M194: 26.42571
A195: 186 | B195: TIINDIA | C195: 3574.2 | D195: 3526.42 | E195: 3437.83 | F195: 3301.47 | G195: 3212.88 | H195: 3662.78 | I195: 3751.37 | J195: 3887.73 | K195: 3615 | L195: 3390.05 | M195: 8.73775
A196: 187 | B196: TITAN | C196: 3634.65 | D196: 3618.87 | E196: 3590.78 | F196: 3546.92 | G196: 3518.83 | H196: 3662.73 | I196: 3690.82 | J196: 3734.68 | K196: 3646.95 | L196: 3575 | M196: 15.62141
A197: 188 | B197: TORNTPHARM | C197: 2053.45 | D197: 2067.17 | E197: 2030.43 | F197: 2007.42 | G197: 1970.68 | H197: 2090.18 | I197: 2126.92 | J197: 2149.93 | K197: 2103.9 | L197: 2044.15 | M197: 2.21098
A198: 189 | B198: TORNTPOWER | C198: 966.65 | D198: 978.22 | E198: 943.43 | F198: 920.22 | G198: 885.43 | H198: 1001.43 | I198: 1036.22 | J198: 1059.43 | K198: 1013 | L198: 955 | M198: 8.47021
A199: 190 | B199: TRENT | C199: 2841.3 | D199: 2842.93 | E199: 2798.57 | F199: 2755.83 | G199: 2711.47 | H199: 2885.67 | I199: 2930.03 | J199: 2972.77 | K199: 2887.3 | L199: 2800.2 | M199: 6.88323
A200: 191 | B200: TRIDENT | C200: 36.65 | D200: 36.80 | E200: 36.05 | F200: 35.45 | G200: 34.70 | H200: 37.40 | I200: 38.15 | J200: 38.75 | K200: 37.55 | L200: 36.2 | M200: 200.29208
A201: 192 | B201: TTML | C201: 92.55 | D201: 92.87 | E201: 91.43 | F201: 90.32 | G201: 88.88 | H201: 93.98 | I201: 95.42 | J201: 96.53 | K201: 94.3 | L201: 91.75 | M201: 41.57546
A202: 193 | B202: TVSMOTOR | C202: 1902.7 | D202: 1906.43 | E202: 1882.87 | F202: 1863.03 | G202: 1839.47 | H202: 1926.27 | I202: 1949.83 | J202: 1969.67 | K202: 1930 | L202: 1886.6 | M202: 4.93461
A203: 194 | B203: UBL | C203: 1724.65 | D203: 1726.37 | E203: 1709.28 | F203: 1693.92 | G203: 1676.83 | H203: 1741.73 | I203: 1758.82 | J203: 1774.18 | K203: 1743.45 | L203: 1711 | M203: 1.59813
A204: 195 | B204: ULTRACEMCO | C204: 9413.55 | D204: 9395.45 | E204: 9359.25 | F204: 9304.95 | G204: 9268.75 | H204: 9449.75 | I204: 9485.95 | J204: 9540.25 | K204: 9431.65 | L204: 9341.15 | M204: 3.11761
A205: 196 | B205: UNIONBANK | C205: 117.15 | D205: 116.72 | E205: 115.73 | F205: 114.32 | G205: 113.33 | H205: 118.13 | I205: 119.12 | J205: 120.53 | K205: 117.7 | L205: 115.3 | M205: 179.52489
... 28 more rows

Sheet MidCap Intra
L5: Back To Main Page
A6: FOR INTRA DAY TRADING | K6: =Main!B10 -> 2023-12-11
A9: Sr.no | B9: Scrip | C9: CLOSE RATE | D9: Pivot Point | E9: Supports | H9: Resistances
E10: S1 | F10: S2 | G10: S3 | H10: R1 | I10: R2 | J10: R3 | K10: HIGH | L10: LOW | M10: Total Trade Quanity in Lakhs
A11: 1 | B11: 360ONE | C11: 647.55 | D11: 646.52 | E11: 641.03 | F11: 634.52 | G11: 629.03 | H11: 653.03 | I11: 658.52 | J11: 665.03 | K11: 652 | L11: 640 | M11: 5.38465
A12: 2 | B12: 3MINDIA | C12: 31479.7 | D12: 31403.38 | E12: 31275.32 | F12: 31070.93 | G12: 30942.87 | H12: 31607.77 | I12: 31735.83 | J12: 31940.22 | K12: 31531.45 | L12: 31199 | M12: 0.00865
A13: 3 | B13: AARTIDRUGS | C13: 487.5 | D13: 489.00 | E13: 482.50 | F13: 477.50 | G13: 471.00 | H13: 494.00 | I13: 500.50 | J13: 505.50 | K13: 495.5 | L13: 484 | M13: 1.28912
A14: 4 | B14: AARTIIND | C14: 569.35 | D14: 569.58 | E14: 559.77 | F14: 550.18 | G14: 540.37 | H14: 579.17 | I14: 588.98 | J14: 598.57 | K14: 579.4 | L14: 560 | M14: 14.24768
A15: 5 | B15: AAVAS | C15: 1490.95 | D15: 1508.08 | E15: 1464.37 | F15: 1437.78 | G15: 1394.07 | H15: 1534.67 | I15: 1578.38 | J15: 1604.97 | K15: 1551.8 | L15: 1481.5 | M15: 4.58794
A16: 6 | B16: ABB | C16: 4746.8 | D16: 4758.20 | E16: 4673.05 | F16: 4599.30 | G16: 4514.15 | H16: 4831.95 | I16: 4917.10 | J16: 4990.85 | K16: 4843.35 | L16: 4684.45 | M16: 2.31897
A17: 7 | B17: ABBOTINDIA | C17: 22858 | D17: 22912.22 | E17: 22674.43 | F17: 22490.87 | G17: 22253.08 | H17: 23095.78 | I17: 23333.57 | J17: 23517.13 | K17: 23150 | L17: 22728.65 | M17: 0.08428
A18: 8 | B18: ACC | C18: 2137.8 | D18: 2132.08 | E18: 2106.02 | F18: 2074.23 | G18: 2048.17 | H18: 2163.87 | I18: 2189.93 | J18: 2221.72 | K18: 2158.15 | L18: 2100.3 | M18: 5.24686
A19: 9 | B19: ADANIENT | C19: 2822.15 | D19: 2836.38 | E19: 2745.77 | F19: 2669.38 | G19: 2578.77 | H19: 2912.77 | I19: 3003.38 | J19: 3079.77 | K19: 2927 | L19: 2760 | M19: 69.59428
A20: 10 | B20: ADANIGREEN | C20: 1550.3 | D20: 1571.37 | E20: 1473.93 | F20: 1397.57 | G20: 1300.13 | H20: 1647.73 | I20: 1745.17 | J20: 1821.53 | K20: 1668.8 | L20: 1495 | M20: 54.10307
A21: 11 | B21: ADANIPORTS | C21: 1022.95 | D21: 1023.42 | E21: 991.83 | F21: 960.72 | G21: 929.13 | H21: 1054.53 | I21: 1086.12 | J21: 1117.23 | K21: 1055 | L21: 992.3 | M21: 122.02462
A22: 12 | B22: ADANIPOWER | C22: 533.8 | D22: 540.43 | E22: 510.87 | F22: 487.93 | G22: 458.37 | H22: 563.37 | I22: 592.93 | J22: 615.87 | K22: 570 | L22: 517.5 | M22: 165.00676
A23: 13 | B23: ATGL | C23: 1156.8 | D23: 1172.07 | E23: 1084.73 | F23: 1012.67 | G23: 925.33 | H23: 1244.13 | I23: 1331.47 | J23: 1403.53 | K23: 1259.4 | L23: 1100 | M23: 175.53553
A24: 14 | B24: AWL | C24: 377.9 | D24: 382.98 | E24: 366.97 | F24: 356.03 | G24: 340.02 | H24: 393.92 | I24: 409.93 | J24: 420.87 | K24: 399 | L24: 372.05 | M24: 68.5014
A25: 15 | B25: ABCAPITAL | C25: 163.2 | D25: 164.52 | E25: 160.63 | F25: 158.07 | G25: 154.18 | H25: 167.08 | I25: 170.97 | J25: 173.53 | K25: 168.4 | L25: 161.95 | M25: 95.98951
A26: 16 | B26: ABFRL | C26: 233.95 | D26: 235.53 | E26: 229.62 | F26: 225.28 | G26: 219.37 | H26: 239.87 | I26: 245.78 | J26: 250.12 | K26: 241.45 | L26: 231.2 | M26: 20.51559
A27: 17 | B27: AEGISCHEM | C27: 377.15 | D27: 376.72 | E27: 374.03 | F27: 370.92 | G27: 368.23 | H27: 379.83 | I27: 382.52 | J27: 385.63 | K27: 379.4 | L27: 373.6 | M27: 5.41398
A28: 18 | B28: AETHER | C28: 789.45 | D28: 791.07 | E28: 784.38 | F28: 779.32 | G28: 772.63 | H28: 796.13 | I28: 802.82 | J28: 807.88 | K28: 797.75 | L28: 786 | M28: 1.00598
A29: 19 | B29: AFFLE | C29: 1127.6 | D29: 1135.22 | E29: 1112.43 | F29: 1097.27 | G29: 1074.48 | H29: 1150.38 | I29: 1173.17 | J29: 1188.33 | K29: 1158 | L29: 1120.05 | M29: 2.80055
A30: 20 | B30: AIAENG | C30: 3743.25 | D30: 3741.08 | E30: 3713.17 | F30: 3683.08 | G30: 3655.17 | H30: 3771.17 | I30: 3799.08 | J30: 3829.17 | K30: 3769 | L30: 3711 | M30: 0.25014
A31: 21 | B31: AJANTPHARM | C31: 1926.95 | D31: 1931.10 | E31: 1905.95 | F31: 1884.95 | G31: 1859.80 | H31: 1952.10 | I31: 1977.25 | J31: 1998.25 | K31: 1956.25 | L31: 1910.1 | M31: 1.44173
A32: 22 | B32: APLLTD | C32: 773.6 | D32: 778.20 | E32: 760.45 | F32: 747.30 | G32: 729.55 | H32: 791.35 | I32: 809.10 | J32: 822.25 | K32: 795.95 | L32: 765.05 | M32: 1.86925
A33: 23 | B33: ALKEM | C33: 4796.05 | D33: 4814.82 | E33: 4731.83 | F33: 4667.62 | G33: 4584.63 | H33: 4879.03 | I33: 4962.02 | J33: 5026.23 | K33: 4897.8 | L33: 4750.6 | M33: 3.05427
A34: 24 | B34: ALKYLAMINE | C34: 2307.05 | D34: 2321.12 | E34: 2271.23 | F34: 2235.42 | G34: 2185.53 | H34: 2356.93 | I34: 2406.82 | J34: 2442.63 | K34: 2371 | L34: 2285.3 | M34: 0.52553
A35: 25 | B35: ARE&M | C35: 751.8 | D35: 757.00 | E35: 744.00 | F35: 736.20 | G35: 723.20 | H35: 764.80 | I35: 777.80 | J35: 785.60 | K35: 770 | L35: 749.2 | M35: 5.03716
A36: 26 | B36: AMBER | C36: 3092.4 | D36: 3097.35 | E36: 3070.05 | F36: 3047.70 | G36: 3020.40 | H36: 3119.70 | I36: 3147.00 | J36: 3169.35 | K36: 3124.65 | L36: 3075 | M36: 0.5176
A37: 27 | B37: AMBUJACEM | C37: 494.35 | D37: 495.43 | E37: 481.27 | F37: 468.18 | G37: 454.02 | H37: 508.52 | I37: 522.68 | J37: 535.77 | K37: 509.6 | L37: 482.35 | M37: 40.8572
A38: 28 | B38: ANGELONE | C38: 2956.15 | D38: 2997.75 | E38: 2898.50 | F38: 2840.85 | G38: 2741.60 | H38: 3055.40 | I38: 3154.65 | J38: 3212.30 | K38: 3097 | L38: 2940.1 | M38: 6.458
A39: 29 | B39: ANURAS | C39: 1036.1 | D39: 1042.70 | E39: 1026.40 | F39: 1016.70 | G39: 1000.40 | H39: 1052.40 | I39: 1068.70 | J39: 1078.40 | K39: 1059 | L39: 1033 | M39: 0.90379
A40: 30 | B40: APARINDS | C40: 5297.5 | D40: 5340.80 | E40: 5232.70 | F40: 5167.90 | G40: 5059.80 | H40: 5405.60 | I40: 5513.70 | J40: 5578.50 | K40: 5448.9 | L40: 5276 | M40: 0.8185
A41: 31 | B41: APLAPOLLO | C41: 1601.55 | D41: 1597.83 | E41: 1586.82 | F41: 1572.08 | G41: 1561.07 | H41: 1612.57 | I41: 1623.58 | J41: 1638.32 | K41: 1608.85 | L41: 1583.1 | M41: 5.76843
A42: 32 | B42: APOLLOHOSP | C42: 5555.35 | D42: 5522.32 | E42: 5472.08 | F42: 5388.82 | G42: 5338.58 | H42: 5605.58 | I42: 5655.82 | J42: 5739.08 | K42: 5572.55 | L42: 5439.05 | M42: 4.56382
A43: 33 | B43: APOLLOTYRE | C43: 458.55 | D43: 459.27 | E43: 452.68 | F43: 446.82 | G43: 440.23 | H43: 465.13 | I43: 471.72 | J43: 477.58 | K43: 465.85 | L43: 453.4 | M43: 27.68845
A44: 34 | B44: APTUS | C44: 318.05 | D44: 312.35 | E44: 305.70 | F44: 293.35 | G44: 286.70 | H44: 324.70 | I44: 331.35 | J44: 343.70 | K44: 319 | L44: 300 | M44: 28.23437
A45: 35 | B45: ACI | C45: 622.25 | D45: 618.00 | E45: 611.00 | F45: 599.75 | G45: 592.75 | H45: 629.25 | I45: 636.25 | J45: 647.50 | K45: 625 | L45: 606.75 | M45: 2.6772
A46: 36 | B46: ASAHIINDIA | C46: 556.9 | D46: 559.13 | E46: 550.77 | F46: 544.63 | G46: 536.27 | H46: 565.27 | I46: 573.63 | J46: 579.77 | K46: 567.5 | L46: 553 | M46: 0.70653
A47: 37 | B47: ASHOKLEY | C47: 174.9 | D47: 175.65 | E47: 173.10 | F47: 171.30 | G47: 168.75 | H47: 177.45 | I47: 180.00 | J47: 181.80 | K47: 178.2 | L47: 173.85 | M47: 130.4626
A48: 38 | B48: ASIANPAINT | C48: 3232 | D48: 3243.20 | E48: 3216.60 | F48: 3201.20 | G48: 3174.60 | H48: 3258.60 | I48: 3285.20 | J48: 3300.60 | K48: 3269.8 | L48: 3227.8 | M48: 8.95852
A49: 39 | B49: ASTERDM | C49: 403.05 | D49: 402.48 | E49: 397.57 | F49: 392.08 | G49: 387.17 | H49: 407.97 | I49: 412.88 | J49: 418.37 | K49: 407.4 | L49: 397 | M49: 9.83336
A50: 40 | B50: ASTRAL | C50: 1928.75 | D50: 1942.12 | E50: 1904.88 | F50: 1881.02 | G50: 1843.78 | H50: 1965.98 | I50: 2003.22 | J50: 2027.08 | K50: 1979.35 | L50: 1918.25 | M50: 2.53175
A51: 41 | B51: ATUL | C51: 6748.7 | D51: 6789.18 | E51: 6663.02 | F51: 6577.33 | G51: 6451.17 | H51: 6874.87 | I51: 7001.03 | J51: 7086.72 | K51: 6915.35 | L51: 6703.5 | M51: 0.46485
A52: 42 | B52: AUBANK | C52: 740.5 | D52: 742.82 | E52: 731.93 | F52: 723.37 | G52: 712.48 | H52: 751.38 | I52: 762.27 | J52: 770.83 | K52: 753.7 | L52: 734.25 | M52: 12.67997
A53: 43 | B53: AUROPHARMA | C53: 1017.4 | D53: 1018.57 | E53: 1003.38 | F53: 989.37 | G53: 974.18 | H53: 1032.58 | I53: 1047.77 | J53: 1061.78 | K53: 1033.75 | L53: 1004.55 | M53: 9.79442
A54: 44 | B54: AVANTIFEED | C54: 401.85 | D54: 401.95 | E54: 398.70 | F54: 395.55 | G54: 392.30 | H54: 405.10 | I54: 408.35 | J54: 411.50 | K54: 405.2 | L54: 398.8 | M54: 1.49844
A55: 45 | B55: DMART | C55: 4070.65 | D55: 4089.43 | E55: 4008.87 | F55: 3947.08 | G55: 3866.52 | H55: 4151.22 | I55: 4231.78 | J55: 4293.57 | K55: 4170 | L55: 4027.65 | M55: 4.95575
A56: 46 | B56: AXISBANK | C56: 1131.2 | D56: 1125.68 | E56: 1117.02 | F56: 1102.83 | G56: 1094.17 | H56: 1139.87 | I56: 1148.53 | J56: 1162.72 | K56: 1134.35 | L56: 1111.5 | M56: 73.00989
A57: 47 | B57: BAJAJ-AUTO | C57: 6075.7 | D57: 6081.25 | E57: 6042.50 | F57: 6009.30 | G57: 5970.55 | H57: 6114.45 | I57: 6153.20 | J57: 6186.40 | K57: 6120 | L57: 6048.05 | M57: 2.33266
A58: 48 | B58: BAJFINANCE | C58: 7307.6 | D58: 7326.57 | E58: 7255.03 | F58: 7202.47 | G58: 7130.93 | H58: 7379.13 | I58: 7450.67 | J58: 7503.23 | K58: 7398.1 | L58: 7274 | M58: 11.44388
A59: 49 | B59: BAJAJFINSV | C59: 1710.15 | D59: 1705.73 | E59: 1696.92 | F59: 1683.68 | G59: 1674.87 | H59: 1718.97 | I59: 1727.78 | J59: 1741.02 | K59: 1714.55 | L59: 1692.5 | M59: 13.7605
A60: 50 | B60: BAJAJHLDNG | C60: 7984.25 | D60: 7994.88 | E60: 7909.37 | F60: 7834.48 | G60: 7748.97 | H60: 8069.77 | I60: 8155.28 | J60: 8230.17 | K60: 8080.4 | L60: 7920 | M60: 0.27621
A61: 51 | B61: BALAMINES | C61: 2296.8 | D61: 2309.60 | E61: 2257.80 | F61: 2218.80 | G61: 2167.00 | H61: 2348.60 | I61: 2400.40 | J61: 2439.40 | K61: 2361.4 | L61: 2270.6 | M61: 1.15221
A62: 52 | B62: BALKRISIND | C62: 2605.65 | D62: 2603.28 | E62: 2562.57 | F62: 2519.48 | G62: 2478.77 | H62: 2646.37 | I62: 2687.08 | J62: 2730.17 | K62: 2644 | L62: 2560.2 | M62: 2.44484
A63: 53 | B63: BALRAMCHIN | C63: 392.7 | D63: 395.57 | E63: 381.13 | F63: 369.57 | G63: 355.13 | H63: 407.13 | I63: 421.57 | J63: 433.13 | K63: 410 | L63: 384 | M63: 139.0731
A64: 54 | B64: BANDHANBNK | C64: 237.05 | D64: 236.93 | E64: 233.87 | F64: 230.68 | G64: 227.62 | H64: 240.12 | I64: 243.18 | J64: 246.37 | K64: 240 | L64: 233.75 | M64: 67.536
A65: 55 | B65: BANKBARODA | C65: 212 | D65: 212.07 | E65: 208.43 | F65: 204.87 | G65: 201.23 | H65: 215.63 | I65: 219.27 | J65: 222.83 | K65: 215.7 | L65: 208.5 | M65: 295.05509
A66: 56 | B66: BANKINDIA | C66: 114.3 | D66: 114.27 | E66: 112.43 | F66: 110.57 | G66: 108.73 | H66: 116.13 | I66: 117.97 | J66: 119.83 | K66: 116.1 | L66: 112.4 | M66: 179.84221
A67: 57 | B67: MAHABANK | C67: 46.2 | D67: 46.20 | E67: 45.60 | F67: 45.00 | G67: 44.40 | H67: 46.80 | I67: 47.40 | J67: 48.00 | K67: 46.8 | L67: 45.6 | M67: 281.47361
A68: 58 | B68: BASF | C68: 3014.45 | D68: 3018.17 | E68: 2991.33 | F68: 2968.22 | G68: 2941.38 | H68: 3041.28 | I68: 3068.12 | J68: 3091.23 | K68: 3045 | L68: 2995.05 | M68: 0.1548
A69: 59 | B69: BATAINDIA | C69: 1663.35 | D69: 1654.60 | E69: 1637.20 | F69: 1611.05 | G69: 1593.65 | H69: 1680.75 | I69: 1698.15 | J69: 1724.30 | K69: 1672 | L69: 1628.45 | M69: 2.53597
A70: 60 | B70: BAYERCROP | C70: 5425 | D70: 5435.37 | E70: 5354.63 | F70: 5284.27 | G70: 5203.53 | H70: 5505.73 | I70: 5586.47 | J70: 5656.83 | K70: 5516.1 | L70: 5365 | M70: 0.81674
A71: 61 | B71: BEML | C71: 2457.05 | D71: 2456.72 | E71: 2425.43 | F71: 2393.82 | G71: 2362.53 | H71: 2488.33 | I71: 2519.62 | J71: 2551.23 | K71: 2488 | L71: 2425.1 | M71: 1.19984
A72: 62 | B72: BERGEPAINT | C72: 578.95 | D72: 581.80 | E72: 572.75 | F72: 566.55 | G72: 557.50 | H72: 588.00 | I72: 597.05 | J72: 603.25 | K72: 590.85 | L72: 575.6 | M72: 7.86988
A73: 63 | B73: BDL | C73: 1323.4 | D73: 1339.12 | E73: 1288.28 | F73: 1253.17 | G73: 1202.33 | H73: 1374.23 | I73: 1425.07 | J73: 1460.18 | K73: 1389.95 | L73: 1304 | M73: 31.89479
A74: 64 | B74: BEL | C74: 158.75 | D74: 159.47 | E74: 156.58 | F74: 154.42 | G74: 151.53 | H74: 161.63 | I74: 164.52 | J74: 166.68 | K74: 162.35 | L74: 157.3 | M74: 228.69782
A75: 65 | B75: BHARATFORG | C75: 1177.15 | D75: 1173.87 | E75: 1167.48 | F75: 1157.82 | G75: 1151.43 | H75: 1183.53 | I75: 1189.92 | J75: 1199.58 | K75: 1180.25 | L75: 1164.2 | M75: 7.56528
A76: 66 | B76: BHEL | C76: 176.7 | D76: 177.92 | E76: 171.98 | F76: 167.27 | G76: 161.33 | H76: 182.63 | I76: 188.57 | J76: 193.28 | K76: 183.85 | L76: 173.2 | M76: 364.2256
A77: 67 | B77: BPCL | C77: 470.45 | D77: 471.23 | E77: 465.02 | F77: 459.58 | G77: 453.37 | H77: 476.67 | I77: 482.88 | J77: 488.32 | K77: 477.45 | L77: 465.8 | M77: 94.70239
A78: 68 | B78: BHARTIARTL | C78: 1000.25 | D78: 998.52 | E78: 993.03 | F78: 985.82 | G78: 980.33 | H78: 1005.73 | I78: 1011.22 | J78: 1018.43 | K78: 1004 | L78: 991.3 | M78: 66.30766
A79: 69 | B79: BIKAJI | C79: 527.6 | D79: 526.85 | E79: 521.75 | F79: 515.90 | G79: 510.80 | H79: 532.70 | I79: 537.80 | J79: 543.65 | K79: 531.95 | L79: 521 | M79: 1.95352
A80: 70 | B80: BIOCON | C80: 239 | D80: 239.90 | E80: 236.00 | F80: 233.00 | G80: 229.10 | H80: 242.90 | I80: 246.80 | J80: 249.80 | K80: 243.8 | L80: 236.9 | M80: 23.5001
A81: 71 | B81: BIRLACORPN | C81: 1417.45 | D81: 1417.92 | E81: 1410.73 | F81: 1404.02 | G81: 1396.83 | H81: 1424.63 | I81: 1431.82 | J81: 1438.53 | K81: 1425.1 | L81: 1411.2 | M81: 0.93222
A82: 72 | B82: BSOFT | C82: 657.75 | D82: 657.60 | E82: 648.20 | F82: 638.65 | G82: 629.25 | H82: 667.15 | I82: 676.55 | J82: 686.10 | K82: 667 | L82: 648.05 | M82: 18.55127
A83: 73 | B83: BLS | C83: 282.95 | D83: 283.82 | E83: 279.63 | F83: 276.32 | G83: 272.13 | H83: 287.13 | I83: 291.32 | J83: 294.63 | K83: 288 | L83: 280.5 | M83: 26.81369
A84: 74 | B84: BLUEDART | C84: 7384.05 | D84: 7354.43 | E84: 7294.87 | F84: 7205.68 | G84: 7146.12 | H84: 7443.62 | I84: 7503.18 | J84: 7592.37 | K84: 7414 | L84: 7265.25 | M84: 0.1655
A85: 75 | B85: BLUESTARCO | C85: 1005.25 | D85: 1005.92 | E85: 995.33 | F85: 985.42 | G85: 974.83 | H85: 1015.83 | I85: 1026.42 | J85: 1036.33 | K85: 1016.5 | L85: 996 | M85: 0.43793
A86: 76 | B86: BBTC | C86: 1362.55 | D86: 1371.85 | E86: 1340.70 | F86: 1318.85 | G86: 1287.70 | H86: 1393.70 | I86: 1424.85 | J86: 1446.70 | K86: 1403 | L86: 1350 | M86: 1.15888
A87: 77 | B87: BORORENEW | C87: 433.4 | D87: 436.18 | E87: 427.42 | F87: 421.43 | G87: 412.67 | H87: 442.17 | I87: 450.93 | J87: 456.92 | K87: 444.95 | L87: 430.2 | M87: 2.94171
A88: 78 | B88: BOSCHLTD | C88: 21626.25 | D88: 21610.97 | E88: 21475.23 | F88: 21324.22 | G88: 21188.48 | H88: 21761.98 | I88: 21897.72 | J88: 22048.73 | K88: 21746.7 | L88: 21459.95 | M88: 0.14151
A89: 79 | B89: BRIGADE | C89: 822.55 | D89: 828.07 | E89: 807.48 | F89: 792.42 | G89: 771.83 | H89: 843.13 | I89: 863.72 | J89: 878.78 | K89: 848.65 | L89: 813 | M89: 3.53881
A90: 80 | B90: BCG | C90: 21.6 | D90: 21.70 | E90: 20.45 | F90: 19.30 | G90: 18.05 | H90: 22.85 | I90: 24.10 | J90: 25.25 | K90: 22.95 | L90: 20.55 | M90: 1259.91281
A91: 81 | B91: BRITANNIA | C91: 4942.2 | D91: 4977.73 | E91: 4895.47 | F91: 4848.73 | G91: 4766.47 | H91: 5024.47 | I91: 5106.73 | J91: 5153.47 | K91: 5060 | L91: 4931 | M91: 2.82713
A92: 82 | B92: BSE | C92: 2417.65 | D92: 2437.55 | E92: 2390.10 | F92: 2362.55 | G92: 2315.10 | H92: 2465.10 | I92: 2512.55 | J92: 2540.10 | K92: 2485 | L92: 2410 | M92: 6.23727
A93: 83 | B93: MAPMYINDIA | C93: 2179 | D93: 2178.77 | E93: 2129.13 | F93: 2079.27 | G93: 2029.63 | H93: 2228.63 | I93: 2278.27 | J93: 2328.13 | K93: 2228.4 | L93: 2128.9 | M93: 1.06938
A94: 84 | B94: CAMPUS | C94: 273.55 | D94: 275.45 | E94: 270.05 | F94: 266.55 | G94: 261.15 | H94: 278.95 | I94: 284.35 | J94: 287.85 | K94: 280.85 | L94: 271.95 | M94: 5.60105
A95: 85 | B95: CANFINHOME | C95: 790.45 | D95: 791.30 | E95: 778.65 | F95: 766.85 | G95: 754.20 | H95: 803.10 | I95: 815.75 | J95: 827.55 | K95: 803.95 | L95: 779.5 | M95: 6.53127
A96: 86 | B96: CANBK | C96: 438.55 | D96: 436.60 | E96: 432.20 | F96: 425.85 | G96: 421.45 | H96: 442.95 | I96: 447.35 | J96: 453.70 | K96: 441 | L96: 430.25 | M96: 80.15793
A97: 87 | B97: CGCL | C97: 763.7 | D97: 765.85 | E97: 758.00 | F97: 752.30 | G97: 744.45 | H97: 771.55 | I97: 779.40 | J97: 785.10 | K97: 773.7 | L97: 760.15 | M97: 1.08991
A98: 88 | B98: CARBORUNIV | C98: 1205.3 | D98: 1201.90 | E98: 1194.40 | F98: 1183.50 | G98: 1176.00 | H98: 1212.80 | I98: 1220.30 | J98: 1231.20 | K98: 1209.4 | L98: 1191 | M98: 1.40159
A99: 89 | B99: CASTROLIND | C99: 140.45 | D99: 140.22 | E99: 139.23 | F99: 138.02 | G99: 137.03 | H99: 141.43 | I99: 142.42 | J99: 143.63 | K99: 141.2 | L99: 139 | M99: 11.51168
A100: 90 | B100: CCL | C100: 650.5 | D100: 653.93 | E100: 642.87 | F100: 635.23 | G100: 624.17 | H100: 661.57 | I100: 672.63 | J100: 680.27 | K100: 665 | L100: 646.3 | M100: 2.01581
A101: 91 | B101: CEATLTD | C101: 2322.85 | D101: 2305.90 | E101: 2277.00 | F101: 2231.15 | G101: 2202.25 | H101: 2351.75 | I101: 2380.65 | J101: 2426.50 | K101: 2334.8 | L101: 2260.05 | M101: 5.12177
A102: 92 | B102: CENTRALBK | C102: 46.95 | D102: 47.38 | E102: 46.12 | F102: 45.28 | G102: 44.02 | H102: 48.22 | I102: 49.48 | J102: 50.32 | K102: 48.65 | L102: 46.55 | M102: 162.32779
A103: 93 | B103: CDSL | C103: 1862.2 | D103: 1863.22 | E103: 1830.08 | F103: 1797.97 | G103: 1764.83 | H103: 1895.33 | I103: 1928.47 | J103: 1960.58 | K103: 1896.35 | L103: 1831.1 | M103: 6.63629
A104: 94 | B104: CENTURYPLY | C104: 686.85 | D104: 682.70 | E104: 675.40 | F104: 663.95 | G104: 656.65 | H104: 694.15 | I104: 701.45 | J104: 712.90 | K104: 690 | L104: 671.25 | M104: 1.1205
A105: 95 | B105: CENTURYTEX | C105: 1304.9 | D105: 1319.57 | E105: 1275.98 | F105: 1247.07 | G105: 1203.48 | H105: 1348.48 | I105: 1392.07 | J105: 1420.98 | K105: 1363.15 | L105: 1290.65 | M105: 2.69198
A106: 96 | B106: CERA | C106: 8462.25 | D106: 8484.07 | E106: 8418.18 | F106: 8374.12 | G106: 8308.23 | H106: 8528.13 | I106: 8594.02 | J106: 8638.08 | K106: 8549.95 | L106: 8440 | M106: 0.05264
A107: 97 | B107: CESC | C107: 120 | D107: 120.42 | E107: 117.83 | F107: 115.67 | G107: 113.08 | H107: 122.58 | I107: 125.17 | J107: 127.33 | K107: 123 | L107: 118.25 | M107: 139.07405
A108: 98 | B108: CGPOWER | C108: 454.85 | D108: 453.93 | E108: 447.42 | F108: 439.98 | G108: 433.47 | H108: 461.37 | I108: 467.88 | J108: 475.32 | K108: 460.45 | L108: 446.5 | M108: 31.63081
A109: 99 | B109: CHALET | C109: 583 | D109: 585.03 | E109: 576.07 | F109: 569.13 | G109: 560.17 | H109: 591.97 | I109: 600.93 | J109: 607.87 | K109: 594 | L109: 578.1 | M109: 1.39305
A110: 100 | B110: CHAMBLFERT | C110: 341.9 | D110: 343.87 | E110: 336.48 | F110: 331.07 | G110: 323.68 | H110: 349.28 | I110: 356.67 | J110: 362.08 | K110: 351.25 | L110: 338.45 | M110: 18.08585
A111: 101 | B111: CHEMPLASTS | C111: 479.45 | D111: 478.08 | E111: 473.17 | F111: 466.88 | G111: 461.97 | H111: 484.37 | I111: 489.28 | J111: 495.57 | K111: 483 | L111: 471.8 | M111: 0.94944
A112: 102 | B112: CHOLAHLDNG | C112: 1034.35 | D112: 1033.55 | E112: 1017.80 | F112: 1001.25 | G112: 985.50 | H112: 1050.10 | I112: 1065.85 | J112: 1082.40 | K112: 1049.3 | L112: 1017 | M112: 0.562
A113: 103 | B113: CHOLAFIN | C113: 1166.65 | D113: 1156.62 | E113: 1138.28 | F113: 1109.92 | G113: 1091.58 | H113: 1184.98 | I113: 1203.32 | J113: 1231.68 | K113: 1174.95 | L113: 1128.25 | M113: 28.02274
A114: 104 | B114: CIEINDIA | C114: 484.05 | D114: 484.10 | E114: 475.00 | F114: 465.95 | G114: 456.85 | H114: 493.15 | I114: 502.25 | J114: 511.30 | K114: 493.2 | L114: 475.05 | M114: 4.23479
A115: 105 | B115: CIPLA | C115: 1219.1 | D115: 1218.10 | E115: 1205.00 | F115: 1190.90 | G115: 1177.80 | H115: 1232.20 | I115: 1245.30 | J115: 1259.40 | K115: 1231.2 | L115: 1204 | M115: 14.53955
A116: 106 | B116: CUB | C116: 155.8 | D116: 155.23 | E116: 153.77 | F116: 151.73 | G116: 150.27 | H116: 157.27 | I116: 158.73 | J116: 160.77 | K116: 156.7 | L116: 153.2 | M116: 97.71682
A117: 107 | B117: CLEAN | C117: 1415.9 | D117: 1422.20 | E117: 1404.70 | F117: 1393.50 | G117: 1376.00 | H117: 1433.40 | I117: 1450.90 | J117: 1462.10 | K117: 1439.7 | L117: 1411 | M117: 0.66405
A118: 108 | B118: COALINDIA | C118: 351 | D118: 352.10 | E118: 345.80 | F118: 340.60 | G118: 334.30 | H118: 357.30 | I118: 363.60 | J118: 368.80 | K118: 358.4 | L118: 346.9 | M118: 134.44251
A119: 109 | B119: COCHINSHIP | C119: 1265 | D119: 1276.67 | E119: 1224.93 | F119: 1184.87 | G119: 1133.13 | H119: 1316.73 | I119: 1368.47 | J119: 1408.53 | K119: 1328.4 | L119: 1236.6 | M119: 32.67722
A120: 110 | B120: COFORGE | C120: 5783 | D120: 5797.67 | E120: 5675.38 | F120: 5567.77 | G120: 5445.48 | H120: 5905.28 | I120: 6027.57 | J120: 6135.18 | K120: 5919.95 | L120: 5690.05 | M120: 8.2691
A121: 111 | B121: COLPAL | C121: 2293.8 | D121: 2296.32 | E121: 2272.68 | F121: 2251.57 | G121: 2227.93 | H121: 2317.43 | I121: 2341.07 | J121: 2362.18 | K121: 2319.95 | L121: 2275.2 | M121: 2.68098
A122: 112 | B122: CAMS | C122: 2744.75 | D122: 2768.25 | E122: 2711.50 | F122: 2678.25 | G122: 2621.50 | H122: 2801.50 | I122: 2858.25 | J122: 2891.50 | K122: 2825 | L122: 2735 | M122: 3.80674
A123: 113 | B123: CONCOR | C123: 843.2 | D123: 844.68 | E123: 828.62 | F123: 814.03 | G123: 797.97 | H123: 859.27 | I123: 875.33 | J123: 889.92 | K123: 860.75 | L123: 830.1 | M123: 16.96687
A124: 114 | B124: COROMANDEL | C124: 1224.75 | D124: 1232.42 | E124: 1211.88 | F124: 1199.02 | G124: 1178.48 | H124: 1245.28 | I124: 1265.82 | J124: 1278.68 | K124: 1252.95 | L124: 1219.55 | M124: 2.03115
A125: 115 | B125: CRAFTSMAN | C125: 5172.55 | D125: 5164.80 | E125: 5087.75 | F125: 5002.95 | G125: 4925.90 | H125: 5249.60 | I125: 5326.65 | J125: 5411.45 | K125: 5241.85 | L125: 5080 | M125: 0.18842
A126: 116 | B126: CREDITACC | C126: 1704.8 | D126: 1713.25 | E126: 1692.55 | F126: 1680.30 | G126: 1659.60 | H126: 1725.50 | I126: 1746.20 | J126: 1758.45 | K126: 1733.95 | L126: 1701 | M126: 0.61768
A127: 117 | B127: CRISIL | C127: 4235.1 | D127: 4246.22 | E127: 4214.98 | F127: 4194.87 | G127: 4163.63 | H127: 4266.33 | I127: 4297.57 | J127: 4317.68 | K127: 4277.45 | L127: 4226.1 | M127: 0.17499
A128: 118 | B128: CROMPTON | C128: 299.45 | D128: 300.80 | E128: 295.70 | F128: 291.95 | G128: 286.85 | H128: 304.55 | I128: 309.65 | J128: 313.40 | K128: 305.9 | L128: 297.05 | M128: 22.32304
A129: 119 | B129: CSBBANK | C129: 401.15 | D129: 402.17 | E129: 396.68 | F129: 392.22 | G129: 386.73 | H129: 406.63 | I129: 412.12 | J129: 416.58 | K129: 407.65 | L129: 397.7 | M129: 1.70182
A130: 120 | B130: CUMMINSIND | C130: 1949.35 | D130: 1947.87 | E130: 1928.53 | F130: 1907.72 | G130: 1888.38 | H130: 1968.68 | I130: 1988.02 | J130: 2008.83 | K130: 1967.2 | L130: 1927.05 | M130: 2.53118
A131: 121 | B131: CYIENT | C131: 1949.85 | D131: 1959.98 | E131: 1919.97 | F131: 1890.08 | G131: 1850.07 | H131: 1989.87 | I131: 2029.88 | J131: 2059.77 | K131: 2000 | L131: 1930.1 | M131: 3.05137
A132: 122 | B132: DABUR | C132: 547.5 | D132: 549.85 | E132: 543.45 | F132: 539.40 | G132: 533.00 | H132: 553.90 | I132: 560.30 | J132: 564.35 | K132: 556.25 | L132: 545.8 | M132: 24.53675
A133: 123 | B133: DALBHARAT | C133: 2331.2 | D133: 2333.28 | E133: 2291.57 | F133: 2251.93 | G133: 2210.22 | H133: 2372.92 | I133: 2414.63 | J133: 2454.27 | K133: 2375 | L133: 2293.65 | M133: 3.29996
A134: 124 | B134: DATAPATTNS | C134: 2001.1 | D134: 2010.82 | E134: 1973.33 | F134: 1945.57 | G134: 1908.08 | H134: 2038.58 | I134: 2076.07 | J134: 2103.83 | K134: 2048.3 | L134: 1983.05 | M134: 0.82156
A135: 125 | B135: DCMSHRIRAM | C135: 949.45 | D135: 959.67 | E135: 930.53 | F135: 911.62 | G135: 882.48 | H135: 978.58 | I135: 1007.72 | J135: 1026.63 | K135: 988.8 | L135: 940.75 | M135: 0.70857
A136: 126 | B136: DEEPAKFERT | C136: 645.1 | D136: 651.35 | E136: 633.75 | F136: 622.40 | G136: 604.80 | H136: 662.70 | I136: 680.30 | J136: 691.65 | K136: 668.95 | L136: 640 | M136: 6.55144
A137: 127 | B137: DEEPAKNTR | C137: 2215.25 | D137: 2224.43 | E137: 2172.92 | F137: 2130.58 | G137: 2079.07 | H137: 2266.77 | I137: 2318.28 | J137: 2360.62 | K137: 2275.95 | L137: 2182.1 | M137: 3.06753
A138: 128 | B138: DELHIVERY | C138: 384.85 | D138: 386.65 | E138: 381.30 | F138: 377.75 | G138: 372.40 | H138: 390.20 | I138: 395.55 | J138: 399.10 | K138: 392 | L138: 383.1 | M138: 28.19267
A139: 129 | B139: DELTACORP | C139: 137.25 | D139: 138.52 | E139: 135.53 | F139: 133.82 | G139: 130.83 | H139: 140.23 | I139: 143.22 | J139: 144.93 | K139: 141.5 | L139: 136.8 | M139: 49.31049
A140: 130 | B140: DEVYANI | C140: 186.75 | D140: 187.52 | E140: 184.73 | F140: 182.72 | G140: 179.93 | H140: 189.53 | I140: 192.32 | J140: 194.33 | K140: 190.3 | L140: 185.5 | M140: 30.32367
A141: 131 | B141: DIVISLAB | C141: 3681.75 | D141: 3697.20 | E141: 3646.95 | F141: 3612.15 | G141: 3561.90 | H141: 3732.00 | I141: 3782.25 | J141: 3817.05 | K141: 3747.45 | L141: 3662.4 | M141: 4.55037
A142: 132 | B142: DIXON | C142: 5964.9 | D142: 5968.82 | E142: 5889.48 | F142: 5814.07 | G142: 5734.73 | H142: 6044.23 | I142: 6123.57 | J142: 6198.98 | K142: 6048.15 | L142: 5893.4 | M142: 1.93098
A143: 133 | B143: DLF | C143: 649.9 | D143: 651.75 | E143: 639.60 | F143: 629.30 | G143: 617.15 | H143: 662.05 | I143: 674.20 | J143: 684.50 | K143: 663.9 | L143: 641.45 | M143: 39.37417
A144: 134 | B144: LALPATHLAB | C144: 2638.55 | D144: 2651.72 | E144: 2593.88 | F144: 2549.22 | G144: 2491.38 | H144: 2696.38 | I144: 2754.22 | J144: 2798.88 | K144: 2709.55 | L144: 2607.05 | M144: 1.92252
A145: 135 | B145: DRREDDY | C145: 5763.9 | D145: 5753.58 | E145: 5722.32 | F145: 5680.73 | G145: 5649.47 | H145: 5795.17 | I145: 5826.43 | J145: 5868.02 | K145: 5784.85 | L145: 5712 | M145: 2.28505
A146: 136 | B146: EIDPARRY | C146: 532.45 | D146: 531.78 | E146: 517.57 | F146: 502.68 | G146: 488.47 | H146: 546.67 | I146: 560.88 | J146: 575.77 | K146: 546 | L146: 516.9 | M146: 17.03694
A147: 137 | B147: EASEMYTRIP | C147: 38.55 | D147: 38.68 | E147: 38.32 | F147: 38.08 | G147: 37.72 | H147: 38.92 | I147: 39.28 | J147: 39.52 | K147: 39.05 | L147: 38.45 | M147: 136.07155
A148: 138 | B148: ECLERX | C148: 2543.4 | D148: 2566.13 | E148: 2502.27 | F148: 2461.13 | G148: 2397.27 | H148: 2607.27 | I148: 2671.13 | J148: 2712.27 | K148: 2630 | L148: 2525 | M148: 0.34274
A149: 139 | B149: EICHERMOT | C149: 4055 | D149: 4065.40 | E149: 4018.40 | F149: 3981.80 | G149: 3934.80 | H149: 4102.00 | I149: 4149.00 | J149: 4185.60 | K149: 4112.4 | L149: 4028.8 | M149: 3.34252
A150: 140 | B150: EIHOTEL | C150: 247.35 | D150: 248.62 | E150: 241.73 | F150: 236.12 | G150: 229.23 | H150: 254.23 | I150: 261.12 | J150: 266.73 | K150: 255.5 | L150: 243 | M150: 16.46185
A151: 141 | B151: ELGIEQUIP | C151: 536.4 | D151: 534.85 | E151: 520.05 | F151: 503.70 | G151: 488.90 | H151: 551.20 | I151: 566.00 | J151: 582.35 | K151: 549.65 | L151: 518.5 | M151: 14.67862
A152: 142 | B152: EMAMILTD | C152: 497.95 | D152: 499.62 | E152: 494.63 | F152: 491.32 | G152: 486.33 | H152: 502.93 | I152: 507.92 | J152: 511.23 | K152: 504.6 | L152: 496.3 | M152: 7.56989
A153: 143 | B153: ENDURANCE | C153: 1670.5 | D153: 1676.00 | E153: 1649.50 | F153: 1628.50 | G153: 1602.00 | H153: 1697.00 | I153: 1723.50 | J153: 1744.50 | K153: 1702.5 | L153: 1655 | M153: 0.42303
A154: 144 | B154: ENGINERSIN | C154: 153.25 | D154: 154.27 | E154: 150.48 | F154: 147.72 | G154: 143.93 | H154: 157.03 | I154: 160.82 | J154: 163.58 | K154: 158.05 | L154: 151.5 | M154: 41.61021
A155: 145 | B155: EPL | C155: 198 | D155: 198.92 | E155: 195.33 | F155: 192.67 | G155: 189.08 | H155: 201.58 | I155: 205.17 | J155: 207.83 | K155: 202.5 | L155: 196.25 | M155: 5.40319
A156: 146 | B156: EQUITASBNK | C156: 95 | D156: 95.27 | E156: 94.28 | F156: 93.57 | G156: 92.58 | H156: 95.98 | I156: 96.97 | J156: 97.68 | K156: 96.25 | L156: 94.55 | M156: 32.03644
A157: 147 | B157: ERIS | C157: 876.35 | D157: 884.57 | E157: 864.13 | F157: 851.92 | G157: 831.48 | H157: 896.78 | I157: 917.22 | J157: 929.43 | K157: 905 | L157: 872.35 | M157: 0.78788
A158: 148 | B158: ESCORTS | C158: 3145.3 | D158: 3173.28 | E158: 3082.67 | F158: 3020.03 | G158: 2929.42 | H158: 3235.92 | I158: 3326.53 | J158: 3389.17 | K158: 3263.9 | L158: 3110.65 | M158: 4.13007
A159: 149 | B159: EXIDEIND | C159: 289.9 | D159: 291.85 | E159: 285.30 | F159: 280.70 | G159: 274.15 | H159: 296.45 | I159: 303.00 | J159: 307.60 | K159: 298.4 | L159: 287.25 | M159: 23.63589
A160: 150 | B160: FDC | C160: 403.6 | D160: 405.83 | E160: 396.37 | F160: 389.13 | G160: 379.67 | H160: 413.07 | I160: 422.53 | J160: 429.77 | K160: 415.3 | L160: 398.6 | M160: 1.88286
A161: 151 | B161: FEDERALBNK | C161: 154.5 | D161: 154.48 | E161: 153.27 | F161: 152.03 | G161: 150.82 | H161: 155.72 | I161: 156.93 | J161: 158.17 | K161: 155.7 | L161: 153.25 | M161: 69.69212
A162: 152 | B162: FACT | C162: 758.2 | D162: 767.03 | E162: 735.22 | F162: 712.23 | G162: 680.42 | H162: 790.02 | I162: 821.83 | J162: 844.82 | K162: 798.85 | L162: 744.05 | M162: 13.20954
A163: 153 | B163: FINEORG | C163: 4457.35 | D163: 4484.13 | E163: 4398.37 | F163: 4339.38 | G163: 4253.62 | H163: 4543.12 | I163: 4628.88 | J163: 4687.87 | K163: 4569.9 | L163: 4425.15 | M163: 0.25877
A164: 154 | B164: FINCABLES | C164: 1032.15 | D164: 1040.05 | E164: 1020.10 | F164: 1008.05 | G164: 988.10 | H164: 1052.10 | I164: 1072.05 | J164: 1084.10 | K164: 1060 | L164: 1028 | M164: 1.84917
A165: 155 | B165: FINPIPE | C165: 212.5 | D165: 214.38 | E165: 208.87 | F165: 205.23 | G165: 199.72 | H165: 218.02 | I165: 223.53 | J165: 227.17 | K165: 219.9 | L165: 210.75 | M165: 13.75884
A166: 156 | B166: FSL | C166: 175.85 | D166: 176.47 | E166: 173.38 | F166: 170.92 | G166: 167.83 | H166: 178.93 | I166: 182.02 | J166: 184.48 | K166: 179.55 | L166: 174 | M166: 35.80437
A167: 157 | B167: FIVESTAR | C167: 735.15 | D167: 741.13 | E167: 723.47 | F167: 711.78 | G167: 694.12 | H167: 752.82 | I167: 770.48 | J167: 782.17 | K167: 758.8 | L167: 729.45 | M167: 251.98901
A168: 158 | B168: FORTIS | C168: 382.05 | D168: 382.18 | E168: 379.87 | F168: 377.68 | G168: 375.37 | H168: 384.37 | I168: 386.68 | J168: 388.87 | K168: 384.5 | L168: 380 | M168: 16.82641
A169: 159 | B169: NYKAA | C169: 170.6 | D169: 171.27 | E169: 167.53 | F169: 164.47 | G169: 160.73 | H169: 174.33 | I169: 178.07 | J169: 181.13 | K169: 175 | L169: 168.2 | M169: 31.89419
A170: 160 | B170: GRINFRA | C170: 1230.7 | D170: 1235.35 | E170: 1196.70 | F170: 1162.70 | G170: 1124.05 | H170: 1269.35 | I170: 1308.00 | J170: 1342.00 | K170: 1274 | L170: 1201.35 | M170: 1.11095
A171: 161 | B171: GAIL | C171: 140.35 | D171: 140.83 | E171: 136.87 | F171: 133.38 | G171: 129.42 | H171: 144.32 | I171: 148.28 | J171: 151.77 | K171: 144.8 | L171: 137.35 | M171: 189.95777
A172: 162 | B172: GALAXYSURF | C172: 2754.8 | D172: 2753.77 | E172: 2731.08 | F172: 2707.37 | G172: 2684.68 | H172: 2777.48 | I172: 2800.17 | J172: 2823.88 | K172: 2776.45 | L172: 2730.05 | M172: 0.38842
A173: 163 | B173: GARFIBRES | C173: 3388.55 | D173: 3390.40 | E173: 3369.65 | F173: 3350.75 | G173: 3330.00 | H173: 3409.30 | I173: 3430.05 | J173: 3448.95 | K173: 3411.15 | L173: 3371.5 | M173: 0.06484
A174: 164 | B174: GICRE | C174: 304.3 | D174: 305.80 | E174: 298.75 | F174: 293.20 | G174: 286.15 | H174: 311.35 | I174: 318.40 | J174: 323.95 | K174: 312.85 | L174: 300.25 | M174: 10.3871
A175: 165 | B175: GLAND | C175: 1777.75 | D175: 1774.42 | E175: 1755.43 | F175: 1733.12 | G175: 1714.13 | H175: 1796.73 | I175: 1815.72 | J175: 1838.03 | K175: 1793.4 | L175: 1752.1 | M175: 3.0013
A176: 166 | B176: GLAXO | C176: 1690.1 | D176: 1695.37 | E176: 1676.78 | F176: 1663.47 | G176: 1644.88 | H176: 1708.68 | I176: 1727.27 | J176: 1740.58 | K176: 1713.95 | L176: 1682.05 | M176: 1.10263
A177: 167 | B177: GLENMARK | C177: 795.95 | D177: 803.35 | E177: 779.70 | F177: 763.45 | G177: 739.80 | H177: 819.60 | I177: 843.25 | J177: 859.50 | K177: 827 | L177: 787.1 | M177: 24.0231
A178: 168 | B178: MEDANTA | C178: 934.75 | D178: 945.55 | E178: 920.20 | F178: 905.65 | G178: 880.30 | H178: 960.10 | I178: 985.45 | J178: 1000.00 | K178: 970.9 | L178: 931 | M178: 3.25504
A179: 169 | B179: GMMPFAUDLR | C179: 1491.4 | D179: 1495.87 | E179: 1482.13 | F179: 1472.87 | G179: 1459.13 | H179: 1505.13 | I179: 1518.87 | J179: 1528.13 | K179: 1509.6 | L179: 1486.6 | M179: 0.95065
A180: 170 | B180: GMRINFRA | C180: 68.9 | D180: 66.02 | E180: 61.63 | F180: 54.37 | G180: 49.98 | H180: 73.28 | I180: 77.67 | J180: 84.93 | K180: 70.4 | L180: 58.75 | M180: 4872.19557
A181: 171 | B181: GOCOLORS | C181: 1301.6 | D181: 1298.58 | E181: 1278.02 | F181: 1254.43 | G181: 1233.87 | H181: 1322.17 | I181: 1342.73 | J181: 1366.32 | K181: 1319.15 | L181: 1275 | M181: 1.54412
A182: 172 | B182: GODFRYPHLP | C182: 2058.65 | D182: 2077.25 | E182: 2036.40 | F182: 2014.15 | G182: 1973.30 | H182: 2099.50 | I182: 2140.35 | J182: 2162.60 | K182: 2118.1 | L182: 2055 | M182: 0.33008
A183: 173 | B183: GODREJAGRO | C183: 520.05 | D183: 521.33 | E183: 512.22 | F183: 504.38 | G183: 495.27 | H183: 529.17 | I183: 538.28 | J183: 546.12 | K183: 530.45 | L183: 513.5 | M183: 4.12141
A184: 174 | B184: GODREJCP | C184: 1021.55 | D184: 1021.40 | E184: 1015.85 | F184: 1010.15 | G184: 1004.60 | H184: 1027.10 | I184: 1032.65 | J184: 1038.35 | K184: 1026.95 | L184: 1015.7 | M184: 5.63822
A185: 175 | B185: GODREJIND | C185: 668.15 | D185: 669.33 | E185: 663.77 | F185: 659.38 | G185: 653.82 | H185: 673.72 | I185: 679.28 | J185: 683.67 | K185: 674.9 | L185: 664.95 | M185: 2.95555
A186: 176 | B186: GODREJPROP | C186: 1930.15 | D186: 1929.52 | E186: 1904.03 | F186: 1877.92 | G186: 1852.43 | H186: 1955.63 | I186: 1981.12 | J186: 2007.23 | K186: 1955 | L186: 1903.4 | M186: 4.30579
A187: 177 | B187: GRANULES | C187: 388.45 | D187: 390.83 | E187: 382.12 | F187: 375.78 | G187: 367.07 | H187: 397.17 | I187: 405.88 | J187: 412.22 | K187: 399.55 | L187: 384.5 | M187: 8.01967
A188: 178 | B188: GRAPHITE | C188: 506.45 | D188: 509.15 | E188: 498.35 | F188: 490.25 | G188: 479.45 | H188: 517.25 | I188: 528.05 | J188: 536.15 | K188: 519.95 | L188: 501.05 | M188: 7.82998
A189: 179 | B189: GRASIM | C189: 2070.05 | D189: 2070.67 | E189: 2042.03 | F189: 2014.02 | G189: 1985.38 | H189: 2098.68 | I189: 2127.32 | J189: 2155.33 | K189: 2099.3 | L189: 2042.65 | M189: 5.92431
A190: 180 | B190: GESHIP | C190: 892.85 | D190: 890.85 | E190: 879.90 | F190: 866.95 | G190: 856.00 | H190: 903.80 | I190: 914.75 | J190: 927.70 | K190: 901.8 | L190: 877.9 | M190: 1.84262
A191: 181 | B191: GREENPANEL | C191: 339.8 | D191: 340.27 | E191: 337.03 | F191: 334.27 | G191: 331.03 | H191: 343.03 | I191: 346.27 | J191: 349.03 | K191: 343.5 | L191: 337.5 | M191: 2.12412
A192: 182 | B192: GRINDWELL | C192: 2198.35 | D192: 2198.72 | E192: 2187.63 | F192: 2176.92 | G192: 2165.83 | H192: 2209.43 | I192: 2220.52 | J192: 2231.23 | K192: 2209.8 | L192: 2188 | M192: 0.31177
A193: 183 | B193: GUJALKALI | C193: 744.5 | D193: 748.28 | E193: 732.22 | F193: 719.93 | G193: 703.87 | H193: 760.57 | I193: 776.63 | J193: 788.92 | K193: 764.35 | L193: 736 | M193: 0.94977
A194: 184 | B194: GAEL | C194: 369.6 | D194: 374.03 | E194: 360.67 | F194: 351.73 | G194: 338.37 | H194: 382.97 | I194: 396.33 | J194: 405.27 | K194: 387.4 | L194: 365.1 | M194: 5.85305
A195: 185 | B195: FLUOROCHEM | C195: 2843.25 | D195: 2843.67 | E195: 2812.33 | F195: 2781.42 | G195: 2750.08 | H195: 2874.58 | I195: 2905.92 | J195: 2936.83 | K195: 2875 | L195: 2812.75 | M195: 0.91414
A196: 186 | B196: GUJGASLTD | C196: 440.3 | D196: 442.00 | E196: 437.75 | F196: 435.20 | G196: 430.95 | H196: 444.55 | I196: 448.80 | J196: 451.35 | K196: 446.25 | L196: 439.45 | M196: 20.98749
A197: 187 | B197: GNFC | C197: 718.55 | D197: 723.98 | E197: 704.72 | F197: 690.88 | G197: 671.62 | H197: 737.82 | I197: 757.08 | J197: 770.92 | K197: 743.25 | L197: 710.15 | M197: 8.15961
A198: 188 | B198: GPPL | C198: 150.35 | D198: 151.78 | E198: 146.92 | F198: 143.48 | G198: 138.62 | H198: 155.22 | I198: 160.08 | J198: 163.52 | K198: 156.65 | L198: 148.35 | M198: 32.12909
A199: 189 | B199: GSFC | C199: 223 | D199: 224.33 | E199: 217.17 | F199: 211.33 | G199: 204.17 | H199: 230.17 | I199: 237.33 | J199: 243.17 | K199: 231.5 | L199: 218.5 | M199: 62.26041
A200: 190 | B200: GSPL | C200: 297.95 | D200: 295.65 | E200: 288.60 | F200: 279.25 | G200: 272.20 | H200: 305.00 | I200: 312.05 | J200: 321.40 | K200: 302.7 | L200: 286.3 | M200: 40.72993
A201: 191 | B201: HEG | C201: 1719.9 | D201: 1728.62 | E201: 1697.33 | F201: 1674.77 | G201: 1643.48 | H201: 1751.18 | I201: 1782.47 | J201: 1805.03 | K201: 1759.9 | L201: 1706.05 | M201: 1.62861
A202: 192 | B202: HAPPSTMNDS | C202: 882.7 | D202: 883.33 | E202: 866.77 | F202: 850.83 | G202: 834.27 | H202: 899.27 | I202: 915.83 | J202: 931.77 | K202: 899.9 | L202: 867.4 | M202: 14.89107
A203: 193 | B203: HAVELLS | C203: 1343 | D203: 1344.00 | E203: 1331.00 | F203: 1319.00 | G203: 1306.00 | H203: 1356.00 | I203: 1369.00 | J203: 1381.00 | K203: 1357 | L203: 1332 | M203: 5.14463
A204: 194 | B204: HCLTECH | C204: 1364.1 | D204: 1354.35 | E204: 1338.75 | F204: 1313.40 | G204: 1297.80 | H204: 1379.70 | I204: 1395.30 | J204: 1420.65 | K204: 1369.95 | L204: 1329 | M204: 45.09751
A205: 195 | B205: HDFCAMC | C205: 2987.05 | D205: 2990.88 | E205: 2969.07 | F205: 2951.08 | G205: 2929.27 | H205: 3008.87 | I205: 3030.68 | J205: 3048.67 | K205: 3012.7 | L205: 2972.9 | M205: 4.87269
A206: 196 | B206: HDFCBANK | C206: 1653.2 | D206: 1646.22 | E206: 1637.43 | F206: 1621.67 | G206: 1612.88 | H206: 1661.98 | I206: 1670.77 | J206: 1686.53 | K206: 1655 | L206: 1630.45 | M206: 168.64019
... 319 more rows

Sheet Bulk Deals
E6: Back To Main Page
A7: Subject : | B7: BULK DEAL | D7: =Main!B10 -> 2023-12-11
A9: Date | B9: Scrip code | C9: Scrip Name | D9: Client Name | E9: Buy / Sell | F9: Quantity Traded | G9: Trade Price / Wt.Avg.trade price | H9: Exchange
A10: 2023-12-08 | B10: 541144 | C10: ACTIVE | D10: LAXMAN SOPAN WAGHMODE | E10: BUY | F10: 134,349 | G10: 97.05 | H10: BSE
A11: 2023-12-08 | B11: 539773 | C11: ADVIKCA | D11: SILVERTOSS SHOPPERS PRIVATE LIMITED | E11: SELL | F11: 6,143,695 | G11: 2.42 | H11: BSE
A12: 2023-12-08 | B12: 539773 | C12: ADVIKCA | D12: SILVERTOSS SHOPPERS PRIVATE LIMITED | E12: BUY | F12: 694,156 | G12: 2.54 | H12: BSE
A13: 2023-12-08 | B13: 540718 | C13: AKM | D13: MAHADEV MANUBHAI MAKVANA | E13: BUY | F13: 39,000 | G13: 52.6 | H13: BSE
A14: 2023-12-08 | B14: 540718 | C14: AKM | D14: MITHLESH CONSULTANCY LLP | E14: SELL | F14: 45,000 | G14: 52.61 | H14: BSE
A15: 2023-12-08 | B15: 511463 | C15: ALEXANDER | D15: RAHUL KUMAR DAGA | E15: SELL | F15: 75,000 | G15: 18.5 | H15: BSE
A16: 2023-12-08 | B16: 511463 | C16: ALEXANDER | D16: SHASHANK DIXIT | E16: SELL | F16: 28,583 | G16: 19.67 | H16: BSE
A17: 2023-12-08 | B17: 511463 | C17: ALEXANDER | D17: SHASHANK DIXIT | E17: BUY | F17: 418,955 | G17: 18.95 | H17: BSE
A18: 2023-12-08 | B18: 511463 | C18: ALEXANDER | D18: RAJVISATISHGOSRANI | E18: SELL | F18: 48,980 | G18: 20.34 | H18: BSE
A19: 2023-12-08 | B19: 511463 | C19: ALEXANDER | D19: TEJESH HASMUKH SHAH | E19: SELL | F19: 50,310 | G19: 18.98 | H19: BSE
A20: 2023-12-08 | B20: 544037 | C20: AMIC | D20: MULTIPLIER SHARE & STOCK ADVISORS PRIVATE LIMITED | E20: BUY | F20: 63,000 | G20: 277.05 | H20: BSE
A21: 2023-12-08 | B21: 507828 | C21: ANSALHSG | D21: ANSHUAGARWAL | E21: SELL | F21: 425,748 | G21: 9.01 | H21: BSE
A22: 2023-12-08 | B22: 542285 | C22: AXITA | D22: NAV CAPITAL VCC - NAV CAPITAL EMERGING STAR FUND | E22: BUY | F22: 1,500,000 | G22: 39.1 | H22: BSE
A23: 2023-12-08 | B23: 542285 | C23: AXITA | D23: NITINBHAI GOVINDBHAI PATEL | E23: SELL | F23: 2,141,558 | G23: 39.1 | H23: BSE
A24: 2023-12-08 | B24: 537766 | C24: BCP | D24: ARUN KUMAR JAIN | E24: SELL | F24: 430,083 | G24: 5.54 | H24: BSE
A25: 2023-12-08 | B25: 504340 | C25: CONFINT | D25: B RAKESH CHORDIA | E25: BUY | F25: 70,000 | G25: 7.88 | H25: BSE
A26: 2023-12-08 | B26: 504340 | C26: CONFINT | D26: SETU SECURITIES PVT. LTD. | E26: SELL | F26: 100,000 | G26: 8.01 | H26: BSE
A27: 2023-12-08 | B27: 504340 | C27: CONFINT | D27: VISHANKVILASPATIL | E27: SELL | F27: 806,846 | G27: 7.87 | H27: BSE
A28: 2023-12-08 | B28: 504340 | C28: CONFINT | D28: SADASHIVAMURTHY ANURADHA | E28: BUY | F28: 352,500 | G28: 7.87 | H28: BSE
A29: 2023-12-08 | B29: 504340 | C29: CONFINT | D29: KAVERI | E29: BUY | F29: 75,000 | G29: 7.86 | H29: BSE
A30: 2023-12-08 | B30: 504340 | C30: CONFINT | D30: ANAND MOHAN | E30: BUY | F30: 225,024 | G30: 7.86 | H30: BSE
A31: 2023-12-08 | B31: 504340 | C31: CONFINT | D31: GLASTONMARIOMENEZES | E31: BUY | F31: 105,000 | G31: 7.71 | H31: BSE
A32: 2023-12-08 | B32: 512379 | C32: CRESSAN | D32: NIKHILESH TRADERS LLP | E32: BUY | F32: 1,152,586 | G32: 23.89 | H32: BSE
A33: 2023-12-08 | B33: 512379 | C33: CRESSAN | D33: NIKHILESH TRADERS LLP | E33: SELL | F33: 2,310,265 | G33: 23.95 | H33: BSE
A34: 2023-12-08 | B34: 512379 | C34: CRESSAN | D34: GUJARISH TRADEWING LLP | E34: SELL | F34: 2,578,316 | G34: 23.78 | H34: BSE
A35: 2023-12-08 | B35: 544036 | C35: DEEPAKCHEM | D35: YUGA STOCKS AND COMMODITIES PRIVATE LIMITED . | E35: SELL | F35: 78,400 | G35: 144.04 | H35: BSE
A36: 2023-12-08 | B36: 524818 | C36: DYNAMIND | D36: CHAUHAN TRISHUL JITUSINH | E36: SELL | F36: 41,373 | G36: 76.21 | H36: BSE
A37: 2023-12-08 | B37: 532754 | C37: GMRINFRA | D37: GQG PARTNERS EMERGING MARKETS EQUITY FUND | E37: BUY | F37: 92,636,787 | G37: 59.09 | H37: BSE
A38: 2023-12-08 | B38: 532754 | C38: GMRINFRA | D38: GOLDMAN SACHS TRUST II-GOLDMAN SACHS GQG PARTNERS INTL OPPORTUNITIES FUND | E38: BUY | F38: 190,245,637 | G38: 59.09 | H38: BSE
A39: 2023-12-08 | B39: 532754 | C39: GMRINFRA | D39: NOMURA INDIA INVESTMENT FUND MOTHER FUND | E39: BUY | F39: 62,485,851 | G39: 58.2 | H39: BSE
A40: 2023-12-08 | B40: 532754 | C40: GMRINFRA | D40: STICHTING DEPOSITARY APG EMERGING MARKETS EQUITY POOL | E40: BUY | F40: 34,027,880 | G40: 58.2 | H40: BSE
A41: 2023-12-08 | B41: 532754 | C41: GMRINFRA | D41: DECCAN VALUE INVESTORS FUND L.P. | E41: SELL | F41: 56,181,269 | G41: 58.2 | H41: BSE
A42: 2023-12-08 | B42: 532754 | C42: GMRINFRA | D42: A/D INVESTORS FUND L.P. | E42: SELL | F42: 75,649,350 | G42: 58.2 | H42: BSE
A43: 2023-12-08 | B43: 532754 | C43: GMRINFRA | D43: ASN INVESTMENTS LIMITED | E43: SELL | F43: 439,069,922 | G43: 58.21 | H43: BSE
A44: 2023-12-08 | B44: 532754 | C44: GMRINFRA | D44: VARANIUM INDIA OPPORTUNITY LTD | E44: SELL | F44: 139,004,685 | G44: 58.47 | H44: BSE
A45: 2023-12-08 | B45: 542850 | C45: GOBLIN | D45: GOENKA BUSINESS & FINANCE LIMITED | E45: SELL | F45: 140,000 | G45: 53.51 | H45: BSE
A46: 2023-12-08 | B46: 526729 | C46: GOLDIAM | D46: RASHESH BHANSALI | E46: SELL | F46: 1,000,000 | G46: 179.98 | H46: BSE
A47: 2023-12-08 | B47: 531913 | C47: GOPAIST | D47: KAPIL | E47: SELL | F47: 35,197 | G47: 6.73 | H47: BSE
A48: 2023-12-08 | B48: 524238 | C48: GUJINJEC | D48: KUMAR GAURAV GUPTA | E48: SELL | F48: 25,099 | G48: 8.9 | H48: BSE
A49: 2023-12-08 | B49: 532467 | C49: HAZOOR | D49: BLAVANYA BLAVANYA | E49: SELL | F49: 170,000 | G49: 257.85 | H49: BSE
A50: 2023-12-08 | B50: 540377 | C50: IFL | D50: MONEYSTAR TRADELINK PRIVATE LIMITED | E50: SELL | F50: 1,820,443 | G50: 3.43 | H50: BSE
A51: 2023-12-08 | B51: 543905 | C51: INNOKAIZ | D51: SADASHIV KANYANA SHETTY | E51: SELL | F51: 52,000 | G51: 105.05 | H51: BSE
A52: 2023-12-08 | B52: 543905 | C52: INNOKAIZ | D52: SADASHIV KANYANA SHETTY | E52: BUY | F52: 48,000 | G52: 109.59 | H52: BSE
A53: 2023-12-08 | B53: 538539 | C53: JTAPARIA | D53: AYAN SHIRISHBHAI SHAH | E53: BUY | F53: 100,000 | G53: 64.49 | H53: BSE
A54: 2023-12-08 | B54: 505523 | C54: MAHACORP | D54: SPOONBILL CONSULTANCY SERVICES PRIVATE LIMITED | E54: SELL | F54: 1,500,000 | G54: 1.61 | H54: BSE
A55: 2023-12-08 | B55: 505523 | C55: MAHACORP | D55: NIKHIL RAJESH SINGH | E55: SELL | F55: 1,220,127 | G55: 1.67 | H55: BSE
A56: 2023-12-08 | B56: 505523 | C56: MAHACORP | D56: NIKHIL RAJESH SINGH | E56: BUY | F56: 1,391,981 | G56: 1.61 | H56: BSE
A57: 2023-12-08 | B57: 544015 | C57: MISHDESIGN | D57: SUNEETHA DAMERA | E57: BUY | F57: 21,000 | G57: 138.07 | H57: BSE
A58: 2023-12-08 | B58: 537291 | C58: NATHBIOGEN | D58: AGRI TECH INDIA LIMITED | E58: SELL | F58: 510,500 | G58: 196 | H58: BSE
A59: 2023-12-08 | B59: 537291 | C59: NATHBIOGEN | D59: ASHU FARMS LLP | E59: BUY | F59: 510,500 | G59: 196 | H59: BSE
A60: 2023-12-08 | B60: 524558 | C60: NEULANDLAB | D60: RAMAMOHAN RAO DAVULURI | E60: SELL | F60: 400,000 | G60: 5012.45 | H60: BSE
A61: 2023-12-08 | B61: 543814 | C61: PCL | D61: AJAY SALVI | E61: SELL | F61: 34,000 | G61: 69 | H61: BSE
A62: 2023-12-08 | B62: 543814 | C62: PCL | D62: SHREYANS SHANTILAL SHAH | E62: SELL | F62: 8,000 | G62: 65.26 | H62: BSE
A63: 2023-12-08 | B63: 543814 | C63: PCL | D63: SHREYANS SHANTILAL SHAH | E63: BUY | F63: 34,000 | G63: 69 | H63: BSE
A64: 2023-12-08 | B64: 526773 | C64: PRESSURS | D64: MULTIPLIER SHARE & STOCK ADVISORS PRIVATE LIMITED | E64: BUY | F64: 79,696 | G64: 9.16 | H64: BSE
A65: 2023-12-08 | B65: 526773 | C65: PRESSURS | D65: MULTIPLIER SHARE & STOCK ADVISORS PRIVATE LIMITED | E65: SELL | F65: 779,696 | G65: 9.16 | H65: BSE
A66: 2023-12-08 | B66: 540293 | C66: PRICOLLTD | D66: PHI CAPITAL SOLUTIONS LLP | E66: SELL | F66: 3,003,003 | G66: 333.16 | H66: BSE
A67: 2023-12-08 | B67: 540293 | C67: PRICOLLTD | D67: GOLDMAN SACHS INDIA LIMITED | E67: BUY | F67: 2,894,619 | G67: 333 | H67: BSE
A68: 2023-12-08 | B68: 536659 | C68: PVVINFRA | D68: CHINMAY SHRIKRISHNA SATHE | E68: SELL | F68: 66,315 | G68: 25.99 | H68: BSE
A69: 2023-12-08 | B69: 500358 | C69: RAMAPETRO | D69: RAMESH CHIMANLAL SHAH | E69: SELL | F69: 55,579 | G69: 4.01 | H69: BSE
A70: 2023-12-08 | B70: 539669 | C70: RGF | D70: MULTIPLIER SHARE & STOCK ADVISORS PRIVATE LIMITED | E70: SELL | F70: 1,820,789 | G70: 0.41 | H70: BSE
A71: 2023-12-08 | B71: 543171 | C71: ROJL | D71: SUMANCHEPURI | E71: BUY | F71: 294,683 | G71: 4.05 | H71: BSE
A72: 2023-12-08 | B72: 512197 | C72: SILVERO | D72: NARENDRA BABU KADATHUR HARIDAS | E72: SELL | F72: 21,570 | G72: 2.52 | H72: BSE
A73: 2023-12-08 | B73: 512197 | C73: SILVERO | D73: N L RUNGTA (HUF) | E73: BUY | F73: 17,000 | G73: 2.51 | H73: BSE
A74: 2023-12-08 | B74: 512197 | C74: SILVERO | D74: N L RUNGTA (HUF) | E74: SELL | F74: 4,500 | G74: 2.65 | H74: BSE
A75: 2023-12-08 | B75: 543924 | C75: SONALIS | D75: BEELINE BROKING LIMITED | E75: SELL | F75: 10,000 | G75: 31.56 | H75: BSE
A76: 2023-12-08 | B76: 543924 | C76: SONALIS | D76: BEELINE BROKING LIMITED | E76: BUY | F76: 8,000 | G76: 31.09 | H76: BSE
A77: 2023-12-08 | B77: 540492 | C77: STARLENT | D77: PADMANABH CORPORATION | E77: BUY | F77: 700,000 | G77: 113.25 | H77: BSE
A78: 2023-12-08 | B78: 540492 | C78: STARLENT | D78: DHIRAJBHAI VAGHJIBHAI KORADIYA | E78: SELL | F78: 1,200,000 | G78: 113.27 | H78: BSE
A79: 2023-12-08 | B79: 539310 | C79: THINKINK | D79: B B COMMERCIAL LTD | E79: BUY | F79: 110,234 | G79: 82.48 | H79: BSE
A80: 2023-12-08 | B80: 539310 | C80: THINKINK | D80: B B COMMERCIAL LTD | E80: SELL | F80: 185,470 | G80: 81.73 | H80: BSE
A81: 2023-12-08 | B81: 539310 | C81: THINKINK | D81: BRUGESHKAR REDDY MUCHA | E81: BUY | F81: 315,140 | G81: 82 | H81: BSE
A82: 2023-12-08 | B82: 539310 | C82: THINKINK | D82: BRUGESHKAR REDDY MUCHA | E82: SELL | F82: 74,681 | G82: 79.94 | H82: BSE
A83: 2023-12-08 | B83: 543545 | C83: VEERKRUPA | D83: NIKHIL RAJESH SINGH | E83: BUY | F83: 1,887,100 | G83: 1.41 | H83: BSE
A84: 2023-12-08 | B84: 543545 | C84: VEERKRUPA | D84: NIKHIL RAJESH SINGH | E84: SELL | F84: 1,452,900 | G84: 1.43 | H84: BSE
A85: 2023-12-08 | B85: 543545 | C85: VEERKRUPA | D85: APPU FINANCIAL SERVICES LTD | E85: SELL | F85: 1,002,000 | G85: 1.41 | H85: BSE
A86: 2023-12-08 | B86: 543545 | C86: VEERKRUPA | D86: AKSHAY RAJENDRABHAI OSWAL | E86: SELL | F86: 1,135,600 | G86: 1.41 | H86: BSE
A87: 2023-12-08 | B87: 542803 | C87: VEL | D87: SKPM VENTURES LLP | E87: SELL | F87: 45,000 | G87: 19.09 | H87: BSE
A88: 2023-12-08 | B88: 542803 | C88: VEL | D88: UNIQUE INVESTMENT | E88: SELL | F88: 53,366 | G88: 19.09 | H88: BSE
A89: 2023-12-08 | B89: 542803 | C89: VEL | D89: VEENA RAJESH SHAH | E89: BUY | F89: 81,189 | G89: 19.07 | H89: BSE
A90: 2023-12-08 | B90: 542803 | C90: VEL | D90: VEENA RAJESH SHAH | E90: SELL | F90: 81,189 | G90: 19.07 | H90: BSE
A91: 2023-12-08 | B91: 538970 | C91: WARDINMOBI | D91: INDIAN CO-OPERATIVE CREDIT SOCIETY LIMITED | E91: BUY | F91: 1,328,616 | G91: 58.92 | H91: BSE
A92: 2023-12-08 | B92: 538970 | C92: WARDINMOBI | D92: INDIAN CO-OPERATIVE CREDIT SOCIETY LIMITED | E92: SELL | F92: 1,693,616 | G92: 58.9 | H92: BSE
A93: 2023-12-08 | B93: 538521 | C93: YAANENT | D93: RAJAT RANJITH VAIDYAR | E93: BUY | F93: 15,834 | G93: 25.75 | H93: BSE
A94: 2023-12-08 | B94: AAKASH | C94: Aakash Exploration Ser L | D94: SHRI MUKTA SHARES | E94: BUY | F94: 1,162,006 | G94: 12.61 | H94: NSE
A95: 2023-12-08 | B95: AKSHAR | C95: Akshar Spintex Limited | D95: NIKHIL RAJESH SINGH | E95: BUY | F95: 4,769,768 | G95: 6.53 | H95: NSE
A96: 2023-12-08 | B96: AKSHAR | C96: Akshar Spintex Limited | D96: MULTIPLIER SHARE & STOCK ADVISORS PRIVATE LIMITED | E96: BUY | F96: 1,500,004 | G96: 6.37 | H96: NSE
A97: 2023-12-08 | B97: BALKRISHNA | C97: Balkrshna Paper Mills Ltd | D97: BRONZE SECURITIES PVT LTD | E97: BUY | F97: 54,088 | G97: 39.37 | H97: NSE
A98: 2023-12-08 | B98: BALKRISHNA | C98: Balkrshna Paper Mills Ltd | D98: NK SECURITIES RESEARCH PRIVATE LIMITED | E98: BUY | F98: 95,472 | G98: 40.1 | H98: NSE
A99: 2023-12-08 | B99: BCG | C99: Lycos Internet Limited | D99: GRAVITON RESEARCH CAPITAL LLP | E99: BUY | F99: 11,940,484 | G99: 21.77 | H99: NSE
A100: 2023-12-08 | B100: BCLIND | C100: BCL Industries Limited | D100: GRAVITON RESEARCH CAPITAL LLP | E100: BUY | F100: 2,419,632 | G100: 75.13 | H100: NSE
A101: 2023-12-08 | B101: BTML | C101: Bodhi Tree Multimedia Ltd | D101: SHRISHTI AGRAWAL | E101: BUY | F101: 136,903 | G101: 178.3 | H101: NSE
A102: 2023-12-08 | B102: CANTABIL | C102: Cantabil Retail Ltd | D102: BOFA SECURITIES EUROPE SA | E102: BUY | F102: 467,978 | G102: 263 | H102: NSE
A103: 2023-12-08 | B103: CBAZAAR | C103: Net Avenue Technologies L | D103: ASHOK RAMCHANDRA MITTAL | E103: BUY | F103: 200,000 | G103: 41.58 | H103: NSE
A104: 2023-12-08 | B104: DPWIRES | C104: D P Wires Limited | D104: AMITABH HARIVANSH RAI BACHCHAN | E104: BUY | F104: 1,405 | G104: 559.75 | H104: NSE
A105: 2023-12-08 | B105: ESSENTIA | C105: Integra Essentia Limited | D105: QE SECURITIES LLP | E105: BUY | F105: 2,474,318 | G105: 6.28 | H105: NSE
A106: 2023-12-08 | B106: EXCEL | C106: Excel Realty N Infra Ltd | D106: SAHASTRAA ADVISORS PRIVATE LIMITED | E106: BUY | F106: 9,000,000 | G106: 0.4 | H106: NSE
A107: 2023-12-08 | B107: FCSSOFT | C107: FCS Software Solutions Li | D107: PACE COMMODITY BROKERS PRIVATE LIMITED | E107: BUY | F107: 25,715,311 | G107: 3.6 | H107: NSE
A108: 2023-12-08 | B108: FCSSOFT | C108: FCS Software Solutions Li | D108: CITADEL SECURITIES INDIA MARKETS PRIVATE LIMITED | E108: BUY | F108: 9,598,420 | G108: 3.59 | H108: NSE
A109: 2023-12-08 | B109: FCSSOFT | C109: FCS Software Solutions Li | D109: HI GROWTH CORPORATE SERVICES PVT LTD | E109: BUY | F109: 24,070,952 | G109: 3.66 | H109: NSE
A110: 2023-12-08 | B110: FCSSOFT | C110: FCS Software Solutions Li | D110: JAINAM BROKING LIMITED | E110: BUY | F110: 28,660,977 | G110: 3.6 | H110: NSE
A111: 2023-12-08 | B111: GSTL | C111: Globesecure Techno Ltd | D111: VEENA RAJESH SHAH | E111: BUY | F111: 64,000 | G111: 106.13 | H111: NSE
A112: 2023-12-08 | B112: GSTL | C112: Globesecure Techno Ltd | D112: POONAM RAJEEV MAHESHWARI | E112: BUY | F112: 52,000 | G112: 104.12 | H112: NSE
A113: 2023-12-08 | B113: IBREALEST | C113: Indiabulls Real Estate Li | D113: GRAVITON RESEARCH CAPITAL LLP | E113: BUY | F113: 8,209,392 | G113: 88.04 | H113: NSE
A114: 2023-12-08 | B114: IBREALEST | C114: Indiabulls Real Estate Li | D114: HRTI PRIVATE LIMITED | E114: BUY | F114: 5,423,461 | G114: 88.08 | H114: NSE
A115: 2023-12-08 | B115: IBREALEST | C115: Indiabulls Real Estate Li | D115: CITADEL SECURITIES INDIA MARKETS PRIVATE LIMITED | E115: BUY | F115: 4,125,661 | G115: 87.66 | H115: NSE
A116: 2023-12-08 | B116: INFIBEAM | C116: Infibeam Avenues Limited | D116: HRTI PRIVATE LIMITED | E116: BUY | F116: 15,282,096 | G116: 21.53 | H116: NSE
A117: 2023-12-08 | B117: IREDA | C117: Indian Renewable Energy | D117: GRAVITON RESEARCH CAPITAL LLP | E117: BUY | F117: 16,900,452 | G117: 70.4 | H117: NSE
A118: 2023-12-08 | B118: KARNIKA | C118: Karnika Industries Ltd | D118: MULTIPLIER SHARE & STOCK ADVISORS PRIVATE LIMITED | E118: BUY | F118: 11,200 | G118: 149.25 | H118: NSE
A119: 2023-12-08 | B119: KOHINOOR | C119: Kohinoor Foods Limited | D119: CITADEL SECURITIES INDIA MARKETS PRIVATE LIMITED | E119: BUY | F119: 100,017 | G119: 57.23 | H119: NSE
A120: 2023-12-08 | B120: KOHINOOR | C120: Kohinoor Foods Limited | D120: QE SECURITIES LLP | E120: BUY | F120: 341,248 | G120: 59.38 | H120: NSE
A121: 2023-12-08 | B121: KOHINOOR | C121: Kohinoor Foods Limited | D121: PLUTUS RESEARCH PRIVATE LIMITED | E121: BUY | F121: 345,546 | G121: 58.49 | H121: NSE
A122: 2023-12-08 | B122: KOHINOOR | C122: Kohinoor Foods Limited | D122: NK SECURITIES RESEARCH PRIVATE LIMITED | E122: BUY | F122: 195,737 | G122: 58.88 | H122: NSE
A123: 2023-12-08 | B123: MARINETRAN | C123: Marinetrans India Limited | D123: KAUSHAL RAJENDRAKUMAR SHAH | E123: BUY | F123: 64,000 | G123: 28.5 | H123: NSE
A124: 2023-12-08 | B124: MARINETRAN | C124: Marinetrans India Limited | D124: SUSHIL DATTATRAYA SINDHKAR | E124: BUY | F124: 100,000 | G124: 28.5 | H124: NSE
A125: 2023-12-08 | B125: MARINETRAN | C125: Marinetrans India Limited | D125: ABHISHEK SATYANARAYAN WADISHERLA | E125: BUY | F125: 100,000 | G125: 29.46 | H125: NSE
A126: 2023-12-08 | B126: MARINETRAN | C126: Marinetrans India Limited | D126: AMIT ARORA | E126: BUY | F126: 80,000 | G126: 28.5 | H126: NSE
A127: 2023-12-08 | B127: MARINETRAN | C127: Marinetrans India Limited | D127: DEBASHIS MUKHERJEE | E127: BUY | F127: 64,000 | G127: 29.16 | H127: NSE
A128: 2023-12-08 | B128: MARINETRAN | C128: Marinetrans India Limited | D128: JAYWANT SUBHASH TELANG | E128: BUY | F128: 96,000 | G128: 30 | H128: NSE
A129: 2023-12-08 | B129: MARINETRAN | C129: Marinetrans India Limited | D129: DEALMONEY SECURITIES PRIVATE LIMITED | E129: BUY | F129: 132,000 | G129: 29.49 | H129: NSE
A130: 2023-12-08 | B130: MARINETRAN | C130: Marinetrans India Limited | D130: NNM SECURITIES PVT LTD | E130: BUY | F130: 200,000 | G130: 30 | H130: NSE
A131: 2023-12-08 | B131: MARINETRAN | C131: Marinetrans India Limited | D131: PETER ANIL ALMEIDA | E131: BUY | F131: 104,000 | G131: 28.5 | H131: NSE
A132: 2023-12-08 | B132: MONARCH | C132: Monarch Networth Cap Ltd | D132: HJS SECURITIES PRIVATE LIMITED | E132: BUY | F132: 179,677 | G132: 485.62 | H132: NSE
A133: 2023-12-08 | B133: MWL | C133: Mangalam Worldwide Ltd | D133: PARILAY GLOBAL ENTERPRISE PRIVATE LIMITED | E133: BUY | F133: 132,000 | G133: 111 | H133: NSE
A134: 2023-12-08 | B134: NAGREEKEXP | C134: Nagreeka Exports Limited | D134: NK SECURITIES RESEARCH PRIVATE LIMITED | E134: BUY | F134: 70,483 | G134: 77.88 | H134: NSE
A135: 2023-12-08 | B135: NELCO | C135: Nelco Ltd. | D135: GRAVITON RESEARCH CAPITAL LLP | E135: BUY | F135: 176,363 | G135: 800.26 | H135: NSE
A136: 2023-12-08 | B136: NOCIL | C136: NOCIL Limited | D136: GRAVITON RESEARCH CAPITAL LLP | E136: BUY | F136: 835,199 | G136: 257.28 | H136: NSE
A137: 2023-12-08 | B137: OSIAHYPER | C137: Osia Hyper Retail Ltd | D137: MULTIPLIER SHARE & STOCK ADVISORS PRIVATE LIMITED | E137: BUY | F137: 689,648 | G137: 52.53 | H137: NSE
A138: 2023-12-08 | B138: OSIAHYPER | C138: Osia Hyper Retail Ltd | D138: TOPGAIN FINANCE PRIVATE LIMITED | E138: BUY | F138: 748,387 | G138: 52.65 | H138: NSE
A139: 2023-12-08 | B139: OSIAHYPER | C139: Osia Hyper Retail Ltd | D139: HEMALI PATHIK THAKKAR | E139: BUY | F139: 1,429,097 | G139: 52.53 | H139: NSE
A140: 2023-12-08 | B140: OSIAHYPER | C140: Osia Hyper Retail Ltd | D140: HJS SECURITIES PRIVATE LIMITED | E140: BUY | F140: 1,731,478 | G140: 53.32 | H140: NSE
A141: 2023-12-08 | B141: PATELENG | C141: Patel Engineering Limited | D141: GRAVITON RESEARCH CAPITAL LLP | E141: BUY | F141: 5,294,758 | G141: 60.38 | H141: NSE
A142: 2023-12-08 | B142: PRAJIND | C142: Praj Industries Ltd | D142: GRAVITON RESEARCH CAPITAL LLP | E142: BUY | F142: 1,631,180 | G142: 548.49 | H142: NSE
A143: 2023-12-08 | B143: RADIOCITY | C143: Music Broadcast Limited | D143: GRAVITON RESEARCH CAPITAL LLP | E143: BUY | F143: 2,411,306 | G143: 18.67 | H143: NSE
A144: 2023-12-08 | B144: RBLBANK | C144: RBL Bank Limited | D144: GRAVITON RESEARCH CAPITAL LLP | E144: BUY | F144: 3,948,864 | G144: 267.08 | H144: NSE
A145: 2023-12-08 | B145: RIIL | C145: Reliance Indl Infra Ltd | D145: CITADEL SECURITIES INDIA MARKETS PRIVATE LIMITED | E145: BUY | F145: 14,413 | G145: 1151.99 | H145: NSE
A146: 2023-12-08 | B146: RPOWER | C146: Reliance Power Limited | D146: HRTI PRIVATE LIMITED | E146: BUY | F146: 40,803,883 | G146: 23.77 | H146: NSE
A147: 2023-12-08 | B147: RPOWER | C147: Reliance Power Limited | D147: GRAVITON RESEARCH CAPITAL LLP | E147: BUY | F147: 21,350,003 | G147: 23.81 | H147: NSE
A148: 2023-12-08 | B148: SADHNANIQ | C148: Sadhana Nitrochem Limited | D148: JAINAM BROKING LIMITED | E148: BUY | F148: 2,090,000 | G148: 94.22 | H148: NSE
A149: 2023-12-08 | B149: SASTASUNDR | C149: Sastasundar Ventures Ltd | D149: TIKRI MANAGEMENT PRIVATE LIMITED | E149: BUY | F149: 230,000 | G149: 436.4 | H149: NSE
A150: 2023-12-08 | B150: SEPC-RE1 | C150: SEPC Limited | D150: MULTIPLIER SHARE & STOCK ADVISORS PRIVATE LIMITED | E150: BUY | F150: 2,643,172 | G150: 5.02 | H150: NSE
A151: 2023-12-08 | B151: SEPC-RE1 | C151: SEPC Limited | D151: DURVA MEGHAL TALATI | E151: BUY | F151: 500,000 | G151: 5.25 | H151: NSE
A152: 2023-12-08 | B152: SHRENIK | C152: Shrenik Limited | D152: SHOBA DEVI YADAV | E152: BUY | F152: 3,700,000 | G152: 1.1 | H152: NSE
A153: 2023-12-08 | B153: SPENCERS | C153: Spencer's Retail Limited | D153: MONET SECURITIES PRIVATE LTD | E153: BUY | F153: 482,418 | G153: 113.74 | H153: NSE
A154: 2023-12-08 | B154: SPENCERS | C154: Spencer's Retail Limited | D154: SANTOSH INDUSTRIES LTD | E154: BUY | F154: 800,000 | G154: 107.32 | H154: NSE
A155: 2023-12-08 | B155: SPENCERS | C155: Spencer's Retail Limited | D155: GRAVITON RESEARCH CAPITAL LLP | E155: BUY | F155: 1,186,921 | G155: 112.22 | H155: NSE
A156: 2023-12-08 | B156: SSFL | C156: Srivari Spices N Foods L | D156: AJAPA BOSE | E156: BUY | F156: 38,000 | G156: 205.17 | H156: NSE
A157: 2023-12-08 | B157: SWANENERGY | C157: Swan Energy Limited | D157: GRAVITON RESEARCH CAPITAL LLP | E157: BUY | F157: 2,870,926 | G157: 474.28 | H157: NSE
A158: 2023-12-08 | B158: SWANENERGY | C158: Swan Energy Limited | D158: KASTURI VINTRADE PRIVATE LIMITED | E158: BUY | F158: 5,494,400 | G158: 477.71 | H158: NSE
A159: 2023-12-08 | B159: TERASOFT | C159: Tera Software Limited | D159: VIBHU GUPTA | E159: BUY | F159: 66,268 | G159: 49.34 | H159: NSE
A160: 2023-12-08 | B160: TERASOFT | C160: Tera Software Limited | D160: NK SECURITIES RESEARCH PRIVATE LIMITED | E160: BUY | F160: 71,843 | G160: 53.11 | H160: NSE
A161: 2023-12-08 | B161: TERASOFT | C161: Tera Software Limited | D161: SILVER LINE VENTURES PRIVATE LIMITED | E161: BUY | F161: 162,223 | G161: 54.45 | H161: NSE
A162: 2023-12-08 | B162: TERASOFT | C162: Tera Software Limited | D162: SANDEEP PRAKASHCHANDRA JAIN (HUF) | E162: BUY | F162: 110,616 | G162: 52.46 | H162: NSE
A163: 2023-12-08 | B163: TRACXN | C163: Tracxn Technologies Ltd | D163: CRONY VYAPAR PVT LTD | E163: BUY | F163: 3,812,988 | G163: 96.55 | H163: NSE
A164: 2023-12-08 | B164: TRACXN | C164: Tracxn Technologies Ltd | D164: PRRSAAR COMMODITIES PVT LTD | E164: BUY | F164: 521,622 | G164: 97.07 | H164: NSE
A165: 2023-12-08 | B165: TRACXN | C165: Tracxn Technologies Ltd | D165: GRAVITON RESEARCH CAPITAL LLP | E165: BUY | F165: 1,728,111 | G165: 96.29 | H165: NSE
A166: 2023-12-08 | B166: TRACXN | C166: Tracxn Technologies Ltd | D166: QE SECURITIES LLP | E166: BUY | F166: 771,219 | G166: 96.37 | H166: NSE
A167: 2023-12-08 | B167: TRACXN | C167: Tracxn Technologies Ltd | D167: HRTI PRIVATE LIMITED | E167: BUY | F167: 546,083 | G167: 96.09 | H167: NSE
A168: 2023-12-08 | B168: URJA | C168: Urja Global Limited | D168: CITADEL SECURITIES INDIA MARKETS PRIVATE LIMITED | E168: BUY | F168: 946,682 | G168: 12.26 | H168: NSE
A169: 2023-12-08 | B169: URJA | C169: Urja Global Limited | D169: HRTI PRIVATE LIMITED | E169: BUY | F169: 2,609,037 | G169: 12.27 | H169: NSE
A170: 2023-12-08 | B170: URJA | C170: Urja Global Limited | D170: QE SECURITIES LLP | E170: BUY | F170: 3,264,222 | G170: 12.36 | H170: NSE
A171: 2023-12-08 | B171: UTTAMSUGAR | C171: Uttam Sugar Mills Limited | D171: GRAVITON RESEARCH CAPITAL LLP | E171: BUY | F171: 206,695 | G171: 401.14 | H171: NSE
A172: 2023-12-08 | B172: VERTOZ | C172: Vertoz Advertising Ltd | D172: GRAVITON RESEARCH CAPITAL LLP | E172: BUY | F172: 86,676 | G172: 392.58 | H172: NSE
A173: 2023-12-08 | B173: VERTOZ | C173: Vertoz Advertising Ltd | D173: SW CAPITAL PRIVATE LIMITED | E173: BUY | F173: 124,447 | G173: 390.11 | H173: NSE
A174: 2023-12-08 | B174: WILLAMAGOR | C174: Williamson Magor & Co | D174: JEEVIKA DHARMENDRA SHAH | E174: BUY | F174: 10,000 | G174: 32.75 | H174: NSE
A175: 2023-12-08 | B175: XCHANGING | C175: Xchanging Solutions Ltd | D175: GRAVITON RESEARCH CAPITAL LLP | E175: BUY | F175: 909,208 | G175: 104.03 | H175: NSE
A176: 2023-12-08 | B176: ZEEMEDIA | C176: Zee News Limited | D176: HRTI PRIVATE LIMITED | E176: BUY | F176: 4,568,888 | G176: 16.02 | H176: NSE
A177: 2023-12-08 | B177: ZEEMEDIA | C177: Zee News Limited | D177: QE SECURITIES LLP | E177: BUY | F177: 2,843,621 | G177: 16.23 | H177: NSE
A178: 2023-12-08 | B178: ZEEMEDIA | C178: Zee News Limited | D178: CITADEL SECURITIES INDIA MARKETS PRIVATE LIMITED | E178: BUY | F178: 3,953,205 | G178: 15.91 | H178: NSE
A179: 2023-12-08 | B179: ZEEMEDIA | C179: Zee News Limited | D179: GRAVITON RESEARCH CAPITAL LLP | E179: BUY | F179: 4,957,054 | G179: 16.34 | H179: NSE
A180: 2023-12-08 | B180: AAKASH | C180: Aakash Exploration Ser L | D180: SHRI MUKTA SHARES | E180: SELL | F180: 1,162,006 | G180: 12.65 | H180: NSE
A181: 2023-12-08 | B181: AKSHAR | C181: Akshar Spintex Limited | D181: NIKHIL RAJESH SINGH | E181: SELL | F181: 5,732,105 | G181: 6.54 | H181: NSE
A182: 2023-12-08 | B182: AKSHAR | C182: Akshar Spintex Limited | D182: MULTIPLIER SHARE & STOCK ADVISORS PRIVATE LIMITED | E182: SELL | F182: 580,672 | G182: 6.47 | H182: NSE
A183: 2023-12-08 | B183: BALKRISHNA | C183: Balkrshna Paper Mills Ltd | D183: NK SECURITIES RESEARCH PRIVATE LIMITED | E183: SELL | F183: 95,472 | G183: 40.15 | H183: NSE
A184: 2023-12-08 | B184: BALKRISHNA | C184: Balkrshna Paper Mills Ltd | D184: BRONZE SECURITIES PVT LTD | E184: SELL | F184: 52,088 | G184: 39.6 | H184: NSE
A185: 2023-12-08 | B185: BCG | C185: Lycos Internet Limited | D185: GRAVITON RESEARCH CAPITAL LLP | E185: SELL | F185: 11,940,484 | G185: 21.81 | H185: NSE
A186: 2023-12-08 | B186: BCLIND | C186: BCL Industries Limited | D186: GRAVITON RESEARCH CAPITAL LLP | E186: SELL | F186: 2,419,632 | G186: 75.23 | H186: NSE
A187: 2023-12-08 | B187: BRIGHT | C187: Bright Solar Limited | D187: POONAM LAMBA | E187: SELL | F187: 150,000 | G187: 7.85 | H187: NSE
A188: 2023-12-08 | B188: BTML | C188: Bodhi Tree Multimedia Ltd | D188: SHRISHTI AGRAWAL | E188: SELL | F188: 103,046 | G188: 178.1 | H188: NSE
A189: 2023-12-08 | B189: DPWIRES | C189: D P Wires Limited | D189: AMITABH HARIVANSH RAI BACHCHAN | E189: SELL | F189: 116,576 | G189: 568.41 | H189: NSE
A190: 2023-12-08 | B190: ESSENTIA | C190: Integra Essentia Limited | D190: QE SECURITIES LLP | E190: SELL | F190: 2,472,156 | G190: 6.29 | H190: NSE
A191: 2023-12-08 | B191: ESSENTIA | C191: Integra Essentia Limited | D191: JUST RIGHT LIFE LIMITED | E191: SELL | F191: 2,715,867 | G191: 6.17 | H191: NSE
A192: 2023-12-08 | B192: EXCEL | C192: Excel Realty N Infra Ltd | D192: SAHASTRAA ADVISORS PRIVATE LIMITED | E192: SELL | F192: 2,026,762 | G192: 0.4 | H192: NSE
A193: 2023-12-08 | B193: FCSSOFT | C193: FCS Software Solutions Li | D193: CITADEL SECURITIES INDIA MARKETS PRIVATE LIMITED | E193: SELL | F193: 3,735,150 | G193: 3.71 | H193: NSE
A194: 2023-12-08 | B194: FCSSOFT | C194: FCS Software Solutions Li | D194: HI GROWTH CORPORATE SERVICES PVT LTD | E194: SELL | F194: 24,198,802 | G194: 3.66 | H194: NSE
A195: 2023-12-08 | B195: FCSSOFT | C195: FCS Software Solutions Li | D195: JAINAM BROKING LIMITED | E195: SELL | F195: 24,313,442 | G195: 3.61 | H195: NSE
A196: 2023-12-08 | B196: FCSSOFT | C196: FCS Software Solutions Li | D196: PACE COMMODITY BROKERS PRIVATE LIMITED | E196: SELL | F196: 25,715,311 | G196: 3.64 | H196: NSE
A197: 2023-12-08 | B197: FIVESTAR | C197: Five-Star Bus Fin Ltd | D197: TPG ASIA VII SF PTE LTD | E197: SELL | F197: 4,453,747 | G197: 730.12 | H197: NSE
A198: 2023-12-08 | B198: FIVESTAR | C198: Five-Star Bus Fin Ltd | D198: PEAK XV PARTNERS INVESTMENTS V | E198: SELL | F198: 2,283,973 | G198: 730 | H198: NSE
A199: 2023-12-08 | B199: FIVESTAR | C199: Five-Star Bus Fin Ltd | D199: MATRIX PARTNERS INDIA INVESTMENT HOLDINGS II LLC | E199: SELL | F199: 4,684,111 | G199: 730 | H199: NSE
A200: 2023-12-08 | B200: FIVESTAR | C200: Five-Star Bus Fin Ltd | D200: MATRIX PARTNERS INDIA INVESTMENT HOLDINGS II LLC | E200: SELL | F200: 4,529,329 | G200: 730.02 | H200: NSE
A201: 2023-12-08 | B201: FIVESTAR | C201: Five-Star Bus Fin Ltd | D201: TPG ASIA VII SF PTE LTD | E201: SELL | F201: 4,453,746 | G201: 730 | H201: NSE
A202: 2023-12-08 | B202: FIVESTAR | C202: Five-Star Bus Fin Ltd | D202: PEAK XV PARTNERS INVESTMENTS V | E202: SELL | F202: 2,283,972 | G202: 730 | H202: NSE
A203: 2023-12-08 | B203: GSTL | C203: Globesecure Techno Ltd | D203: POONAM RAJEEV MAHESHWARI | E203: SELL | F203: 52,000 | G203: 104.58 | H203: NSE
A204: 2023-12-08 | B204: GSTL | C204: Globesecure Techno Ltd | D204: VEENA RAJESH SHAH | E204: SELL | F204: 316,000 | G204: 103.58 | H204: NSE
A205: 2023-12-08 | B205: IBREALEST | C205: Indiabulls Real Estate Li | D205: HRTI PRIVATE LIMITED | E205: SELL | F205: 6,247,159 | G205: 88.19 | H205: NSE
A206: 2023-12-08 | B206: IBREALEST | C206: Indiabulls Real Estate Li | D206: GRAVITON RESEARCH CAPITAL LLP | E206: SELL | F206: 8,209,392 | G206: 88.07 | H206: NSE
... 68 more rows

Sheet Call Tracker (Equity & F&O)
M5: Back To Main Page
A6: Retail Research Technical Calls & Fundamental Performance Report for the month of December-2023
M7: =Main!B10 -> 2023-12-11
B8: Positional Call
A9: Sr.no | B9: Date | D9: Company | E9: Rec | F9: Rec Price | G9: Stop Loss*** | H9: Call Closed At | I9: Target | J9: Remark | K9: Profit / Loss per Share | L9: All charges | M9: Net Gain / Loss % | N9: Status | O9: Closed Date | P9: Market Closing Price | Q9: Second Buying Date
A10: 1 | B10: 2023-09-20 | D10: RELIANCE | E10: Accu | F10: 2335 | G10: 2235 | H10: 2451 | I10: 2550-2700 | J10: Profit of Rs.116/- | K10: =H10-F10 -> 116 | L10: =(F10*-0.3)/100 -> -7.01 | M10: =(K10+L10)/F10 -> 4.67% | N10: Successful | O10: 2023-12-06 | Q10: 2023-10-04 | S10: H
A11: 2 | B11: 2023-09-21 | D11: VGUARD | E11: Accu | F11: 285-305 | G11: 276 | I11: 330-350 | J11: Open | P11: =VLOOKUP(D11,'MidCap Intra'!$B$11:$C$568,2,0) -> 299.35 | Q11: 2023-10-09 | S11: K
A12: 3 | B12: 2023-10-13 | D12: TCS | E12: Accu <> | F12: 3441-3541 | G12: 3321 | I12: 3800-4000 | J12: Open | P12: =VLOOKUP(D12,'MidCap Intra'!$B$11:$C$568,2,0) -> 3626.70 | Q12: 2023-10-19 | S12: H
A13: 4 | B13: 2023-10-25 | D13: ICICIBANK | E13: Accu | F13: 916 | G13: 870 | H13: 972.5 | I13: 990-1050 | J13: Profit of Rs.56.5/- | K13: =H13-F13 -> 56.5 | L13: =(F13*-0.3)/100 -> -2.75 | M13: =(K13+L13)/F13 -> 5.87% | N13: Successful | O13: 2023-12-04 | Q13: 2023-10-26 | S13: H
A14: 5 | B14: 2023-11-06 | D14: HEIDELBERG | E14: Accu | F14: 189.5 | G14: 177 | H14: 200 | I14: 204-214 | J14: Profit of Rs.10.5/- | K14: =H14-F14 -> 10.5 | L14: =(F14*-0.3)/100 -> -0.57 | M14: =(K14+L14)/F14 -> 5.24% | N14: Successful | O14: 2023-12-01 | S14: H
A15: 6 | B15: 2023-11-08 | D15: JAMNAAUTO | E15: Accu<> | F15: 106.40-111.40 | G15: 102.9 | I15: 119-125 | J15: Open | P15: =VLOOKUP(D15,'MidCap Intra'!$B$11:$C$568,2,0) -> 109.95 | S15: H
A16: 7 | B16: 2023-11-17 | D16: ASHOKLEY | E16: Accu | F16: 169-174 | G16: 163 | I16: 185-195 | J16: Open | P16: =VLOOKUP(D16,'MidCap Intra'!$B$11:$C$568,2,0) -> 174.90 | S16: K
A17: 8 | B17: 2023-11-17 | D17: AMBUJACEM | E17: Accu | F17: 422.5 | G17: 390 | H17: 457.5 | I17: 450-470 | J17: Profit of Rs.35/- | K17: =H17-F17 -> 35 | L17: =(F17*-0.3)/100 -> -1.27 | M17: =(K17+L17)/F17 -> 7.98% | N17: Successful | O17: 2023-12-04 | S17: H
A18: 9 | B18: 2023-11-20 | D18: TRIDENT | E18: Accu | F18: 35.9-37 | G18: 34.35 | I18: 40-42 | J18: Open | P18: =VLOOKUP(D18,'MidCap Intra'!$B$11:$C$568,2,0) -> 36.65 | S18: H
A19: 10 | B19: 2023-11-20 | D19: RVNL | E19: Accu | F19: 164 | G19: 152 | H19: 174.25 | I19: 174-185 | J19: Profit of Rs.10.25/- | K19: =H19-F19 -> 10.25 | L19: =(F19*-0.3)/100 -> -0.49 | M19: =(K19+L19)/F19 -> 5.95% | N19: Successful | O19: 2023-12-04 | S19: H
A20: 11 | B20: 2023-11-22 | D20: SCHAEFFLER | E20: Accu | F20: 2805 | G20: 2540 | H20: 2990 | I20: 3100-3200 | J20: Profit of Rs.185/- | K20: =H20-F20 -> 185 | L20: =(F20*-0.3)/100 -> -8.42 | M20: =(K20+L20)/F20 -> 6.30% | N20: Successful | O20: 2023-12-06 | S20: H
A21: 12 | B21: 2023-11-28 | D21: LTIM | E21: Accu | F21: 5410 | G21: 4990 | H21: 5695 | I21: 5700-6000 | J21: Profit of Rs.285/- | K21: =H21-F21 -> 285 | L21: =(F21*-0.3)/100 -> -16.23 | M21: =(K21+L21)/F21 -> 4.97% | N21: Successful | O21: 2023-12-08 | S21: H
A22: 13 | B22: 2023-11-30 | D22: ADANIPORTS | E22: Accu | F22: 828 | G22: 780 | H22: 875 | I22: 870-900 | J22: Profit of Rs.47/- | K22: =H22-F22 -> 47 | L22: =(F22*-0.3)/100 -> -2.48 | M22: =(K22+L22)/F22 -> 5.38% | N22: Successful | O22: 2023-12-04 | S22: H
A23: 14 | B23: 2023-12-05 | D23: KNRCON | E23: Accu | F23: 261.5-271.5 | G23: 254 | I23: 290-310 | J23: Open | P23: =VLOOKUP(D23,'MidCap Intra'!$B$11:$C$568,2,0) -> 267.75
A24: 15 | B24: 2023-12-08 | D24: DATAPATTNS | E24: Accu | F24: 2010-1940 | G24: 1870 | I24: 2140-2250 | J24: Open | P24: =VLOOKUP(D24,'MidCap Intra'!$B$11:$C$568,2,0) -> 2001.10
A28: CLBS = Closing Basis ***
A29: Dividend adjusted <> | F29: Reinitiated $
A30: Part book {} | D30: s | F30: Revised stoploss #
A34: Master Trade High Risk
A35: Sr.no | B35: Date | D35: Company | E35: Rec | F35: Rec Price | G35: Stop Loss | H35: Call Closed At | I35: Target | J35: Remark | K35: Profit / Loss per share | L35: All charges | M35: Gain / Loss per Lot | N35: Lot | O35: Status | P35: Closed Date
A36: 1 | B36: 2023-11-29 | D36: UPL DEC FUT | E36: Buy | F36: 574 | G36: 566 | H36: 584.5 | I36: 582-590 | J36: Profit of Rs.10.5/- | K36: =H36-F36 -> 10.5 | L36: =(H36*N36)*0.03% -> 227.96 | M36: =(K36*N36)-L36 -> 13422.0 | N36: 1300 | O36: Successful | P36: 2023-12-04 | S36: N
A37: 2 | B37: 2023-11-29 | D37: ADANIPORTS DEC FUT | E37: Buy | F37: 839.5 | G37: 826.5 | H37: 885 | I37: 852-865 | J37: Profit of Rs.45.5/- | K37: =H37-F37 -> 45.5 | L37: =(H37*N37)*0.03% -> 212.40 | M37: =(K37*N37)-L37 -> 36187.6 | N37: 800 | O37: Successful | P37: 2023-12-04 | S37: H
A38: 3 | B38: 2023-11-30 | D38: NIFTY DEC FUT | E38: Buy | F38: 20230 | G38: 20100 | H38: 20335 | I38: 20400-20500 | J38: Profit of Rs.105/- | K38: =H38-F38 -> 105 | L38: =(H38*N38)*0.03% -> 305.03 | M38: =(K38*N38)-L38 -> 4945.0 | N38: 50 | O38: Successful | P38: 2023-12-01 | S38: H
A39: 4 | B39: 2023-11-30 | D39: POWERGRID DEC FUT | E39: Buy | F39: 210 | G39: 207 | H39: 213.2 | I39: 213-216 | J39: Profit of Rs.3.2/- | K39: =H39-F39 -> 3.2 | L39: =(H39*N39)*0.03% -> 230.26 | M39: =(K39*N39)-L39 -> 11289.7 | N39: 3600 | O39: Successful | P39: 2023-12-01 | S39: N
A40: 5 | B40: 2023-12-01 | D40: JUBLFOOD DEC FUT | E40: Buy | F40: 556 | G40: 548 | H40: 565.5 | I40: 564-573 | J40: Profit of Rs.9.5/- | K40: =H40-F40 -> 9.5 | L40: =(H40*N40)*0.03% -> 212.06 | M40: =(K40*N40)-L40 -> 11662.9 | N40: 1250 | O40: Successful | P40: 2023-12-04 | S40: K
A41: 6 | B41: 2023-12-01 | D41: ABBOTINDIA DEC FUT | E41: Buy | F41: 23825 | G41: 23550 | H41: 24075 | I41: 24088-24350 | J41: Profit of Rs.250/- | K41: =H41-F41 -> 250 | L41: =(H41*N41)*0.03% -> 288.90 | M41: =(K41*N41)-L41 -> 9711.1 | N41: 40 | O41: Successful | P41: 2023-12-04 | S41: N
A42: 7 | B42: 2023-12-04 | D42: BHARATFORG DEC FUT | E42: Buy | F42: 1162.5 | G42: 1143 | H42: 1185 | I42: 1184-1205 | J42: Profit of Rs.22.5/- | K42: 22.5 | L42: 177.75 | M42: 11072.3 | N42: 500 | O42: Successful | P42: 2023-12-05
A43: 8 | B43: 2023-12-04 | D43: APOLLOHOSP DEC FUT | E43: Buy | F43: 5645 | G43: 5550 | H43: 5610 | I43: 5744-5828 | J43: Loss of Rs.35/- | K43: =H43-F43 -> -35 | L43: =(H43*N43)*0.03% -> 210.38 | M43: =(K43*N43)-L43 -> -4585.4 | N43: 125 | O43: Unsuccessful | P43: 2023-12-05
A44: 9 | B44: 2023-12-04 | D44: ABBOTINDIA DEC FUT | E44: Buy | F44: 23575 | G44: 23300 | H44: 23775 | I44: 23838-24100 | J44: Profit of Rs.200/- | K44: =H44-F44 -> 200 | L44: =(H44*N44)*0.03% -> 285.30 | M44: =(K44*N44)-L44 -> 7714.7 | N44: 40 | O44: Successful | P44: 2023-12-05
A45: 10 | B45: 2023-12-05 | D45: ABBOTINDIA DEC FUT | E45: Buy | F45: 23375 | G45: 23100 | H45: 23125 | I45: 23638-23900 | J45: Loss of Rs.250/- | K45: -250 | L45: 277.50 | M45: -10277.5 | N45: 40 | O45: Unsuccessful | P45: 2023-12-06
A46: 11 | B46: 2023-10-05 | D46: DEEPAKNTR DEC FUT | E46: Buy | F46: 2242.5 | G46: 2205 | H46: 2267.5 | I46: 2278-2313 | J46: Profit of Rs.25/- | K46: =H46-F46 -> 25 | L46: =(H46*N46)*0.03% -> 204.08 | M46: =(K46*N46)-L46 -> 7295.9 | N46: 300 | O46: Successful | P46: 2023-12-06
A47: 12 | B47: 2023-12-06 | D47: JUBLFOOD DEC FUT | E47: Buy | F47: 555 | G47: 547 | H47: 565 | I47: 563-572 | J47: Profit of Rs.10/- | K47: =H47-F47 -> 10 | L47: =(H47*N47)*0.03% -> 211.88 | M47: =(K47*N47)-L47 -> 12288.1 | N47: 1250 | O47: Successful | P47: 2023-12-07
A48: 13 | B48: 2023-12-06 | D48: HAVELLS DEC FUT | E48: Buy | F48: 1331.5 | G48: 1312 | H48: 1350 | I48: 1353-1374 | J48: Profit of Rs.18.5/- | K48: 18.5 | L48: 202.50 | M48: 9047.5 | N48: 500 | O48: Successful | P48: 2023-12-07
A49: 14 | B49: 2023-12-07 | D49: NIFTY DEC FUT | E49: Sell | F49: 20975-20995 | G49: 21130 | I49: 20800-20700 | J49: Open
A50: 15 | B50: 2023-12-07 | D50: RECLTD DEC FUT | E50: Sell | F50: 397 | G50: 403 | H50: 403 | I50: 392-387 | J50: Loss of Rs.6/- | K50: =F50-H50 -> -6 | L50: =(H50*N50)*0.03% -> 241.80 | M50: =(K50*N50)-L50 -> -12241.8 | N50: 2000 | O50: Unsuccessful | P50: 2023-12-08
A51: 16 | B51: 2023-12-07 | D51: INDIAMART DEC FUT | E51: Buy | F51: 2727.5 | G51: 2690 | H51: 2690 | I51: 2763-2798 | J51: Loss of Rs.37.5/- | K51: =H51-F51 -> -37.5 | L51: 242.10 | M51: -11492.1 | N51: 300 | O51: Unsuccessful | P51: 2023-12-08
A56: Master Trade Medium Risk
A57: Sr.no | B57: Date | D57: Company | E57: Rec | F57: Rec Price | G57: Stop Loss | H57: Call Closed At | I57: Target | J57: Remark | K57: Profit/ Loss per lot | L57: All charges | M57: Gain / Loss per Lot | N57: Lot | O57: Status | P57: Closed Date
A58: 1 | B58: 2023-12-01 | D58: BANKNIFTY 44500 PE 06-DEC | E58: Buy | F58: 190 | G58: 90 | H58: 35 | I58: 350-500 | J58: Loss of Rs.155/- | K58: =H58-F58 -> -155 | L58: 50.00 | M58: =(K58*N58)-L58 -> -2375.0 | N58: 15 | O58: Unsuccessful | P58: 2023-12-04 | S58: H
A59: 2 | B59: 2023-12-04 | D59: NIFTY 20200 PE 28-DEC | E59: Sell | F59: 67 | H59: 52 | J59: Loss of Rs.80/- | K59: =F59-H59 -> 15 | L59: 50.00 | M59: -4100.0 | N59: 50 | O59: Unsuccessful | P59: 2023-12-05
D60: NIFTY 21000 CE 28-DEC | E60: Sell | F60: 87 | H60: 182 | K60: =F60-H60 -> -95 | L60: 50.00 | N60: 50
A61: 3 | B61: 2023-12-04 | D61: FINNIFTY 20750 PE 05-DEC | E61: Sell | F61: 37 | H61: 6.5 | J61: Profit of Rs.18/- | K61: =F61-H61 -> 30.5 | L61: 50.00 | M61: 620.0 | N61: 40 | O61: Successful | P61: 2023-12-05
D62: FINNIFTY 20950 PE 05-DEC | E62: Sell | F62: 45 | H62: 57.5 | K62: =F62-H62 -> -12.5 | L62: 50.00 | N62: 40
A63: 4 | B63: 2023-12-04 | D63: BANKNIFTY 46400 CE 06-DEC | E63: Buy | F63: 300 | G63: 190 | H63: 470 | I63: 400-500 | J63: Profit of Rs.170/- | K63: =H63-F63 -> 170 | L63: 50.00 | M63: =(K63*N63)-L63 -> 2500.0 | N63: 15 | O63: Successful | P63: 2023-12-05
A64: 5 | B64: 2023-12-05 | D64: FINNIFTY 20900 PE 05-DEC | E64: Buy | F64: 29 | G64: 0 | H64: 0 | I64: 60-90 | J64: Loss of Rs.29/- | K64: =H64-F64 -> -29 | L64: 50.00 | M64: -1210.0 | N64: 40 | O64: Unsuccessful | P64: 2023-12-06
A65: 6 | B65: 2023-12-05 | D65: NIFTY 20700 PE 07-DEC | E65: Buy | F65: 54 | G65: 18 | H65: 79 | I65: 90-120 | J65: Profit of Rs.25/- | K65: =H65-F65 -> 25 | L65: 50.00 | M65: =(K65*N65)-L65 -> 1200.0 | N65: 50 | O65: Successful | P65: 2023-12-05
A66: 7 | B66: 2023-12-07 | D66: BANKNIFTY 46500 PE 13-DEC | E66: Buy | F66: 325 | H66: 90 | J66: Loss of Rs.160/- | K66: =H66-F66 -> -235 | L66: 50.00 | M66: =(160*-15)-100 -> -2500.0 | N66: 15 | O66: Unsuccessful | P66: 2023-12-08
D67: BANKNIFTY 46000 PE 13-DEC | E67: Sell | F67: 165 | H67: 90 | K67: =F67-H67 -> 75 | L67: 50.00 | N67: 15
A68: 8 | B68: 2023-12-07 | D68: NIFTY 20950 PE 07-DEC | E68: Buy | F68: 40 | G68: 8 | H68: 60 | I68: 80-120 | J68: Profit of Rs.20/- | K68: =H68-F68 -> 20 | L68: 50.00 | M68: =(K68*N68)-L68 -> 950.0 | N68: 50 | O68: Successful | P68: 2023-12-07
A71: Techno -Funda (positional)
A72: Sr.no | B72: Date | D72: Company | E72: Rec | F72: Rec Price | G72: Stop Loss*** | H72: Call Closed At | I72: Target | J72: Remark | K72: Profit / Loss per Share/Lot | L72: All charges | M72: Net Gain / Loss % | N72: Status | O72: Closed Date | P72: Market Closing Price | Q72: Second Buying Date
A73: 1 | B73: 2023-11-22 | D73: CAMS | E73: Accu | F73: 2665-2765 | G73: 2480 | I73: 3100-3300 | J73: Open | S73: H
A74: 2 | B74: 2023-12-01 | D74: HLEGLAS | E74: Accu | F74: 502.50-542.5 | G74: 477 | I74: 600-650 | J74: Open | S74: H
A77: CLBS = Closing Basis *** | F77: Reinitiated $
A78: Dividend adjusted <> | F78: Revised stoploss # | H78: .................
B87: Investment Idea
A88: Sr.no | B88: Date | D88: Company | E88: Rec | F88: Rec Price | G88: Point of Review | H88: Close Rate | I88: Target | J88: Remark | K88: Profit / Loss per Share | L88: Gain / Loss % | M88: Status | N88: Closed Date
A89: 1 | B89: 2013-11-01 | D89: L&T Finance Holding | E89: Accu | F89: 82.00 | G89: - | H89: 100 | I89: 100.00 | J89: Target Achieved | K89: =H89-F89 -> 18.00 | L89: =K89/F89 -> 21.95% | M89: Successful | N89: 2016-10-14
A90: 2 | B90: 2014-06-04 | D90: Finolex Inds | E90: Buy | F90: 257.00 | G90: - | H90: 300 | I90: 300.00 | J90: Target Achieved | K90: 43.00 | L90: 16.73% | M90: Successful | N90: 2014-07-02
A91: 3 | B91: 2014-07-08 | D91: JK Cement | E91: Buy | F91: 393.00 | G91: - | H91: 468 | I91: 468.00 | J91: Target Achieved | K91: 75.00 | L91: 19.08% | M91: Successful | N91: 2014-08-12
A92: 4 | B92: 2014-08-06 | D92: Finolex Cables | E92: Buy | F92: 205.00 | G92: - | H92: 275 | I92: 250.00 | J92: Target Achieved | K92: 70.00 | L92: 34.15% | M92: Successful | N92: 2014-11-19
A93: 5 | B93: 2014-09-04 | D93: Exide Inds | E93: Buy | F93: 162.00 | G93: - | H93: 190 | I93: 190.00 | J93: Target Achieved | K93: 28.00 | L93: 17.28% | M93: Successful | N93: 2015-01-02
A94: 6 | B94: 2014-09-04 | D94: Deepak Nitrite | E94: Buy | F94: 75.00 | G94: - | H94: 91.5 | I94: 95-100 | J94: Profit of Rs.16.50/- | K94: 16.50 | L94: 22.00% | M94: Successful | N94: 2014-11-11
A95: 7 | B95: 2014-10-01 | D95: Mercks | E95: Buy | F95: 850.00 | G95: - | H95: 982.5 | I95: 1050.00 | J95: Profit of Rs.132.50/- | K95: 132.50 | L95: 15.59% | M95: Successful | N95: 2015-02-04
A96: 8 | B96: 2014-10-01 | D96: Grindwell Norton | E96: Buy | F96: 475.00 | G96: - | H96: 515 | I96: 600.00 | J96: Profit of Rs.40/- | K96: 40.00 | L96: 8.42% | M96: Successful | N96: 2014-10-27
A97: 9 | B97: 2014-10-01 | D97: Snowman Logistics | E97: Buy | F97: 86.00 | G97: - | H97: 99 | I97: 140.00 | J97: Profit of Rs.13.00/- | K97: 13.00 | L97: 15.12% | M97: Successful | N97: 2014-10-27
A98: 10 | B98: 2014-10-14 | D98: Birla Corp | E98: Buy | F98: 496.60 | G98: - | H98: 621 | I98: 580.00 | J98: Target Achieved | K98: 124.40 | L98: 25.05% | M98: Successful | N98: 2016-08-23
A99: 11 | B99: 2014-10-14 | D99: Ultratech Cem | E99: Buy | F99: 2481.90 | G99: - | H99: 2840 | I99: 2870.00 | J99: Profit of Rs.358.10/- | K99: 358.10 | L99: 14.43% | M99: Successful | N99: 2015-01-13
A100: 12 | B100: 2014-10-16 | D100: Sintex Inds | E100: Buy | F100: 84.50 | G100: - | H100: 93 | I100: 110.00 | J100: Profit of Rs.8.50/- | K100: 8.50 | L100: 10.06% | M100: Successful | N100: 2014-10-27
A101: 13 | B101: 2014-10-16 | D101: HSIL | E101: Buy | F101: 401.00 | G101: - | H101: 428 | I101: 450.00 | J101: Profit of Rs.27.00/- | K101: 27.00 | L101: 6.73% | M101: Successful | N101: 2015-01-16
A102: 14 | B102: 2014-10-16 | D102: Eveready Inds | E102: Buy | F102: 101.00 | G102: - | H102: 112 | I102: 120.00 | J102: Profit of Rs.11.00/- | K102: 11.00 | L102: 10.89% | M102: Successful | N102: 2014-10-27
A103: 15 | B103: 2014-11-11 | D103: Pennar Inds | E103: Buy | F103: 59.00 | G103: - | H103: 76 | I103: 76.00 | J103: Target Achieved | K103: 17.00 | L103: 28.81% | M103: Successful | N103: 2017-10-24
A104: 16 | B104: 2014-11-11 | D104: Snowman Logistics | E104: Buy | F104: 99.00 | G104: - | H104: 120 | I104: 120.00 | J104: Profit of Rs.21/- | K104: 21.00 | L104: 21.21% | M104: Successful | N104: 2014-11-17
A105: 17 | B105: 2014-11-13 | D105: Dharamsi Morarji Chem | E105: Buy | F105: 22.00 | G105: - | H105: 33.55 | I105: 32.00 | J105: Profit of Rs 11.55/- | K105: 11.55 | L105: 52.50% | M105: Successful | N105: 2015-07-03
A106: 18 | B106: 2014-12-03 | D106: Tatachem | E106: Buy | F106: 440.00 | G106: - | H106: 520 | I106: 520.00 | J106: Profit of Rs 80.00/- | K106: 80.00 | L106: 18.18% | M106: Successful | N106: 2015-07-23
A107: 19 | B107: 2014-12-03 | D107: Advanta | E107: Buy | F107: 360.00 | G107: - | H107: 427 | I107: 425.00 | J107: Profit of Rs.67.00/- | K107: 67.00 | L107: 18.61% | M107: Successful | N107: 2015-02-23
A108: 20 | B108: 2015-01-08 | D108: GDL | E108: Buy | F108: 360.00 | G108: - | H108: 455 | I108: 420.00 | J108: Profit of Rs.95.00/- | K108: 95.00 | L108: 26.39% | M108: Successful | N108: 2015-01-20
A109: 21 | B109: 2015-01-08 | D109: NRB Bearing | E109: Buy | F109: 130.00 | H109: 175.5 | I109: 165.00 | J109: Profit of Rs 45.50/- | K109: 45.50 | L109: 35.00% | M109: Successful | N109: 2017-12-19
A110: 22 | B110: 2015-02-05 | D110: GSFC | E110: Accu | F110: 98.00 | H110: 120 | I110: 120.00 | J110: Target Achieved | K110: 22.00 | L110: 22.45% | M110: Successful | N110: 2017-01-18
A111: 23 | B111: 2015-02-05 | D111: Sundrmfast | E111: Accu | F111: 196.00 | H111: 262 | I111: 255.00 | J111: Target Achieved | K111: 66.00 | L111: 33.67% | M111: Successful | N111: 2016-08-17
A112: 24 | B112: 2015-03-04 | D112: GPPL | E112: Accu | F112: 235 | H112: 77.00 | I112: 280-285 | J112: Loss of Rs.158/- | K112: -158.00 | L112: -67.23% | M112: Unsuccessful | N112: 2019-02-26
A113: 25 | B113: 2015-03-04 | D113: ORIENTCEM | E113: Accu | F113: 185.00 | H113: 224 | I113: 220-225 | J113: Target Achieved | K113: 39.00 | L113: 21.08% | M113: Successful | N113: 2016-10-04
A114: 26 | B114: 2015-03-27 | D114: PFS | E114: Accu | F114: 49.5 | H114: 15.85 | I114: 67.00 | J114: Loss of Rs.33.65/- | K114: -33.65 | L114: -68% | M114: Unsuccessful | N114: 2019-06-11
A115: 27 | B115: 2015-03-30 | D115: Walchandnagar Ind Ltd | E115: Accu | F115: 183.50 | H115: 219 | I115: 218.00 | J115: Profit of Rs.35.50/- | K115: 35.50 | L115: 19.35% | M115: Successful | N115: 2015-04-09
A116: 28 | B116: 2015-04-20 | D116: Kalpataru Power Transmission Ltd | E116: Accu | F116: =(227+237)/2 -> 232.00 | H116: 298 | I116: 298.00 | J116: Target Achieved | K116: 66.00 | L116: 28.45% | M116: Successful | N116: 2017-03-29
A117: 29 | B117: 2015-05-04 | D117: Mastek Ltd | E117: Buy | F117: 385.00 | H117: =212.5+331 -> 543.5 | I117: 510.00 | J117: Profit of Rs 158.50/- | K117: 158.50 | L117: 41.17% | M117: Successful | N117: 2015-08-19
A118: 30 | B118: 2015-05-04 | D118: Suprajit Eng | E118: Buy | F118: 115.50 | H118: 146 | I118: 142.00 | J118: Profit of Rs 30.50/- | K118: 30.50 | L118: 26.41% | M118: Successful | N118: 2015-07-17
A119: 31 | B119: 2015-05-27 | D119: TCI | E119: Buy | F119: 237.50 | H119: 279.5 | I119: 278.00 | J119: Target Achieved | K119: 42.00 | L119: 17.68% | M119: Successful | N119: 2015-08-06
A120: 32 | B120: 2015-06-19 | D120: HSIL | E120: Accu | F120: 340.00 | H120: 448 | I120: 448.00 | J120: Target Achieved | K120: 108.00 | L120: 31.76% | M120: Successful | N120: 2017-10-10
A121: 33 | B121: 2015-07-06 | D121: Capital First | E121: Accu | F121: 390.00 | H121: 460 | I121: 460.00 | J121: Target Achieved | K121: 70.00 | L121: 17.95% | M121: Successful | N121: 2016-04-18
A122: 34 | B122: 2015-07-10 | D122: Dolphin OffShore | E122: Accu | F122: 122.5 | H122: 61.00 | I122: 172.00 | J122: Loss of Rs.61.50/- | K122: -61.50 | L122: -50.20% | M122: Unsuccessful | N122: 2018-08-21
A123: 35 | B123: 2015-08-03 | D123: Allcargo logistics | E123: Accu | F123: 297.50 | H123: 350 | I123: 360.00 | J123: Profit of Rs 52.50/- | K123: 52.50 | L123: 17.65% | M123: Successful | N123: 2015-08-16
A124: 36 | B124: 2015-08-03 | D124: Camline Fine | E124: Accu | F124: 115.50 | H124: 149 | I124: 140.00 | J124: Profit of Rs 33.50/- | K124: 33.50 | L124: 29.00% | M124: Successful | N124: 2017-01-05
A125: 37 | B125: 2015-09-04 | D125: TCI | E125: Accu | F125: 226.00 | H125: 292 | I125: 292.00 | J125: Target Achieved | K125: 66.00 | L125: 29.20% | M125: Successful | N125: 2015-10-09
A126: 38 | B126: 2015-09-07 | D126: Kalpataru Power Transmission Ltd | E126: Accu | F126: 232.50 | H126: 312.5 | I126: 310.00 | J126: Target Achieved | K126: 80.00 | L126: 34.41% | M126: Successful | N126: 2017-03-29
A127: 39 | B127: 2015-09-21 | D127: LLOYD ELECTRIC & ENG LTD | E127: Accu | F127: 196.50 | H127: 238 | I127: 238.00 | J127: Target Achieved | K127: 41.50 | L127: 21.12% | M127: Successful | N127: 2015-10-14
A128: 40 | B128: 2015-09-24 | D128: L&T Finance Holding | E128: Accu | F128: 65.00 | H128: 82 | I128: 82.00 | J128: Target Achieved | K128: 17.00 | L128: 26.15% | M128: Successful | N128: 2016-07-27
A129: 41 | B129: 2015-10-14 | D129: KEC International ltd | E129: Accu | F129: 144.00 | H129: 182.5 | I129: 181.00 | J129: Target Achieved | K129: 38.50 | L129: 26.74% | M129: Successful | N129: 2017-03-23
A130: 42 | B130: 2015-10-14 | D130: Gruh Finance | E130: Accu | F130: 264.00 | H130: 311 | I130: 311.00 | J130: Target Achieved | K130: 47.00 | L130: 17.80% | M130: Successful | N130: 2016-08-22
A131: 43 | B131: 2015-11-10 | D131: Pidilitind | E131: Buy | F131: 549.50 | H131: 630 | I131: 630.00 | J131: Target Achieved | K131: 80.50 | L131: 14.65% | M131: Successful | N131: 2016-02-19
A132: 44 | B132: 2015-12-04 | D132: Zensar Technology | E132: Accu | F132: 1027.50 | H132: 1315 | I132: 1250.00 | J132: Target Achieved | K132: 287.50 | L132: 27.98% | M132: Successful | N132: 2018-05-24
A133: 45 | B133: 2015-12-29 | D133: Vinati Organics Ltd | E133: Accu | F133: 465.00 | H133: 540 | I133: 540.00 | J133: Target Achieved | K133: 75.00 | L133: 16.13% | M133: Successful | N133: 2016-06-09
A134: 46 | B134: 2016-01-11 | D134: GSFC | E134: Buy | F134: 81.00 | H134: 110 | I134: 110.00 | J134: Target Achieved | K134: 29.00 | L134: 35.80% | M134: Successful | N134: 2017-01-10
A135: 47 | B135: 2016-01-13 | D135: SSWL | E135: Buy | F135: 417.50 | H135: 547 | I135: 535.00 | J135: Target Achieved | K135: 129.50 | L135: 31.02% | M135: Successful | N135: 2016-07-27
A136: 48 | B136: 2016-02-08 | D136: Persistent System Ltd | E136: Accu | F136: 650.00 | H136: 800 | I136: 800.00 | J136: Target Achieved | K136: 150.00 | L136: 23.08% | M136: Successful | N136: 2018-02-23
A137: 49 | B137: 2016-03-04 | D137: UPL | E137: Accu | F137: 437.50 | H137: 504.5 | I137: 522.00 | J137: Profit of Rs.67/- | K137: 67.00 | L137: 15.31% | M137: Successful | N137: 2016-04-20
A138: 50 | B138: 2016-03-09 | D138: Ashoka Buildcon Ltd | E138: Accu | F138: 189.50 | H138: 218 | I138: 218.00 | J138: Target Achieved | K138: 28.50 | L138: 15.04% | M138: Successful | N138: 2017-10-26
A139: 51 | B139: 2016-04-11 | D139: PTC INDIA FIN SERV LTD | E139: Accu | F139: 36.5 | H139: 15.85 | I139: 60.00 | J139: Loss of Rs.20.65/- | K139: -20.65 | L139: -56.58% | M139: Unsuccessful | N139: 2019-06-11
A140: 52 | B140: 2016-04-12 | D140: CAMLINFINE $ | E140: Accu | F140: 93.00 | H140: 149 | I140: 140.00 | J140: Profit of Rs 56/- | K140: 56.00 | L140: 60.22% | M140: Successful | N140: 2017-01-05
A141: 53 | B141: 2016-04-12 | D141: Greaves Cotton Ltd. | E141: Accu | F141: 130.00 | H141: 150 | I141: 150-155 | J141: Target Achieved | K141: 20.00 | L141: 15.38% | M141: Successful | N141: 2016-07-13
A142: 54 | B142: 2016-04-13 | D142: DHFL | E142: Accu | F142: 196.00 | H142: 299 | I142: 299.00 | J142: Target Achieved | K142: 103.00 | L142: 52.55% | M142: Successful | N142: 2016-09-07
A143: 55 | B143: 2016-04-13 | D143: Magma | E143: Accu | F143: 88.00 | H143: 103 | I143: 103.00 | J143: Target Achieved | K143: 15.00 | L143: 17.05% | M143: Successful | N143: 2016-06-09
A144: 56 | B144: 2016-05-02 | D144: KEC International ltd $ | E144: Accu | F144: 127.50 | H144: 148 | I144: 148-150 | J144: Target Achieved | K144: =H144-F144 -> 20.50 | L144: =K144/F144 -> 16.08% | M144: Successful | N144: 2016-07-13
A145: 57 | B145: 2016-05-03 | D145: Mindtree | E145: Accu | F145: 675.00 | H145: 815 | I145: 790-800 | J145: Target Achieved | K145: 140.00 | L145: 20.74% | M145: Successful | N145: 2018-02-23
A146: 58 | B146: 2016-06-01 | D146: Atulauto | E146: Accu | F146: 500 | H146: 232.50 | I146: 565-570 | J146: Loss of Rs.267.50 /- | K146: -267.50 | L146: -53.50% | M146: Unsuccessful | N146: 2019-09-27
A147: 59 | B147: 2016-06-06 | D147: TRITURBINE | E147: Accu | F147: 110.00 | H147: 126.5 | I147: 125.00 | J147: Profit of Rs.16.50/- | K147: 16.50 | L147: 15.00% | M147: Successful | N147: 2016-07-01
A148: 60 | B148: 2016-06-17 | D148: Pennar Industries Ltd | E148: Accu | F148: 44.00 | H148: 69.5 | I148: 69.50 | J148: Profit of Rs.25.50/- | K148: 25.50 | L148: 57.95% | M148: Successful | N148: 2017-08-30
A149: 61 | B149: 2016-06-28 | D149: EVEREADY | E149: Accu | F149: 262.50 | H149: 340 | I149: 333.00 | J149: Profit of Rs.77.50/- | K149: 77.50 | L149: 29.52% | M149: Successful | N149: 2017-10-09
A150: 62 | B150: 2016-06-28 | D150: FIEMIND | E150: Accu | F150: 840.00 | H150: 1230 | I150: 1230.00 | J150: Target Achieved | K150: 390.00 | L150: 46.43% | M150: Successful | N150: 2016-10-06
A151: 63 | B151: 2016-07-05 | D151: Bajaj Corp Ltd | E151: Accu | F151: 395 | H151: =(468.5+342.5)/2 -> 405.50 | I151: 510.00 | J151: Profit of Rs.10.50/- | K151: =H151-F151 -> 10.50 | L151: =K151/F151 -> 3% | M151: Neutral | N151: 2019-05-21
A152: 64 | B152: 2016-08-02 | D152: GPPL $ | E152: Buy | F152: =169.5-12.8 -> 156.7 | H152: 77.00 | I152: 198-200 | J152: Loss of Rs.79.7/- | K152: -79.70 | L152: -50.86% | M152: Unsuccessful | N152: 2019-02-26
A153: 65 | B153: 2016-08-04 | D153: WONDERLA HOLIDAYS LTD | E153: Accu | F153: 400 | H153: 305.00 | I153: 475.00 | J153: Loss of Rs.95/- | K153: -95.00 | L153: -23.75% | M153: Unsuccessful | N153: 2019-05-21
A154: 66 | B154: 2016-08-11 | D154: CAMLINFINE | E154: Accu | F154: 86.50 | H154: 130 | I154: 130.00 | J154: Profit of Rs.43.50/- | K154: 43.50 | L154: 50.29% | M154: Successful | N154: 2017-12-22
A155: 67 | B155: 2016-08-18 | D155: GRANULES | E155: Accu | F155: 133.5 | H155: 126.50 | I155: 178.00 | J155: Exit | K155: -7.00 | L155: -5.24% | M155: Unsuccessful | N155: 2016-09-02
A156: 68 | B156: 2016-08-31 | D156: VA TECH WABAG | E156: Accu | F156: 560.00 | H156: 725 | I156: 725.00 | J156: Target Achieved | K156: 165.00 | L156: 29.46% | M156: Successful | N156: 2016-03-27
A157: 69 | B157: 2016-09-01 | D157: SKIPPER LIMITED | E157: Accu | F157: 160.50 | H157: 210 | I157: 210.00 | J157: Target Achieved | K157: 49.50 | L157: 30.84% | M157: Successful | N157: 2017-05-16
A158: 70 | B158: 2016-10-03 | D158: IFBIND | E158: Accu | F158: 430.00 | H158: 596 | I158: 575.00 | J158: Profit of Rs.166/- | K158: 166.00 | L158: 38.60% | M158: Successful | N158: 2017-02-03
A159: 71 | B159: 2016-10-14 | D159: ASIANTILES | E159: Accu | F159: 280.00 | H159: 345 | I159: 345.00 | J159: Target Achieved | K159: =H159-F159 -> 65.00 | L159: =K159/F159 -> 23.21% | M159: Successful | N159: 2017-03-20
A160: 72 | B160: 2016-10-14 | D160: DEEPIND | E160: Accu | F160: 245.00 | H160: 325.5 | I160: 330.00 | J160: Profit of Rs.80.5/- | K160: 80.50 | L160: 32.86% | M160: Successful | N160: 2017-02-03
A161: 73 | B161: 2016-10-17 | D161: DCBBANK | E161: Accu | F161: 125.00 | H161: 160 | I161: 160.00 | J161: Target Achieved | K161: 35.00 | L161: 28.00% | M161: Successful | N161: 2017-03-09
A162: 74 | B162: 2016-10-17 | D162: ORIENTREF | E162: Accu | F162: 114.00 | H162: 145 | I162: 145.00 | J162: Target Achieved | K162: 31.00 | L162: =K162/F162 -> 27.19% | M162: Successful | N162: 2017-05-04
A163: 75 | B163: 2016-10-17 | D163: GANECOS | E163: Accu | F163: 212.00 | H163: 280 | I163: 276.00 | J163: Profit of Rs.68/- | K163: 68.00 | L163: 32.08% | M163: Successful | N163: 2017-05-03
A164: 76 | B164: 2016-11-04 | D164: NBCC | E164: Accu | F164: 155.00 | H164: 210 | I164: 210.00 | J164: Profit of Rs.55/- | K164: 55.00 | L164: 35.48% | M164: Successful | N164: 2017-07-28
A165: 77 | B165: 2016-12-06 | D165: PRECAM | E165: Accu | F165: 150.5 | H165: 72.50 | I165: 174.00 | J165: Loss of Rs.78/- | K165: -78.00 | L165: -51.83% | M165: Unsuccessful | N165: 2018-08-21
A166: 78 | B166: 2016-12-08 | D166: INFRATEL | E166: Accu | F166: 380.00 | H166: 478 | I166: 468.00 | J166: Target Achieved | K166: =H166-F166 -> 98.00 | L166: =K166/F166 -> 25.79% | M166: Successful | N166: 2017-10-17
A167: 79 | B167: 2016-12-30 | D167: GODREJPROP | E167: Accu | F167: 305.00 | H167: 375 | I167: 375.00 | J167: Target Achieved | K167: 70.00 | L167: 22.95% | M167: Successful | N167: 2017-02-02
A168: 80 | B168: 2017-01-04 | D168: DEEPAKNTR | E168: Accu | F168: 99.50 | H168: 158 | I168: 158.00 | J168: Target Achieved | K168: 58.50 | L168: 58.79% | M168: Successful | N168: 2017-06-12
A169: 81 | B169: 2017-01-04 | D169: DEEPAKNTR | E169: Accu | F169: 99.50 | H169: 158 | I169: 158.00 | J169: Target Achieved | K169: 58.50 | L169: 58.79% | M169: Successful | N169: 2017-06-12
A170: 82 | B170: 2017-02-20 | D170: RECLTD | E170: Accu | F170: 140.50 | H170: 220 | I170: 220.00 | J170: Target Achieved | K170: =H170-F170 -> 79.50 | L170: =K170/F170 -> 56.58% | M170: Successful | N170: 2017-05-09
A171: 83 | B171: 2017-02-20 | D171: SUBROS | E171: Accu | F171: 202.50 | H171: 234 | I171: 234.00 | J171: Target Achieved | K171: 31.50 | L171: 15.56% | M171: Successful | N171: 2017-04-11
A172: 84 | B172: 2017-03-24 | D172: VRLLOG | E172: Accu | F172: 300.50 | H172: 417.5 | I172: 420.00 | J172: Profit of Rs.117/- | K172: =H172-F172 -> 117.00 | L172: =K172/F172 -> 38.94% | M172: Successful | N172: 2017-12-01
A173: 85 | B173: 2017-03-24 | D173: FIEMIND | E173: Accu | F173: 850.00 | H173: 1042.5 | I173: 1023.00 | J173: Profit of Rs 192.50/- | K173: 192.50 | L173: 22.65% | M173: Successful | N173: 2017-04-05
A174: 86 | B174: 2017-04-05 | D174: RATNAMANI | E174: Accu | F174: 785.00 | H174: 930 | I174: 920.00 | J174: Profit of Rs.145/- | K174: =H174-F174 -> 145.00 | L174: =K174/F174 -> 18.47% | M174: Successful | N174: 2017-08-29
A175: 87 | B175: 2017-04-06 | D175: ZEEMEDIA | E175: Accu | F175: 40 | H175: 13.10 | I175: 60.00 | J175: Loss of Rs.26.9/- | K175: -26.90 | L175: -67.25% | M175: Unsuccessful | N175: 2018-02-07
A176: 88 | B176: 2017-04-12 | D176: DABUR | E176: Accu | F176: 289.50 | H176: 354 | I176: 360.00 | J176: Profit of Rs.64.5/- | K176: =H176-F176 -> 64.50 | L176: =K176/F176 -> 22.28% | M176: Successful | N176: 2017-11-01
A177: 89 | B177: 2017-04-20 | D177: KPRMILL | E177: Accu | F177: 700.00 | H177: 840 | I177: 840.00 | J177: Profit of Rs.140/- | K177: 140.00 | L177: 20.00% | M177: Successful | N177: 2017-06-07
A178: 90 | B178: 2017-06-01 | D178: ESSELPACK | E178: Accu | F178: 130.00 | H178: 144.25 | I178: 170.00 | J178: Profit of Rs.14.25/- | K178: 14.25 | L178: 10.96% | M178: Successful | N178: 2019-07-29
A179: 91 | B179: 2017-06-15 | D179: KEI | E179: Accu | F179: 214.50 | H179: 262 | I179: 262.00 | J179: Profit of Rs.47.5/- | K179: 47.50 | L179: 22.14% | M179: Successful | N179: 2017-08-30
A180: 92 | B180: 2017-07-17 | D180: MAYURUNIQ | E180: Accu | F180: 370.00 | H180: 447.5 | I180: 450.00 | J180: Target Achieved | K180: 77.50 | L180: 20.95% | M180: Successful | N180: 2017-10-27
A181: 93 | B181: 2017-07-27 | D181: RAMCOCEM | E181: Accu | F181: 657.50 | H181: 825 | I181: 820.00 | J181: Target Achieved | K181: 167.50 | L181: 25.48% | M181: Successful | N181: 2017-12-21
A182: 94 | B182: 2017-08-17 | D182: FINPIPE | E182: Accu | F182: 605.00 | H182: 750 | I182: 750.00 | J182: Profit of Rs.145/- | K182: 145.00 | L182: 23.97% | M182: Successful | N182: 2017-10-19
A183: 95 | B183: 2017-09-01 | D183: SHK | E183: Accu | F183: 255 | H183: 217.25 | I183: 320.00 | J183: Loss of Rs.37.75/- | K183: -37.75 | L183: -15% | M183: Unsuccessful | N183: 2019-07-15
A184: 96 | B184: 2017-09-19 | D184: SKIPPER | E184: Accu | F184: 215.00 | H184: 258 | I184: 258.00 | J184: Target Achieved | K184: 43.00 | L184: 20.00% | M184: Successful | N184: 2017-11-01
A185: 97 | B185: 2017-09-19 | D185: SKIPPER | E185: Accu | F185: 215.00 | H185: 258 | I185: 258.00 | J185: Target Achieved | K185: 43.00 | L185: 20.00% | M185: Successful | N185: 2017-11-01
A186: 98 | B186: 2017-09-20 | D186: CAMLINFINE$ | E186: Accu | F186: 75.00 | H186: 90 | I186: 90.00 | J186: Profit of Rs.15.00/- | K186: =H186-F186 -> 15.00 | L186: =K186/F186 -> 20.00% | M186: Successful | N186: 2017-10-11
A187: 99 | B187: 2017-10-03 | D187: GNA | E187: Accu | F187: 315.00 | H187: 392 | I187: 384.00 | J187: Profit of Rs.77/- | K187: 77.00 | L187: 24.44% | M187: Successful | N187: 2017-10-09
A188: 100 | B188: 2017-10-05 | D188: NOCIL | E188: Accu | F188: 145.00 | H188: 179 | I188: 180.00 | J188: Profit of Rs.34/- | K188: 34.00 | L188: 23.45% | M188: Successful | N188: 2017-10-17
A189: 101 | B189: 2017-10-06 | D189: CENTURYPLY | E189: Accu | F189: 256.00 | H189: 323 | I189: 320.00 | J189: Target Achieved | K189: 67.00 | L189: 26.17% | M189: Successful | N189: 2017-11-28
A190: 102 | B190: 2017-10-09 | D190: EIHOTEL | E190: Accu | F190: 137.50 | H190: 184 | I190: 183.00 | J190: Profit of Rs.46.5/- | K190: 46.50 | L190: 33.82% | M190: Successful | N190: 2018-01-08
A191: 103 | B191: 2017-10-10 | D191: NRBBEARING | E191: Accu | F191: 125.50 | H191: 158 | I191: 155.00 | J191: Profit of Rs.32.5/- | K191: 32.50 | L191: 25.90% | M191: Successful | N191: 2017-11-28
A192: 104 | B192: 2017-10-10 | D192: BOROSIL | E192: Accu | F192: 895.00 | H192: 1122.5 | I192: 1078.00 | J192: Profit of Rs.227.5/- | K192: 227.50 | L192: 25.42% | M192: Successful | N192: 2018-01-17
A193: 105 | B193: 2017-10-12 | D193: CYIENT | E193: Accu | F193: 525.00 | H193: 629 | I193: 629.00 | J193: Target Achieved | K193: 104.00 | L193: 19.81% | M193: Successful | N193: 2018-01-19
A194: 106 | B194: 2017-11-07 | D194: HATSUN | E194: Accu | F194: 740.00 | H194: 892.5 | I194: 900.00 | J194: Profit of Rs.152.5/- | K194: =H194-F194 -> 152.50 | L194: =K194/F194 -> 20.61% | M194: Successful | N194: 2017-11-13
A195: 107 | B195: 2017-12-04 | D195: SANGHIIND | E195: Accu | F195: 118.50 | H195: 143.5 | I195: 145.00 | J195: Profit of Rs.25/- | K195: 25.00 | L195: 21.10% | M195: Successful | N195: 2017-12-28
A196: 108 | B196: 2017-12-21 | D196: KAJARIACER | E196: Accu | F196: 715 | H196: 500.00 | I196: 872.00 | J196: Loss of Rs.215/- | K196: -215.00 | L196: -30.07% | M196: Unsuccessful | N196: 2019-07-24
A197: 109 | B197: 2017-12-29 | D197: GNA | E197: Accu | F197: 435.00 | H197: 542.5 | I197: 539.00 | J197: Target Achieved | K197: 107.50 | L197: 24.71% | M197: Successful | N197: 2018-04-16
A198: 110 | B198: 2017-12-29 | D198: ZENSARTECH | E198: Accu | F198: 885.00 | H198: 1090 | I198: 1084.00 | J198: Target Achieved | K198: 205.00 | L198: 23.16% | M198: Successful | N198: 2018-04-23
A199: 111 | B199: 2018-04-02 | D199: EVERESTIND | E199: Accu | F199: 478.50 | H199: 442 | I199: 613.00 | J199: Loss of Rs.36.50 /- | K199: =H199-F199 -> -36.50 | L199: =K199/F199 -> -7.63% | M199: Unsuccessful | N199: 2019-10-24
A200: 112 | B200: 2018-04-04 | D200: GPPL$ | E200: Accu | F200: =141.5-7.3 -> 134.2 | H200: 77.00 | I200: 180.00 | J200: Loss of Rs.57.2/- | K200: -57.20 | L200: -42.62% | M200: Unsuccessful | N200: 2019-02-26
A201: 113 | B201: 2018-04-19 | D201: MANPASAND | E201: Accu | F201: 430 | H201: 220.00 | I201: 537.00 | J201: Loss of Rs.210/- | K201: -210.00 | L201: -48.84% | M201: Unsuccessful | N201: 2018-06-01
A202: 114 | B202: 2018-04-30 | D202: HEIDELBERG | E202: Accu | F202: 153.5 | H202: 196 | I202: 196.00 | J202: Profit of Rs.42.50/- | K202: 42.50 | L202: 27.69% | M202: Successful | N202: 2019-05-20
A203: 115 | B203: 2018-07-25 | D203: ZEEMEDIA | E203: Accu | F203: 27.5 | H203: 13.10 | I203: 60.00 | J203: Loss of Rs.14.40/- | K203: -14.40 | L203: -52.36% | M203: Unsuccessful | N203: 2018-02-07
A204: 116 | B204: 2018-08-06 | D204: GABRIEL | E204: Accu | F204: 148.5 | H204: 102 | I204: 182.00 | J204: Loss of Rs.46.50/- | K204: =H204-F204 -> -46.50 | L204: =K204/F204 -> -31.31% | M204: Unsuccessful | N204: 2019-07-15
A205: 117 | B205: 2018-08-23 | D205: INDIANHUME | E205: Accu | F205: 285 | H205: 355 | I205: 364.00 | J205: Profit of Rs.70/- | K205: 70.00 | L205: 24.56% | M205: Successful | N205: 2018-12-21
A206: 118 | B206: 2018-08-29 | D206: GRINDWELL | E206: Accu | F206: 525 | H206: 585 | I206: 635.00 | J206: Profit of Rs.60- | K206: =H206-F206 -> 60.00 | L206: =K206/F206 -> 11.43% | M206: Successful | N206: 2019-07-16
A207: 119 | B207: 2018-10-22 | D207: FINPIPE | E207: Accu | F207: 475 | H207: 574 | I207: 570.00 | J207: Target Achieved | K207: 99.00 | L207: 20.84% | M207: Successful | N207: 2018-10-30
A208: 120 | B208: 2018-10-24 | D208: GULFOILLUB | E208: Accu | F208: 707.5 | H208: 872 | I208: 872.00 | J208: Target Achieved | K208: 164.50 | L208: 23.25% | M208: Successful | N208: 2019-01-17
A209: 121 | B209: 2018-10-25 | D209: DBCORP | E209: Accu | F209: 162 | H209: 204 | I209: 209.00 | J209: Profit of Rs.42/- | K209: 42.00 | L209: 25.93% | M209: Successful | N209: 2019-03-15
A210: 122 | B210: 2018-10-26 | D210: RITES | E210: Accu | F210: 240 | H210: 297 | I210: 297.00 | J210: Target Achieved | K210: 57.00 | L210: 23.75% | M210: Successful | N210: 2018-11-13
A211: 123 | B211: 2018-12-05 | D211: BRIGADE | E211: Accu | F211: 202.5 | H211: 255 | I211: 252.00 | J211: Target Achieved | K211: 52.50 | L211: 25.93% | M211: Successful | N211: 2019-03-18 | S211: V
A212: 124 | B212: 2018-12-31 | D212: JKCEMENT | E212: Accu | F212: 710 | H212: 866 | I212: 866.00 | J212: Target Achieved | K212: 156.00 | L212: 21.97% | M212: Successful | N212: 2019-03-29 | S212: V
A213: 125 | B213: 2019-02-26 | D213: MARICO | E213: Accu | F213: 337.25 | H213: 398.5 | I213: 411.00 | J213: Profit of Rs.61.25/- | K213: 61.25 | L213: 18.16% | M213: Successful | N213: 2019-10-22 | S213: V
A214: 126 | B214: 2019-04-04 | D214: ITDCEM | E214: Accu | F214: 130 | H214: 65 | I214: 158.00 | J214: Loss of Rs.65 /- | K214: -65.00 | L214: -50.00% | M214: Unsuccessful | N214: 2019-09-18 | S214: K
A215: 127 | B215: 2017-10-09 | D215: RECLTD | E215: Accu | F215: 141.5 | H215: 183.5 | I215: 210.00 | J215: Profit of Rs.42/- | K215: 42.00 | L215: 29.68% | M215: Successful | N215: 2017-11-03 | S215: K
A216: 128 | B216: 2017-12-05 | D216: ALLCARGO | E216: Accu | F216: 172.00 | H216: 155.25 | I216: 230.00 | J216: Loss of Rs.16.75/- | K216: -16.75 | L216: -9.74% | M216: Unsuccessful | N216: 2019-11-18 | S216: K
A217: 129 | B217: 2018-10-25 | D217: GODREJCP | E217: Accu | F217: 698.5 | H217: 890 | I217: 890.00 | J217: Profit of Rs.191.50/- | K217: 191.50 | L217: 27.42% | M217: Successful | N217: 2021-05-12 | S217: V
A218: 130 | B218: 2017-05-22 | D218: GREAVESCOT | E218: Accu | F218: 127.6 | H218: 138 | I218: 190.00 | J218: Profit of Rs.10.40 | K218: 10.40 | L218: 8.15% | M218: Successful | N218: 2019-11-05 | S218: K
A219: 131 | B219: 2018-02-27 | D219: MOLDTKPAC | E219: Accu | F219: 317 | H219: 382.5 | I219: 398.00 | J219: Profit of Rs.65.5 | K219: 65.50 | L219: 20.66% | M219: Successful | N219: 2021-02-11 | S219: K
A220: 132 | B220: 2018-03-05 | D220: LICHSGFIN | E220: Accu | F220: =510-14.4 -> 495.60 | H220: 350 | I220: 672.00 | J220: Loss of Rs.145.60/- | K220: -145.60 | L220: -29.38% | M220: Unsuccessful | N220: 2020-02-26 | S220: V
A221: 133 | B221: 2018-05-17 | D221: PHILIPCARB | E221: Accu | F221: 230.30 | H221: 102.5 | I221: 348.00 | J221: Loss of Rs.127.80/- | K221: -127.80 | L221: -55.49% | M221: Unsuccessful | N221: 2020-03-06 | S221: V
A222: 134 | B222: 2018-06-07 | D222: KEC | E222: Accu | F222: =342.5-5.1 -> 337.4 | H222: 412.5 | I222: 439.00 | J222: Profit of Rs.75.10 | K222: 75.10 | L222: 22.26% | M222: Successful | N222: 2021-02-03 | S222: K
A223: 135 | B223: 2018-07-04 | D223: ASHOKLEY | E223: Accu | F223: =127.5-5.53 -> 121.97 | H223: 122.50 | I223: 170.00 | J223: Profit of Rs.0.53/- | K223: 0.53 | L223: 0% | M223: Neutral | N223: 2021-08-23 | S223: V
A224: 136 | B224: 2018-07-13 | D224: FCONSUMER | E224: Accu | F224: 46.50 | H224: 17 | I224: 59.00 | J224: Loss of Rs.29.50/- | K224: -29.50 | L224: -63.44% | M224: Unsuccessful | N224: 2020-02-26 | S224: V
A225: 137 | B225: 2018-10-23 | D225: JKPAPER | E225: Accu | F225: 156.5 | H225: 207.5 | I225: 191.00 | J225: Target Achieved | K225: 51.00 | L225: 32.59% | M225: Successful | N225: 2021-06-22 | S225: V
A226: 138 | B226: 2018-12-05 | D226: CCL | E226: Accu | F226: 259.5 | H226: 320 | I226: 320.00 | J226: Target Achieved | K226: 60.50 | L226: 23.31% | M226: Successful | N226: 2021-05-07 | S226: V
... 64 more rows
